date,department/service,beneficiary,amount,summary of purpose,category,transaction number,SAP vendor number
02.04.2020,ADULT SOCIAL CARE,REDACTED PERSONAL DATA,600,APPOINTEESHIPS,OTHER PAYMENTS FOR CLIENTS,REDACTED,REDACTED
02.04.2020,ADULT SOCIAL CARE,FOSTERING SUPPORT GROUP LTD,"5,999.70",DISABILITIES LAC,EXTERNAL AGENCIES AND BODIES,2103082309,1000065830
02.04.2020,ADULT SOCIAL CARE,CREATING CARE CHOICES LTD,"18,600.00",DISABILITIES LAC,EXTERNAL AGENCIES AND BODIES,2103082304,1000076738
02.04.2020,ADULT SOCIAL CARE,AMELIA'S HOUSE LIMITED,"2,400.00",DISABILITIES LAC,EXTERNAL AGENCIES AND BODIES,2103082306,1000083007
02.04.2020,ADULT SOCIAL CARE,AMELIA'S HOUSE LIMITED,"13,950.00",DISABILITIES LAC,EXTERNAL AGENCIES AND BODIES,2103082308,1000083007
02.04.2020,ADULT SOCIAL CARE,AMELIA'S HOUSE LIMITED,"5,700.00",DISABILITIES LAC,RESIDENTIAL CARE,2103082305,1000083007
02.04.2020,ADULT SOCIAL CARE,THE CAMDEN SOCIETY (SOCIAL CARE),594,LD LTS 18-64,DAYCARE,2103082297,1000036369
02.04.2020,ADULT SOCIAL CARE,THE CAMDEN SOCIETY (SOCIAL CARE),704,LD LTS 18-64,DAYCARE,2103082300,1000036369
02.04.2020,ADULT SOCIAL CARE,THE CAMDEN SOCIETY (SOCIAL CARE),"1,408.00",LD LTS 18-64,DAYCARE,2103082301,1000036369
02.04.2020,ADULT SOCIAL CARE,THE CAMDEN SOCIETY (SOCIAL CARE),"1,760.00",LD LTS 18-64,DAYCARE,2103082299,1000036369
02.04.2020,ADULT SOCIAL CARE,THE CAMDEN SOCIETY (SOCIAL CARE),"3,160.00",LD LTS 18-64,DAYCARE,2103082298,1000036369
02.04.2020,ADULT SOCIAL CARE,HEALTH PERSONNEL LTD,"3,676.00",LD LTS 18-64,RESIDENTIAL CARE,2103082272,1000076377
02.04.2020,ADULT SOCIAL CARE,MEDACS HOMECARE,555.12,LD LTS 18-64,SUPPORTED LIVING,2103082268,11287415
02.04.2020,ADULT SOCIAL CARE,MEDACS HOMECARE,740.16,LD LTS 18-64,SUPPORTED LIVING,2103082259,11287415
02.04.2020,ADULT SOCIAL CARE,MEDACS HOMECARE,740.16,LD LTS 18-64,SUPPORTED LIVING,2103082263,11287415
02.04.2020,ADULT SOCIAL CARE,WESTMINSTER HOMECARE LTD,"1,276.80",MEM LTS 65+,HOMECARE - SPOT,2103082280,1000075287
02.04.2020,ADULT SOCIAL CARE,WESTMINSTER HOMECARE LTD,880.08,MH LTS 65+,HOMECARE - SPOT,2103082277,1000075287
02.04.2020,ADULT SOCIAL CARE,WESTMINSTER HOMECARE LTD,693.12,PHY LTS 18-64,HOMECARE - SPOT,2103082287,1000075287
02.04.2020,ADULT SOCIAL CARE,WESTMINSTER HOMECARE LTD,"1,021.44",PHY LTS 18-64,HOMECARE - SPOT,2103082294,1000075287
02.04.2020,ADULT SOCIAL CARE,WESTMINSTER HOMECARE LTD,"1,331.52",PHY LTS 18-64,HOMECARE - SPOT,2103082281,1000075287
02.04.2020,ADULT SOCIAL CARE,WESTMINSTER HOMECARE LTD,"2,042.88",PHY LTS 18-64,HOMECARE - SPOT,2103082274,1000075287
02.04.2020,ADULT SOCIAL CARE,WESTMINSTER HOMECARE LTD,"3,046.08",PHY LTS 18-64,HOMECARE - SPOT,2103082285,1000075287
02.04.2020,ADULT SOCIAL CARE,WESTMINSTER HOMECARE LTD,383.04,PHY LTS 65+,HOMECARE - C&V,2103082284,1000075287
02.04.2020,ADULT SOCIAL CARE,WESTMINSTER HOMECARE LTD,419.52,PHY LTS 65+,HOMECARE - SPOT,2103082276,1000075287
02.04.2020,ADULT SOCIAL CARE,WESTMINSTER HOMECARE LTD,437.76,PHY LTS 65+,HOMECARE - SPOT,2103082282,1000075287
02.04.2020,ADULT SOCIAL CARE,WESTMINSTER HOMECARE LTD,510.72,PHY LTS 65+,HOMECARE - SPOT,2103082273,1000075287
02.04.2020,ADULT SOCIAL CARE,WESTMINSTER HOMECARE LTD,601.92,PHY LTS 65+,HOMECARE - SPOT,2103082293,1000075287
02.04.2020,ADULT SOCIAL CARE,WESTMINSTER HOMECARE LTD,638.4,PHY LTS 65+,HOMECARE - SPOT,2103082289,1000075287
02.04.2020,ADULT SOCIAL CARE,WESTMINSTER HOMECARE LTD,674.88,PHY LTS 65+,HOMECARE - SPOT,2103082288,1000075287
02.04.2020,ADULT SOCIAL CARE,WESTMINSTER HOMECARE LTD,875.52,PHY LTS 65+,HOMECARE - SPOT,2103082279,1000075287
02.04.2020,ADULT SOCIAL CARE,WESTMINSTER HOMECARE LTD,898.32,PHY LTS 65+,HOMECARE - SPOT,2103082278,1000075287
02.04.2020,ADULT SOCIAL CARE,WESTMINSTER HOMECARE LTD,"1,212.96",PHY LTS 65+,HOMECARE - SPOT,2103082290,1000075287
02.04.2020,ADULT SOCIAL CARE,WESTMINSTER HOMECARE LTD,"1,267.68",PHY LTS 65+,HOMECARE - SPOT,2103082292,1000075287
02.04.2020,ADULT SOCIAL CARE,WESTMINSTER HOMECARE LTD,"1,395.36",PHY LTS 65+,HOMECARE - SPOT,2103082291,1000075287
02.04.2020,ADULT SOCIAL CARE,WESTMINSTER HOMECARE LTD,"1,605.12",PHY LTS 65+,HOMECARE - SPOT,2103082275,1000075287
02.04.2020,ADULT SOCIAL CARE,WESTMINSTER HOMECARE LTD,"2,302.80",PHY LTS 65+,HOMECARE - SPOT,2103082283,1000075287
02.04.2020,ADULT SOCIAL CARE,WESTMINSTER HOMECARE LTD,383.04,SOCIAL ISOLATION,HOMECARE - SPOT,2103082286,1000075287
02.04.2020,ASSET MANAGEMENT,ASHFORDS LLP OFFICE ACCOUNT,425,DISREPAIR,PAYMENTS FOR LEGAL SERVICES,5902411616,1000082695
02.04.2020,ASSET MANAGEMENT,ASHFORDS LLP OFFICE ACCOUNT,425,DISREPAIR,PAYMENTS FOR LEGAL SERVICES,5902411630,1000082695
02.04.2020,ASSET MANAGEMENT,ASHFORDS LLP OFFICE ACCOUNT,425,DISREPAIR,PAYMENTS FOR LEGAL SERVICES,5902411637,1000082695
02.04.2020,ASSET MANAGEMENT,ASHFORDS LLP OFFICE ACCOUNT,425,DISREPAIR,PAYMENTS FOR LEGAL SERVICES,5902411638,1000082695
02.04.2020,ASSET MANAGEMENT,ASHFORDS LLP OFFICE ACCOUNT,425,DISREPAIR,PAYMENTS FOR LEGAL SERVICES,5902411640,1000082695
02.04.2020,ASSET MANAGEMENT,ASHFORDS LLP OFFICE ACCOUNT,425,DISREPAIR,PAYMENTS FOR LEGAL SERVICES,5902411643,1000082695
02.04.2020,ASSET MANAGEMENT,ASHFORDS LLP OFFICE ACCOUNT,650,DISREPAIR,PAYMENTS FOR LEGAL SERVICES,5902411620,1000082695
02.04.2020,ASSET MANAGEMENT,ASHFORDS LLP OFFICE ACCOUNT,"1,325.00",DISREPAIR,PAYMENTS FOR LEGAL SERVICES,5902411628,1000082695
02.04.2020,ASSET MANAGEMENT,ASHFORDS LLP OFFICE ACCOUNT,"1,325.00",DISREPAIR,PAYMENTS FOR LEGAL SERVICES,5902411635,1000082695
02.04.2020,ASSET MANAGEMENT,ASHFORDS LLP OFFICE ACCOUNT,"1,750.00",DISREPAIR,PAYMENTS FOR LEGAL SERVICES,5902411611,1000082695
02.04.2020,ASSET MANAGEMENT,ASHFORDS LLP OFFICE ACCOUNT,"1,750.00",DISREPAIR,PAYMENTS FOR LEGAL SERVICES,5902411614,1000082695
02.04.2020,ASSET MANAGEMENT,ASHFORDS LLP OFFICE ACCOUNT,"1,750.00",DISREPAIR,PAYMENTS FOR LEGAL SERVICES,5902411618,1000082695
02.04.2020,ASSET MANAGEMENT,ASHFORDS LLP OFFICE ACCOUNT,"1,750.00",DISREPAIR,PAYMENTS FOR LEGAL SERVICES,5902411634,1000082695
02.04.2020,ASSET MANAGEMENT,ASHFORDS LLP OFFICE ACCOUNT,"2,175.00",DISREPAIR,PAYMENTS FOR LEGAL SERVICES,5902411621,1000082695
02.04.2020,CHIEF EXECUTIVE,LANDOLT & BROWN,"1,606.00",CAPITAL PS (REGEN),CONSTRUCTION FEES - ARCHITECT,5902411727,1000069588
02.04.2020,CHIEF EXECUTIVE,MACKENZIE ASSOCIATES,"4,825.00",CAPITAL PS (REGEN),LAND & BUILDINGS ACQUISITION FEES,5902411666,1000082710
02.04.2020,CHILDREN AND ADULT,FAITHFUL & GOULD,418,CAPITAL PS (EDUCATION),CONSTRUCTION,5902411596,1000061390
02.04.2020,CHILDREN AND ADULT,FAITHFUL & GOULD,"6,228.00",CAPITAL PS (EDUCATION),CONSTRUCTION,5902411598,1000061390
02.04.2020,CHILDREN AND ADULT,DAVID MILES & PARTNERS LTD,"5,205.26",CAPITAL PS (SOC SERV),CONSTRUCTION MAIN CONTRACT,5902410541,1000001119
02.04.2020,CHILDREN AND ADULT,DAVID MILES & PARTNERS LTD,"6,023.33",CAPITAL PS (SOC SERV),CONSTRUCTION MAIN CONTRACT,5902411128,1000001119
02.04.2020,CHILDREN'S SERVICES,REDACTED PERSONAL DATA,480,ADOPTION PLACEMENTS & INTER AGENCY,PAYMENTS TO CARERS,REDACTED,REDACTED
02.04.2020,CHILDREN'S SERVICES,MENTIVITY,"1,300.00",CARE SERVICES 0-15,OTHER PAYMENTS FOR CLIENTS,5902411696,1000081738
02.04.2020,CHILDREN'S SERVICES,LONDON WILDLIFE TRUST,"1,125.00",COMMUNITY LEARNING,GRANTS,5902411715,1832374
02.04.2020,CHILDREN'S SERVICES,WALWORTH GARDEN FARM,"2,750.00",COMMUNITY LEARNING,GRANTS,5902411754,1000042204
02.04.2020,CHILDREN'S SERVICES,LEARNING UNLIMITED,"1,750.00",COMMUNITY LEARNING,GRANTS,5902411594,1000068095
02.04.2020,CHILDREN'S SERVICES,REDACTED PERSONAL DATA,965,DISABILITY & HIV,PAYMENTS TO CARERS,REDACTED,REDACTED
02.04.2020,CHILDREN'S SERVICES,BLERINA TAHIRAJ-PRITCHARD,352.8,FAMILY GROUP CONFERENCES,PROFESSIONAL FEES,5902411601,1000083304
02.04.2020,CHILDREN'S SERVICES,BLERINA TAHIRAJ-PRITCHARD,"1,495.72",FAMILY GROUP CONFERENCES,PROFESSIONAL FEES,5902411603,1000083304
02.04.2020,CHILDREN'S SERVICES,FOSTERING SUPPORT GROUP LTD,"5,295.84",FRIENDS & FAMILY FOSTERING,EXTERNAL AGENCIES AND BODIES,2103082311,1000065830
02.04.2020,CHILDREN'S SERVICES,LIGHTHOUSE FOSTERING LTD,"5,766.89",FRIENDS & FAMILY FOSTERING,EXTERNAL AGENCIES AND BODIES,2103082310,1000080372
02.04.2020,CHILDREN'S SERVICES,FOSTERING FOR YOU LTD,"3,271.21",FRIENDS & FAMILY FOSTERING,EXTERNAL AGENCIES AND BODIES,2103082314,1000080380
02.04.2020,CHILDREN'S SERVICES,FOSTERING FOR YOU LTD,"3,271.21",FRIENDS & FAMILY FOSTERING,EXTERNAL AGENCIES AND BODIES,2103082318,1000080380
02.04.2020,CHILDREN'S SERVICES,FOSTERING FOR YOU LTD,"3,443.39",FRIENDS & FAMILY FOSTERING,EXTERNAL AGENCIES AND BODIES,2103082313,1000080380
02.04.2020,CHILDREN'S SERVICES,FOSTERING FOR YOU LTD,"3,443.39",FRIENDS & FAMILY FOSTERING,EXTERNAL AGENCIES AND BODIES,2103082315,1000080380
02.04.2020,CHILDREN'S SERVICES,FOSTERING FOR YOU LTD,"3,443.39",FRIENDS & FAMILY FOSTERING,EXTERNAL AGENCIES AND BODIES,2103082316,1000080380
02.04.2020,CHILDREN'S SERVICES,FOSTERING FOR YOU LTD,"3,443.39",FRIENDS & FAMILY FOSTERING,EXTERNAL AGENCIES AND BODIES,2103082317,1000080380
02.04.2020,CHILDREN'S SERVICES,FOSTERING FOR YOU LTD,"3,443.39",FRIENDS & FAMILY FOSTERING,EXTERNAL AGENCIES AND BODIES,2103082319,1000080380
02.04.2020,CHILDREN'S SERVICES,THE GROVE CHILDRENS CENTRE,"2,570.82",NURSERY ED GRANT 3 AND 4 YR OLDS,SCHOOLS CAPITATION,2103082340,5001000090
02.04.2020,CHILDREN'S SERVICES,DULWICH WOOD CHILDRENS CENTRE,"26,504.73",NURSERY ED GRANT 3 AND 4 YR OLDS,SCHOOLS CAPITATION,2103082339,5001000099
02.04.2020,CHILDREN'S SERVICES,ALBION PRIMARY SCHOOL,"20,948.85",NURSERY ED GRANT 3 AND 4 YR OLDS,SCHOOLS CAPITATION,2103082341,5001000000
02.04.2020,CHILDREN'S SERVICES,ALFRED SALTER PRIMARY SCHOOL,"5,156.25",NURSERY ED GRANT 3 AND 4 YR OLDS,SCHOOLS CAPITATION,2103082342,5001000005
02.04.2020,CHILDREN'S SERVICES,BRUNSWICK PARK PRIMARY SCHOOL,"6,498.50",NURSERY ED GRANT 3 AND 4 YR OLDS,SCHOOLS CAPITATION,2103082343,5001000013
02.04.2020,CHILDREN'S SERVICES,CAMELOT PRIMARY SCHOOL,"13,989.35",NURSERY ED GRANT 3 AND 4 YR OLDS,SCHOOLS CAPITATION,2103082344,5001000014
02.04.2020,CHILDREN'S SERVICES,CRAWFORD PRIMARY SCHOOL,"12,022.25",NURSERY ED GRANT 3 AND 4 YR OLDS,SCHOOLS CAPITATION,2103082345,5001000024
02.04.2020,CHILDREN'S SERVICES,GOODRICH PRIMARY SCHOOL,"21,997.25",NURSERY ED GRANT 3 AND 4 YR OLDS,SCHOOLS CAPITATION,2103082347,5001000028
02.04.2020,CHILDREN'S SERVICES,ENGLISH MARTYRS RC PRIMARY SCHOOL,"12,631.90",NURSERY ED GRANT 3 AND 4 YR OLDS,SCHOOLS CAPITATION,2103082346,5001000030
02.04.2020,CHILDREN'S SERVICES,PHOENIX PRIMARY SCHOOL,"9,070.80",NURSERY ED GRANT 3 AND 4 YR OLDS,SCHOOLS CAPITATION,2103082355,5001000032
02.04.2020,CHILDREN'S SERVICES,HEBER PRIMARY SCHOOL,"4,493.20",NURSERY ED GRANT 3 AND 4 YR OLDS,SCHOOLS CAPITATION,2103082348,5001000035
02.04.2020,CHILDREN'S SERVICES,ILDERTON PRIMARY SCHOOL,932.35,NURSERY ED GRANT 3 AND 4 YR OLDS,SCHOOLS CAPITATION,2103082349,5001000037
02.04.2020,CHILDREN'S SERVICES,JOHN RUSKIN PRIMARY SCHOOL,"24,578.20",NURSERY ED GRANT 3 AND 4 YR OLDS,SCHOOLS CAPITATION,2103082350,5001000040
02.04.2020,CHILDREN'S SERVICES,KEYWORTH PRIMARY SCHOOL,"16,798.00",NURSERY ED GRANT 3 AND 4 YR OLDS,SCHOOLS CAPITATION,2103082351,5001000041
02.04.2020,CHILDREN'S SERVICES,LYNDHURST PRIMARY SCHOOL,"16,971.25",NURSERY ED GRANT 3 AND 4 YR OLDS,SCHOOLS CAPITATION,2103082352,5001000043
02.04.2020,CHILDREN'S SERVICES,MICHAEL FARADAY PRIMARY SCHOOL,"19,614.30",NURSERY ED GRANT 3 AND 4 YR OLDS,SCHOOLS CAPITATION,2103082353,5001000048
02.04.2020,CHILDREN'S SERVICES,PETER HILLS CE SCHOOL,"25,841.65",NURSERY ED GRANT 3 AND 4 YR OLDS,SCHOOLS CAPITATION,2103082354,5001000053
02.04.2020,CHILDREN'S SERVICES,RIVERSIDE PRIMARY SCHOOL,"4,878.70",NURSERY ED GRANT 3 AND 4 YR OLDS,SCHOOLS CAPITATION,2103082356,5001000056
02.04.2020,CHILDREN'S SERVICES,ROBERT BROWNING PRIMARY SCHOOL,"1,174.20",NURSERY ED GRANT 3 AND 4 YR OLDS,SCHOOLS CAPITATION,2103082357,5001000057
02.04.2020,CHILDREN'S SERVICES,RYE OAK PRIMARY SCHOOL,"32,266.35",NURSERY ED GRANT 3 AND 4 YR OLDS,SCHOOLS CAPITATION,2103082358,5001000059
02.04.2020,CHILDREN'S SERVICES,SNOWSFIELDS PRIMARY SCHOOL,"5,471.90",NURSERY ED GRANT 3 AND 4 YR OLDS,SCHOOLS CAPITATION,2103082360,5001000061
02.04.2020,CHILDREN'S SERVICES,SOUTHWARK PARK PRIMARY SCHOOL,"13,591.30",NURSERY ED GRANT 3 AND 4 YR OLDS,SCHOOLS CAPITATION,2103082361,5001000062
02.04.2020,CHILDREN'S SERVICES,ST ANTHONYS RC SCHOOL,"9,007.75",NURSERY ED GRANT 3 AND 4 YR OLDS,SCHOOLS CAPITATION,2103082362,5001000064
02.04.2020,CHILDREN'S SERVICES,ST FRANCESCA CABRINI PRIMARY SCHOOL,"5,837.90",NURSERY ED GRANT 3 AND 4 YR OLDS,SCHOOLS CAPITATION,2103082363,5001000065
02.04.2020,CHILDREN'S SERVICES,ST FRANCIS'S RC PRIMARY SCHOOL,"4,646.25",NURSERY ED GRANT 3 AND 4 YR OLDS,SCHOOLS CAPITATION,2103082364,5001000067
02.04.2020,CHILDREN'S SERVICES,ST GEORGES RC SCHOOL,"6,379.85",NURSERY ED GRANT 3 AND 4 YR OLDS,SCHOOLS CAPITATION,2103082365,5001000068
02.04.2020,CHILDREN'S SERVICES,ST JAMES THE GREAT RC SCHOOL,"9,837.00",NURSERY ED GRANT 3 AND 4 YR OLDS,SCHOOLS CAPITATION,2103082366,5001000071
02.04.2020,CHILDREN'S SERVICES,ST JOHNS RC PRIMARY SCHOOL,"9,326.25",NURSERY ED GRANT 3 AND 4 YR OLDS,SCHOOLS CAPITATION,2103082367,5001000075
02.04.2020,CHILDREN'S SERVICES,ST JOSEPHS CATHOLIC SCHOOL,"1,174.10",NURSERY ED GRANT 3 AND 4 YR OLDS,SCHOOLS CAPITATION,2103082359,5001000076
02.04.2020,CHILDREN'S SERVICES,ST JOSEPHS RC PRIMARY SCHOOL,"15,241.65",NURSERY ED GRANT 3 AND 4 YR OLDS,SCHOOLS CAPITATION,2103082369,5001000077
02.04.2020,CHILDREN'S SERVICES,ST JOSEPHS CATHOLIC PRIMARY SCHOOL,"2,694.35",NURSERY ED GRANT 3 AND 4 YR OLDS,SCHOOLS CAPITATION,2103082368,5001000078
02.04.2020,CHILDREN'S SERVICES,CATHEDRAL SCHOOL OF ST SAVIOUR & MARY,"10,550.55",NURSERY ED GRANT 3 AND 4 YR OLDS,SCHOOLS CAPITATION,2103082370,5001000088
02.04.2020,CHILDREN'S SERVICES,TOWER BRIDGE PRIMARY SCHOOL,"4,599.10",NURSERY ED GRANT 3 AND 4 YR OLDS,SCHOOLS CAPITATION,2103082371,5001000095
02.04.2020,CHILDREN'S SERVICES,VICTORY SCHOOL,"7,634.00",NURSERY ED GRANT 3 AND 4 YR OLDS,SCHOOLS CAPITATION,2103082372,5001000098
02.04.2020,CHILDREN'S SERVICES,OWNLIFE LTD,"16,200.00",RESIDENTIAL,RESIDENTIAL CARE,2103082320,1000056219
02.04.2020,CHILDREN'S SERVICES,OWNLIFE LTD,"16,200.00",RESIDENTIAL,RESIDENTIAL CARE,2103082321,1000056219
02.04.2020,CHILDREN'S SERVICES,UNIQUE CARE HOMES SUPPORT LTD,"20,875.00",RESIDENTIAL,RESIDENTIAL CARE,2103082307,1000083349
02.04.2020,CHILDREN'S SERVICES,UNIQUE CARE HOMES SUPPORT LTD,"39,175.00",RESIDENTIAL,RESIDENTIAL CARE,2103082303,1000083349
02.04.2020,CHILDREN'S SERVICES,PULSE HEALTHCARE LTD,308,SCH TRANS - CONTRACT COST,AGENCY STAFF,5902410833,1000035063
02.04.2020,CHILDREN'S SERVICES,OWNLIFE LTD,"2,680.00",SEMI INDEPENDENT CARE LEAVERS,EXTERNAL AGENCIES AND BODIES,2103082323,1000056219
02.04.2020,CHILDREN'S SERVICES,OWNLIFE LTD,"3,808.57",SEMI INDEPENDENT CARE LEAVERS,EXTERNAL AGENCIES AND BODIES,2103082326,1000056219
02.04.2020,CHILDREN'S SERVICES,BARNARDOS SERVICES LTD,833.55,SEMI INDEPENDENT CARE LEAVERS,EXTERNAL AGENCIES AND BODIES,2103082324,1000063730
02.04.2020,CHILDREN'S SERVICES,ADULLAM SUPPORT LTD,"2,989.29",SEMI INDEPENDENT CARE LEAVERS,EXTERNAL AGENCIES AND BODIES,2103082328,1000081148
02.04.2020,CHILDREN'S SERVICES,IASPIRE CARE SERVICES LTD,"1,066.07",SEMI INDEPENDENT CARE LEAVERS,EXTERNAL AGENCIES AND BODIES,5902411707,1000081500
02.04.2020,CHILDREN'S SERVICES,SYDNEY CARE LTD,"3,742.14",SEMI INDEPENDENT CARE LEAVERS,EXTERNAL AGENCIES AND BODIES,2103082312,1000081598
02.04.2020,CHILDREN'S SERVICES,OWNLIFE LTD,"3,542.87",SEMI INDEPENDENT LAC,EXTERNAL AGENCIES AND BODIES,2103082322,1000056219
02.04.2020,CHILDREN'S SERVICES,BARNARDOS SERVICES LTD,"1,120.14",SEMI INDEPENDENT LAC,EXTERNAL AGENCIES AND BODIES,2103082325,1000063730
02.04.2020,CHILDREN'S SERVICES,ADULLAM SUPPORT LTD,"1,379.23",SEMI INDEPENDENT LAC,EXTERNAL AGENCIES AND BODIES,2103082327,1000081148
02.04.2020,CHILDREN'S SERVICES,CASTLE WATER LTD,"2,603.96",THOMAS CALTON CENTRE,WATER,5902411710,1000078867
02.04.2020,COMMUNITIES PROJECTS,WALWORTH METHODIST CHURCH,610,COMMUNITY COUNCILS TEAM,HIRE OF ROOMS/HALLS,5902411677,1000042218
02.04.2020,CUSTOMER EXPERIENCE,PARIS SMITH AND RANDALL SOLICITORS,337.26,SALES & ACQUISITIONS,SOLICITORS FRAMEWORK LEGAL SERVICES,5902411718,1000008059
02.04.2020,CUSTOMER EXPERIENCE,PARIS SMITH AND RANDALL SOLICITORS,406,SALES & ACQUISITIONS,SOLICITORS FRAMEWORK LEGAL SERVICES,5902411719,1000008059
02.04.2020,CUSTOMER EXPERIENCE,PARIS SMITH AND RANDALL SOLICITORS,406,SALES & ACQUISITIONS,SOLICITORS FRAMEWORK LEGAL SERVICES,5902411721,1000008059
02.04.2020,CUSTOMER EXPERIENCE,PARIS SMITH AND RANDALL SOLICITORS,458.17,SALES & ACQUISITIONS,SOLICITORS FRAMEWORK LEGAL SERVICES,5902411723,1000008059
02.04.2020,CUSTOMER EXPERIENCE,PARIS SMITH AND RANDALL SOLICITORS,957.59,SALES & ACQUISITIONS,SOLICITORS FRAMEWORK LEGAL SERVICES,5902411725,1000008059
02.04.2020,CUSTOMER EXPERIENCE HGF,DIGNITY FUNERALS LTD,"13,510.00",CORONER'S,OTHER CONTRACTORS,5902411600,1000041373
02.04.2020,CUSTOMER EXPERIENCE HGF,IMPERIAL COLLEGE PROJECTS LTD,292,CORONER'S,PROFESSIONAL FEES,5902411764,1000080106
02.04.2020,CUSTOMER EXPERIENCE HGF,IMPERIAL COLLEGE PROJECTS LTD,336,CORONER'S,PROFESSIONAL FEES,5902411713,1000080106
02.04.2020,CUSTOMER EXPERIENCE HGF,IMPERIAL COLLEGE PROJECTS LTD,336,CORONER'S,PROFESSIONAL FEES,5902411743,1000080106
02.04.2020,CUSTOMER EXPERIENCE HGF,IMPERIAL COLLEGE PROJECTS LTD,432,CORONER'S,PROFESSIONAL FEES,5902411769,1000080106
02.04.2020,CUSTOMER EXPERIENCE HGF,IMPERIAL COLLEGE PROJECTS LTD,432,CORONER'S,PROFESSIONAL FEES,5902411780,1000080106
02.04.2020,CUSTOMER EXPERIENCE HGF,IMPERIAL COLLEGE PROJECTS LTD,468,CORONER'S,PROFESSIONAL FEES,5902411739,1000080106
02.04.2020,CUSTOMER EXPERIENCE HGF,IMPERIAL COLLEGE PROJECTS LTD,512,CORONER'S,PROFESSIONAL FEES,5902411716,1000080106
02.04.2020,CUSTOMER EXPERIENCE HGF,TAAKSVALE HOUSING LTD,"82,783.85",NIGHTLY TA (NSC),EXTERNAL AGENCIES AND BODIES,5902411648,1000073665
02.04.2020,CUSTOMER EXPERIENCE HGF,WENTWORTH HOUSING LTD,"1,593.47",PSL PLACEMENTS,EXTERNAL AGENCIES AND BODIES,5902411776,1000083640
02.04.2020,CUSTOMER EXPERIENCE HGF,WENTWORTH HOUSING LTD,"8,000.00",PSL PLACEMENTS,EXTERNAL AGENCIES AND BODIES,5902411772,1000083640
02.04.2020,CUSTOMER EXPERIENCE HGF,CITYGLEN LTD,"1,085.00",RAPID REHOUSING,EXTERNAL AGENCIES AND BODIES,5902411609,1000026239
02.04.2020,CUSTOMER EXPERIENCE HGF,CITYGLEN LTD,"1,085.00",RAPID REHOUSING,EXTERNAL AGENCIES AND BODIES,5902411612,1000026239
02.04.2020,CUSTOMER EXPERIENCE HGF,CITYGLEN LTD,"1,085.00",RAPID REHOUSING,EXTERNAL AGENCIES AND BODIES,5902411617,1000026239
02.04.2020,CUSTOMER EXPERIENCE HGF,CITYGLEN LTD,"1,085.00",RAPID REHOUSING,EXTERNAL AGENCIES AND BODIES,5902411622,1000026239
02.04.2020,ENVIRONMENT AND LEISURE,CARTER JONAS LLP,"1,605.00",CAPITAL PS (LEISURE),CONSTRUCTION FEES,5902411593,1000073124
02.04.2020,ENVIRONMENT AND LEISURE,ALLEN ARCHAEOLOGY LTD,"3,970.00",CAPITAL PS (LEISURE),CONSTRUCTION FEES,5902411595,1000082295
02.04.2020,ENVIRONMENT AND LEISURE,THOMAS FORD AND PARTNERS,"11,625.93",CAPITAL PS (LEISURE),CONSTRUCTION FEES  - EXTERNAL,5902411686,1000037686
02.04.2020,ENVIRONMENT DIRECTORATE,AUTOMOTIVE LEASING,281.89,CAR LEASING CTRL A/C,VEHICLE LEASING CHARGES,5902411651,11014756
02.04.2020,ENVIRONMENT DIRECTORATE,ARNOLD CLARK VEHICLE MANAGEMENT,305.32,CAR LEASING CTRL A/C,VEHICLE LEASING CHARGES,5902411606,1000079116
02.04.2020,ENVIRONMENT DIRECTORATE,ARNOLD CLARK VEHICLE MANAGEMENT,311.03,CAR LEASING CTRL A/C,VEHICLE LEASING CHARGES,5902411604,1000079116
02.04.2020,ENVIRONMENT DIRECTORATE,ARNOLD CLARK VEHICLE MANAGEMENT,333.07,CAR LEASING CTRL A/C,VEHICLE LEASING CHARGES,5902411604,1000079116
02.04.2020,ENVIRONMENT DIRECTORATE,ARNOLD CLARK VEHICLE MANAGEMENT,334.89,CAR LEASING CTRL A/C,VEHICLE LEASING CHARGES,5902411606,1000079116
02.04.2020,ENVIRONMENT DIRECTORATE,ARNOLD CLARK VEHICLE MANAGEMENT,523.05,CAR LEASING CTRL A/C,VEHICLE LEASING CHARGES,5902411608,1000079116
02.04.2020,ENVIRONMENT DIRECTORATE,ARNOLD CLARK VEHICLE MANAGEMENT,574.8,CAR LEASING CTRL A/C,VEHICLE LEASING CHARGES,5902411608,1000079116
02.04.2020,ENVIRONMENT DIRECTORATE,AUTOMOTIVE LEASING,"7,367.01",COMMERCIAL VEH CTRL A/C,HIRED VEHICLES,5902411642,11014756
02.04.2020,ENVIRONMENT DIRECTORATE,AUTOMOTIVE LEASING,"39,933.13",COMMERCIAL VEH CTRL A/C,HIRED VEHICLES,5902411639,11014756
02.04.2020,ENVIRONMENT DIRECTORATE,I.S & G STEEL STOCKHOLDER LTD,405.5,ENGINEERING CRAFTS,MATERIALS,5902411765,1028293
02.04.2020,ENVIRONMENT DIRECTORATE,I.S & G STEEL STOCKHOLDER LTD,812.5,ENGINEERING CRAFTS,MATERIALS,5902411763,1028293
02.04.2020,ENVIRONMENT DIRECTORATE,PURPOSE POWDER COATINGS LTD,353.04,ENGINEERING CRAFTS,MATERIALS,5902411768,1000059450
02.04.2020,ENVIRONMENT DIRECTORATE,PURPOSE POWDER COATINGS LTD,764.47,ENGINEERING CRAFTS,MATERIALS,5902411766,1000059450
02.04.2020,ENVIRONMENT DIRECTORATE,ENVIRO TECHNOLOGY SERVICES PLC,"1,171.75",ENVIRONMENTAL PROTECTION,EQUIPMENT PURCHASE & REPAIR,5902411684,1000005024
02.04.2020,ENVIRONMENT DIRECTORATE,SYPOL LTD,"1,740.00",HEALTH & SAFETY,MEDICAL / HEALTH & SAFETY SERVICES,5902411682,1000071002
02.04.2020,ENVIRONMENT DIRECTORATE,CONWAY AECOM LTD,"257,425.87",HIGHWAY MAINTENANCE OVERHEADS,HIGHWAYS TERM CONTRACT,2103082334,3000001595
02.04.2020,ENVIRONMENT DIRECTORATE,TRAVIS PERKINS TRADING COMPANY LTD,364.42,NUNHEAD DD,MATERIALS,5902411745,1514319
02.04.2020,ENVIRONMENT DIRECTORATE,TYCO INTEGRATED FIRE & SECURITY,"11,704.00",PARKING & CAR PARKS CCTV,PROFESSIONAL FEES,5902411072,1000077948
02.04.2020,ENVIRONMENT DIRECTORATE,CONWAY AECOM LTD,"1,933.84",PARKING OVERHEADS,OTHER CONTRACTORS,2103082329,3000001595
02.04.2020,ENVIRONMENT DIRECTORATE,ZIMBELL LIMITED,"2,316.60",PUBLIC LIGHTING,OTHER CONTRACTORS,5902411793,1000084144
02.04.2020,ENVIRONMENT DIRECTORATE,CABLE TEST LTD,"13,694.52",PUBLIC LIGHTING,SOUTHWARK DIRECT CHARGES,5902411795,1000079183
02.04.2020,ENVIRONMENT DIRECTORATE,CABLE TEST LTD,"13,732.88",PUBLIC LIGHTING,SOUTHWARK DIRECT CHARGES,5902411794,1000079183
02.04.2020,ENVIRONMENT DIRECTORATE,OFFICE DEPOT UK LTD,511.82,R & M OVERHEADS,STATIONERY,5902411674,1109426
02.04.2020,EXCHEQUER SERVICES,DSI BILLING SERVICES LTD,"1,029.68",ADMINISTRATIVE SUPPORT,POSTAGES,5902410381,1000058640
02.04.2020,EXCHEQUER SERVICES,PLANET TRAINING LIMITED,400,COUNCIL TAX,TRAINING,5902410844,1000064733
02.04.2020,EXCHEQUER SERVICES,COMMUNITY SOUTHWARK,"75,000.00",SESS,OTHER PAYMENTS FOR CLIENTS,5902410287,1000018147
02.04.2020,HOUSING & MODERNISATION,MENTAL FIGHT CLUB,"2,250.00",VCS GRANTS,GRANTS,5902411690,1000051170
02.04.2020,HOUSING GENERAL FUND,DAVID MILES & PARTNERS LTD,"5,000.00",CAPITAL PS (REGEN),CONSTRUCTION,5902410547,1000001119
02.04.2020,HOUSING GENERAL FUND,WEB-LABS LTD,"4,200.00",CAPITAL PS (STRAT SERV),ICT ACQUISITION,5902411626,1000039819
02.04.2020,HOUSING HRA,HARROW GREEN LTD,"3,000.00",CAPITAL PS (HRA),CAPITAL GRANTS,5902411669,1000076673
02.04.2020,HOUSING HRA,C&C BUILDERS LTD,"7,938.55",CAPITAL PS (HRA),CONST'N MAIN CONTRACT - NON CERTIFICATED,2103082250,3000001986
02.04.2020,HOUSING HRA,DISABILITY ADAPTIONS CONSULTANCY SERVICE T/A DACS,"8,402.00",CAPITAL PS (HRA),CONST'N MAIN CONTRACT - NON CERTIFICATED,2103082248,3000002000
02.04.2020,HOUSING HRA,ALTAIR CONSULTANCY AND ADVISORY SERVICES,"19,843.75",CAPITAL PS (HRA),CONSTRUCTION FEES,5902411720,1000080546
02.04.2020,HOUSING HRA,CALFORD SEADEN LLP,"1,000.00",CAPITAL PS (HRA),CONSTRUCTION FEES  - EXTERNAL,5902411475,1061592
02.04.2020,HOUSING HRA,BLAKEDOWN LANDSCAPES,"87,210.00",CAPITAL PS (HRA),CONSTRUCTION MAIN CONTRACT,2103082336,4005399
02.04.2020,HOUSING HRA,PRB ESTATES LTD,"29,733.56",CAPITAL PS (HRA),CONSTRUCTION MAIN CONTRACT,2103082249,3000001691
02.04.2020,HOUSING HRA,PRB ESTATES LTD,"43,098.48",CAPITAL PS (HRA),CONSTRUCTION MAIN CONTRACT,2103082247,3000001691
02.04.2020,HOUSING HRA,BSW HEATING LTD,"18,628.31",CAPITAL PS (HRA),CONSTRUCTION MAIN CONTRACT -CERTIFICATED,2103082338,3000000580
02.04.2020,HOUSING HRA,BSW HEATING LTD,"67,302.19",CAPITAL PS (HRA),CONSTRUCTION MAIN CONTRACT -CERTIFICATED,2103082337,3000000580
02.04.2020,HOUSING HRA,MARTIN ARNOLD LTD,"2,575.50",CAPITAL PS (REGEN),CONSTRUCTION SITE COSTS,5902411656,1000076993
02.04.2020,HOUSING HRA,MARTIN ARNOLD LTD,"13,097.32",CAPITAL PS (REGEN),CONSTRUCTION SITE COSTS,5902411659,1000076993
02.04.2020,LAW & DEMOCRACY,LEXISNEXIS UK,950,LEGAL SVCES MANAGEMENT,TRAINING,5902411770,11328752
02.04.2020,LEISURE DIRECTORATE,RANDALL SHAW BILLINGHAM LTD,"1,893.42",ACCOMMODATION,BUILDING R&M,5902411685,1000057014
02.04.2020,LEISURE DIRECTORATE,NPOWER LTD,686.93,BURGESS AREA TEAM,ELECTRICITY,5902411619,1000078994
02.04.2020,LEISURE DIRECTORATE,NPOWER LTD,695.86,BURGESS AREA TEAM,ELECTRICITY,5902411645,1000078994
02.04.2020,LEISURE DIRECTORATE,NPOWER LTD,709.83,BURGESS AREA TEAM,ELECTRICITY,5902411629,1000078994
02.04.2020,LEISURE DIRECTORATE,NPOWER LTD,709.83,BURGESS AREA TEAM,ELECTRICITY,5902411633,1000078994
02.04.2020,LEISURE DIRECTORATE,NPOWER LTD,719.05,BURGESS AREA TEAM,ELECTRICITY,5902411605,1000078994
02.04.2020,LEISURE DIRECTORATE,GRISTWOOD & TOMS LTD,"40,632.00",EMERGENCY TREES RECOVERY PROJECT,OTHER CONTRACTORS,5902411667,1000028580
02.04.2020,LEISURE DIRECTORATE,C S G (USHERS) LTD,"8,885.00",EMERGENCY TREES RECOVERY PROJECT,OTHER CONTRACTORS,5902410445,1000073203
02.04.2020,LEISURE DIRECTORATE,C S G (USHERS) LTD,"39,245.74",EMERGENCY TREES RECOVERY PROJECT,OTHER CONTRACTORS,5902410607,1000073203
02.04.2020,LEISURE DIRECTORATE,ADVANCED TREE SERVICES LTD,"21,185.00",EMERGENCY TREES RECOVERY PROJECT,OTHER CONTRACTORS,5902411662,1000079711
02.04.2020,LEISURE DIRECTORATE,SPORTS AND LEISURE MANAGEMENT LTD,"150,000.00",FACILITIES MANAGEMENT,OTHER CONTRACTORS,5902410888,1000077862
02.04.2020,LEISURE DIRECTORATE,PITCHWORKS LTD,"2,690.00",HOMERSTALL ROAD SPORTS GROUND,BUILDING R&M,5902408595,1000076383
02.04.2020,LEISURE DIRECTORATE,SHARPE PRITCHARD LLP,"4,474.00",PARKS SERVICES DEVELOPMENT,PAYMENTS FOR LEGAL SERVICES,5902411701,1790085
02.04.2020,LEISURE DIRECTORATE,GRISTWOOD & TOMS LTD,320,TREES RECOVERY PROJECT,OTHER CONTRACTORS,5902411665,1000028580
02.04.2020,LEISURE DIRECTORATE,GRISTWOOD & TOMS LTD,460,TREES RECOVERY PROJECT,OTHER CONTRACTORS,5902411658,1000028580
02.04.2020,LEISURE DIRECTORATE,GRISTWOOD & TOMS LTD,"1,055.00",TREES RECOVERY PROJECT,OTHER CONTRACTORS,5902411660,1000028580
02.04.2020,MODERNISATION HGF,BALCAS TIMBER LTD,"3,484.00",160 TOOLEY ST.,OIL,5902411135,1000062808
02.04.2020,MODERNISATION HGF,TMP (UK) LIMITED,685,ADVERTISING,RECRUITMENT ADVERTISING,5902411752,1000041810
02.04.2020,MODERNISATION HGF,KORN FERRY HAY GROUP LTD,"10,350.00",HR PAYROLL COSTS,PAYMENTS FOR PERSONNEL MANAGEMENT SERVS,5902411636,1000079084
02.04.2020,MODERNISATION HGF,GATENBY SANDERSON LTD,"6,500.00",IT MANAGEMENT,OTHER EMPLOYEE EXPENSES,5902411708,1000061171
02.04.2020,MODERNISATION HGF,JOHN STATTERS ASSOCIATES,"5,462.50",OCCUPATIONAL ASSESSMENT,CONSULTANTS SERVICES,5902411615,1000065600
02.04.2020,MODERNISATION HGF,COMENSURA LTD,"3,840.12",WEEKLY PAYMENTS,AGENCY STAFF,5902411734,1000051261
02.04.2020,MODERNISATION HGF,COMENSURA LTD,"648,681.78",WEEKLY PAYMENTS,AGENCY STAFF,5902411738,1000051261
02.04.2020,PUBLIC HEALTH,IN YOUR ELEMENT LTD,"7,350.00",BEHAVIOURAL AND DIGITAL HEALTH TEAM,EXTERNAL AGENCIES AND BODIES,5902411676,1000084119
02.04.2020,REGENERATION,BNP PARIBAS REAL ESTATE ADVISORY & PROPERTY MANAGEMENT,"2,715.90",9 HOLYROOD STREET,PROFESSIONAL FEES,5902411623,1000053153
02.04.2020,REGENERATION,SOCIAL LIFE LTD,"18,700.00",MASTER PLAN-H/WAY & TRANS INTERCHANGE,PROFESSIONAL FEES,5902411762,1000084157
02.04.2020,REPORTING & TREASURY,THE BANK OF NEW YORK MELLON,907.77,CASH MANAGERS' COSTS,PROFESSIONAL FEES,5902411675,1000072540
02.04.2020,RESIDENT SERVICES,OFFICE DEPOT UK LTD,441.62,OPERATIONS/OFFICES ACCOMMODATION,STATIONERY,5902411700,1109426
02.04.2020,RESIDENT SERVICES,SOUTH OF THE RIVER INVESTMENTS LTD,"2,571.90",TA PLACEMENTS,EXTERNAL AGENCIES AND BODIES,5902411661,1000073638
02.04.2020,RESIDENT SERVICES,TAAKSVALE HOUSING LTD,"2,615.00",TA PLACEMENTS,EXTERNAL AGENCIES AND BODIES,5902411742,1000073665
02.04.2020,RESIDENT SERVICES,CROWN HOUSING LTD,"1,319.50",TA PLACEMENTS,EXTERNAL AGENCIES AND BODIES,5902411649,1000075070
02.04.2020,SOUTHWARK BUILDING SERVICES,A T & T (GB LTD ),510,STORES/LOGISTICS,CREDITORS -GR/IR CLEARING ACCOUNT,5902411748,1000078342
02.04.2020,SOUTHWARK BUILDING SERVICES,A T & T (GB LTD ),738,STORES/LOGISTICS,CREDITORS -GR/IR CLEARING ACCOUNT,5902411748,1000078342
02.04.2020,SOUTHWARK BUILDING SERVICES,A T & T (GB LTD ),810,STORES/LOGISTICS,CREDITORS -GR/IR CLEARING ACCOUNT,5902411748,1000078342
02.04.2020,SOUTHWARK BUILDING SERVICES,A T & T (GB LTD ),954.5,STORES/LOGISTICS,CREDITORS -GR/IR CLEARING ACCOUNT,5902411748,1000078342
02.04.2020,SOUTHWARK BUILDING SERVICES,A T & T (GB LTD ),"1,360.00",STORES/LOGISTICS,CREDITORS -GR/IR CLEARING ACCOUNT,5902411755,1000078342
02.04.2020,SOUTHWARK BUILDING SERVICES,A T & T (GB LTD ),"1,535.50",STORES/LOGISTICS,CREDITORS -GR/IR CLEARING ACCOUNT,5902411750,1000078342
02.04.2020,SOUTHWARK BUILDING SERVICES,A T & T (GB LTD ),"1,722.00",STORES/LOGISTICS,CREDITORS -GR/IR CLEARING ACCOUNT,5902411753,1000078342
02.04.2020,SOUTHWARK SCHOOL FOR FUTURE,FAITHFUL & GOULD,"13,625.00",CAPITAL PS (REGEN),CONSTRUCTION FEES,5902410581,1000061390
03.04.2020,ADULT SOCIAL CARE,REDACTED PERSONAL DATA,488,APPOINTEESHIPS,OTHER PAYMENTS FOR CLIENTS,REDACTED,REDACTED
03.04.2020,ADULT SOCIAL CARE,SAFE STEPS LIMITED,"20,000.00",EXTERNALLY FUNDED PROJECTS,SUBSCRIPTIONS,5902410821,1000084093
03.04.2020,ADULT SOCIAL CARE,KENT COUNTY COUNCIL - LASER,"1,533.57",FRED FRANCIS CENTRE,ELECTRICITY,5902411819,1000012926
03.04.2020,ADULT SOCIAL CARE,KENT COUNTY COUNCIL - LASER,"1,721.96",FRED FRANCIS CENTRE,ELECTRICITY,5902411821,1000012926
03.04.2020,ADULT SOCIAL CARE,THAMES HOMECARE SERVICE LTD,626.5,MEM LTS 18-64,HOMECARE - C&V,2103082423,1000079295
03.04.2020,ADULT SOCIAL CARE,THAMES HOMECARE SERVICE LTD,317.73,MH LTS 18-64,HOMECARE - SPOT,2103082454,1000079295
03.04.2020,ADULT SOCIAL CARE,THAMES HOMECARE SERVICE LTD,286.4,PHY LTS 18-64,HOMECARE - SPOT,2103082433,1000079295
03.04.2020,ADULT SOCIAL CARE,THAMES HOMECARE SERVICE LTD,322.2,PHY LTS 18-64,HOMECARE - SPOT,2103082477,1000079295
03.04.2020,ADULT SOCIAL CARE,THAMES HOMECARE SERVICE LTD,380.38,PHY LTS 18-64,HOMECARE - SPOT,2103082480,1000079295
03.04.2020,ADULT SOCIAL CARE,THAMES HOMECARE SERVICE LTD,563.85,PHY LTS 18-64,HOMECARE - SPOT,2103082406,1000079295
03.04.2020,ADULT SOCIAL CARE,THAMES HOMECARE SERVICE LTD,563.85,PHY LTS 18-64,HOMECARE - SPOT,2103082475,1000079295
03.04.2020,ADULT SOCIAL CARE,THAMES HOMECARE SERVICE LTD,626.5,PHY LTS 18-64,HOMECARE - SPOT,2103082474,1000079295
03.04.2020,ADULT SOCIAL CARE,THAMES HOMECARE SERVICE LTD,639.93,PHY LTS 18-64,HOMECARE - SPOT,2103082407,1000079295
03.04.2020,ADULT SOCIAL CARE,THAMES HOMECARE SERVICE LTD,581.75,PHY LTS 65+,HOMECARE - C&V,2103082460,1000079295
03.04.2020,ADULT SOCIAL CARE,THAMES HOMECARE SERVICE LTD,250.6,PHY LTS 65+,HOMECARE - SPOT,2103082416,1000079295
03.04.2020,ADULT SOCIAL CARE,THAMES HOMECARE SERVICE LTD,255.08,PHY LTS 65+,HOMECARE - SPOT,2103082450,1000079295
03.04.2020,ADULT SOCIAL CARE,THAMES HOMECARE SERVICE LTD,268.5,PHY LTS 65+,HOMECARE - SPOT,2103082413,1000079295
03.04.2020,ADULT SOCIAL CARE,THAMES HOMECARE SERVICE LTD,281.93,PHY LTS 65+,HOMECARE - SPOT,2103082420,1000079295
03.04.2020,ADULT SOCIAL CARE,THAMES HOMECARE SERVICE LTD,281.93,PHY LTS 65+,HOMECARE - SPOT,2103082437,1000079295
03.04.2020,ADULT SOCIAL CARE,THAMES HOMECARE SERVICE LTD,281.93,PHY LTS 65+,HOMECARE - SPOT,2103082467,1000079295
03.04.2020,ADULT SOCIAL CARE,THAMES HOMECARE SERVICE LTD,286.4,PHY LTS 65+,HOMECARE - SPOT,2103082478,1000079295
03.04.2020,ADULT SOCIAL CARE,THAMES HOMECARE SERVICE LTD,344.58,PHY LTS 65+,HOMECARE - SPOT,2103082411,1000079295
03.04.2020,ADULT SOCIAL CARE,THAMES HOMECARE SERVICE LTD,344.58,PHY LTS 65+,HOMECARE - SPOT,2103082432,1000079295
03.04.2020,ADULT SOCIAL CARE,THAMES HOMECARE SERVICE LTD,407.23,PHY LTS 65+,HOMECARE - SPOT,2103082449,1000079295
03.04.2020,ADULT SOCIAL CARE,THAMES HOMECARE SERVICE LTD,438.55,PHY LTS 65+,HOMECARE - SPOT,2103082481,1000079295
03.04.2020,ADULT SOCIAL CARE,THAMES HOMECARE SERVICE LTD,501.2,PHY LTS 65+,HOMECARE - SPOT,2103082431,1000079295
03.04.2020,ADULT SOCIAL CARE,THAMES HOMECARE SERVICE LTD,501.2,PHY LTS 65+,HOMECARE - SPOT,2103082473,1000079295
03.04.2020,ADULT SOCIAL CARE,THAMES HOMECARE SERVICE LTD,537,PHY LTS 65+,HOMECARE - SPOT,2103082427,1000079295
03.04.2020,ADULT SOCIAL CARE,THAMES HOMECARE SERVICE LTD,559.38,PHY LTS 65+,HOMECARE - SPOT,2103082479,1000079295
03.04.2020,ADULT SOCIAL CARE,THAMES HOMECARE SERVICE LTD,563.85,PHY LTS 65+,HOMECARE - SPOT,2103082440,1000079295
03.04.2020,ADULT SOCIAL CARE,THAMES HOMECARE SERVICE LTD,563.85,PHY LTS 65+,HOMECARE - SPOT,2103082453,1000079295
03.04.2020,ADULT SOCIAL CARE,THAMES HOMECARE SERVICE LTD,563.85,PHY LTS 65+,HOMECARE - SPOT,2103082469,1000079295
03.04.2020,ADULT SOCIAL CARE,THAMES HOMECARE SERVICE LTD,599.65,PHY LTS 65+,HOMECARE - SPOT,2103082487,1000079295
03.04.2020,ADULT SOCIAL CARE,THAMES HOMECARE SERVICE LTD,653.35,PHY LTS 65+,HOMECARE - SPOT,2103082408,1000079295
03.04.2020,ADULT SOCIAL CARE,THAMES HOMECARE SERVICE LTD,689.15,PHY LTS 65+,HOMECARE - SPOT,2103082424,1000079295
03.04.2020,ADULT SOCIAL CARE,THAMES HOMECARE SERVICE LTD,702.58,PHY LTS 65+,HOMECARE - SPOT,2103082476,1000079295
03.04.2020,ADULT SOCIAL CARE,THAMES HOMECARE SERVICE LTD,783.13,PHY LTS 65+,HOMECARE - SPOT,2103082455,1000079295
03.04.2020,ADULT SOCIAL CARE,THAMES HOMECARE SERVICE LTD,836.83,PHY LTS 65+,HOMECARE - SPOT,2103082448,1000079295
03.04.2020,ADULT SOCIAL CARE,THAMES HOMECARE SERVICE LTD,841.3,PHY LTS 65+,HOMECARE - SPOT,2103082451,1000079295
03.04.2020,ADULT SOCIAL CARE,THAMES HOMECARE SERVICE LTD,"1,029.25",PHY LTS 65+,HOMECARE - SPOT,2103082472,1000079295
03.04.2020,ADULT SOCIAL CARE,THAMES HOMECARE SERVICE LTD,"1,458.85",PHY LTS 65+,HOMECARE - SPOT,2103082428,1000079295
03.04.2020,ADULT SOCIAL CARE,THAMES HOMECARE SERVICE LTD,313.25,PHY STS 18-64,HOMECARE - IC,2103082489,1000079295
03.04.2020,ADULT SOCIAL CARE,THAMES HOMECARE SERVICE LTD,456.45,PHY STS 65+,HOMECARE - IC,2103082435,1000079295
03.04.2020,ADULT SOCIAL CARE,KIDS,354,SPECIALIST CARE,SECTION 17 PAYMENTS TO AGENCIES/CARERS,2103082387,1000030036
03.04.2020,ADULT SOCIAL CARE,CONTACT PROFESSIONALS,285,SPECIALIST CARE,SECTION 17 PAYMENTS TO AGENCIES/CARERS,2103082382,1000057263
03.04.2020,ADULT SOCIAL CARE,CONTACT PROFESSIONALS,285,SPECIALIST CARE,SECTION 17 PAYMENTS TO AGENCIES/CARERS,2103082391,1000057263
03.04.2020,ADULT SOCIAL CARE,METRO HOMECARE LTD,334.8,SPECIALIST CARE,SECTION 17 PAYMENTS TO AGENCIES/CARERS,2103082385,1000070695
03.04.2020,ADULT SOCIAL CARE,METRO HOMECARE LTD,334.8,SPECIALIST CARE,SECTION 17 PAYMENTS TO AGENCIES/CARERS,2103082389,1000070695
03.04.2020,ADULT SOCIAL CARE,HCP STAFFING SERVICES LTD,254.22,SPECIALIST CARE,SECTION 17 PAYMENTS TO AGENCIES/CARERS,2103082384,1000078329
03.04.2020,ADULT SOCIAL CARE,HCP STAFFING SERVICES LTD,306.65,SPECIALIST CARE,SECTION 17 PAYMENTS TO AGENCIES/CARERS,2103082392,1000078329
03.04.2020,ADULT SOCIAL CARE,SHARED CARE SERVICES LTD,360,SPECIALIST CARE,SECTION 17 PAYMENTS TO AGENCIES/CARERS,2103082383,1000080308
03.04.2020,CENTRAL FUNCTIONS,KENT COUNTY COUNCIL - LASER,380.78,HEATING ACCOUNT,GAS,5902411895,1000012926
03.04.2020,CENTRAL FUNCTIONS,KENT COUNTY COUNCIL - LASER,"482,422.84",HEATING ACCOUNT,GAS,5902411895,1000012926
03.04.2020,CHIEF EXECUTIVE,WALWORTH HOMES LTD,"345,112.81",CAPITAL PS (REGEN),CONST'N MAIN CONTRACT - NON CERTIFICATED,5902410171,1000079197
03.04.2020,CHIEF EXECUTIVE,WALWORTH HOMES LTD,"856,469.39",CAPITAL PS (REGEN),CONST'N MAIN CONTRACT - NON CERTIFICATED,5902410171,1000079197
03.04.2020,CHIEF EXECUTIVE,WALWORTH HOMES LTD,"27,127.84",CAPITAL PS (REGEN),CONSTRUCTION FEES,5902410171,1000079197
03.04.2020,CHIEF EXECUTIVE,WALWORTH HOMES LTD,"224,961.88",CAPITAL PS (REGEN),CONSTRUCTION FEES,5902410171,1000079197
03.04.2020,CHIEF EXECUTIVE,WARWICK LANDSCAPING LTD,"1,333.65",CAPITAL PS (REGEN),CONSTRUCTION FEES,2103082502,3000001705
03.04.2020,CHIEF EXECUTIVE,HIVE CONSULTANTS  LIMITED,"2,000.00",CAPITAL PS (REGEN),CONSTRUCTION FEES - QUANTITY SURVEYOR,5902411881,1000083878
03.04.2020,CHIEF EXECUTIVE,CONTAINER TRAK LTD,383.08,CAPITAL PS (REGEN),CONSTRUCTION SUB CONTRACT -CERTIFICATED,5902411890,1000058576
03.04.2020,CHIEF EXECUTIVE,CONTAINER TRAK LTD,"1,450.00",CAPITAL PS (REGEN),CONSTRUCTION SUB CONTRACT -CERTIFICATED,5902411890,1000058576
03.04.2020,CHIEF EXECUTIVE'S OFFICE,UNITY WORKS SOCIAL ENTERPRISES,"-37,968.00",CHIEF EXECUTIVE'S OFFICE,EXTERNAL AGENCIES AND BODIES,5902411909,1000083486
03.04.2020,CHIEF EXECUTIVE'S OFFICE,UNITY WORKS SOCIAL ENTERPRISES,-266.42,CHIEF EXECUTIVE'S OFFICE,EXTERNAL AGENCIES AND BODIES,5902411909,1000083486
03.04.2020,CHIEF EXECUTIVE'S OFFICE,UNITY WORKS SOCIAL ENTERPRISES,"38,234.42",CHIEF EXECUTIVE'S OFFICE,EXTERNAL AGENCIES AND BODIES,5902411912,1000083486
03.04.2020,CHIEF EXECUTIVE'S OFFICE,AUTSERA LTD,"4,994.00",SOUTHWARK PIONEER FUND,GRANTS,5902410847,1000084069
03.04.2020,CHIEF EXECUTIVE'S OFFICE,CLUED UP CUP AND PLATE LTD,"5,000.00",SOUTHWARK PIONEER FUND,GRANTS,5902411127,1000084074
03.04.2020,CHIEF EXECUTIVE'S OFFICE,BRING YOUR OWN LTD,"5,000.00",SOUTHWARK PIONEER FUND,GRANTS,5902411807,1000084103
03.04.2020,CHILDREN AND ADULT,FAITHFUL & GOULD,"22,262.78",CAPITAL PS (EDUCATION),CONSTRUCTION FEES,5902411891,1000061390
03.04.2020,CHILDREN'S SERVICES,CATCH 22 CHARITY LTD,"2,995.00",CATCH 22 INNOVATION GRANT,EXTERNAL AGENCIES AND BODIES,5902411914,1000061518
03.04.2020,CHILDREN'S SERVICES,REDACTED PERSONAL DATA,834,DISABILITY & HIV,PAYMENTS TO CARERS,REDACTED,REDACTED
03.04.2020,CHILDREN'S SERVICES,HILARY KENNEDY,320,EDUCATIONAL PSYCHOLOGY - SEND,TRAINING,5902411877,1000079589
03.04.2020,CHILDREN'S SERVICES,HILARY KENNEDY,500,EDUCATIONAL PSYCHOLOGY - SEND,TRAINING,5902411877,1000079589
03.04.2020,CHILDREN'S SERVICES,HILARY KENNEDY,"1,130.00",EDUCATIONAL PSYCHOLOGY - SEND,TRAINING,5902411877,1000079589
03.04.2020,CHILDREN'S SERVICES,SYNERGY FOSTERING LTD,"4,031.00",FRIENDS & FAMILY FOSTERING,EXTERNAL AGENCIES AND BODIES,2103082402,1000031559
03.04.2020,CHILDREN'S SERVICES,MIME CONSULTING LTD,"7,333.33",MANAGEMENT AND SUPPORT,PROFESSIONAL FEES,5902411882,1000057079
03.04.2020,CHILDREN'S SERVICES,BRADFIELDS ACADEMY,"1,500.00",PUPIL PREMIUM CURRENT YEAR,SCHOOLS CAPITATION,2103082496,1000072256
03.04.2020,CHILDREN'S SERVICES,THE CHARTER SCHOOL EDUCATIONAL TRUST,"1,792.50",PUPIL PREMIUM CURRENT YEAR,SCHOOLS CAPITATION,2103082491,1000079578
03.04.2020,CHILDREN'S SERVICES,HERON HALL ACADEMY C/O HARMONY HSE CUCKOO HALL ACADEMIES TRUST,"1,440.00",PUPIL PREMIUM CURRENT YEAR,SCHOOLS CAPITATION,2103082497,1000084154
03.04.2020,CHILDREN'S SERVICES,THE BOSWELLS SCHOOL,"1,493.49",PUPIL PREMIUM CURRENT YEAR,SCHOOLS CAPITATION,2103082495,1000084151
03.04.2020,CHILDREN'S SERVICES,BEAN PRIMARY SCHOOL,"1,328.75",PUPIL PREMIUM CURRENT YEAR,SCHOOLS CAPITATION,2103082498,1000084152
03.04.2020,CHILDREN'S SERVICES,VIRGO FIDELIS CONVENT SENIOR SCHOOL,400,PUPIL PREMIUM CURRENT YEAR,SCHOOLS CAPITATION,2103082493,1000084153
03.04.2020,CHILDREN'S SERVICES,DOG KENNEL HILL PRIMARY SCHOOL,"3,000.00",PUPIL PREMIUM CURRENT YEAR,SCHOOLS CAPITATION,2103082492,5001000025
03.04.2020,CHILDREN'S SERVICES,GRANGE PRIMARY SCHOOL,"2,430.00",PUPIL PREMIUM CURRENT YEAR,SCHOOLS CAPITATION,2103082490,5001000029
03.04.2020,CHILDREN'S SERVICES,TUKE SCHOOL,"1,125.00",PUPIL PREMIUM CURRENT YEAR,SCHOOLS CAPITATION,2103082494,5001000097
03.04.2020,CHILDREN'S SERVICES,HM PRISON & PROBATION SERVICE,"3,692.00",REMAND - YDA STC & SCH,RESIDENTIAL CARE,5902411565,1000083827
03.04.2020,CHILDREN'S SERVICES,HM PRISON & PROBATION SERVICE,"17,748.00",REMAND - YDA STC & SCH,RESIDENTIAL CARE,5902411557,1000083827
03.04.2020,CHILDREN'S SERVICES,ZENITH CARS LTD,630,S & FAM SUPP - PRAC GRP B SET 17-19,HIRED VEHICLES,5902411837,1000070570
03.04.2020,CHILDREN'S SERVICES,CARE O LINE,"1,050.00",S & FAM SUPP - PRAC GRP B SET 17-19,OTHER PAYMENTS FOR CLIENTS,2103082395,11241743
03.04.2020,CHILDREN'S SERVICES,CARE O LINE,"1,050.00",S & FAM SUPP - PRAC GRP B SET 17-19,OTHER PAYMENTS FOR CLIENTS,2103082396,11241743
03.04.2020,CHILDREN'S SERVICES,CARE O LINE,"1,050.00",S & FAM SUPP - PRAC GRP B SET 17-19,OTHER PAYMENTS FOR CLIENTS,2103082397,11241743
03.04.2020,CHILDREN'S SERVICES,CARE O LINE,"1,050.00",S & FAM SUPP - PRAC GRP B SET 17-19,OTHER PAYMENTS FOR CLIENTS,2103082398,11241743
03.04.2020,CHILDREN'S SERVICES,CARE O LINE,"1,050.00",S & FAM SUPP - PRAC GRP B SET 17-19,OTHER PAYMENTS FOR CLIENTS,2103082399,11241743
03.04.2020,CHILDREN'S SERVICES,ORCHID CELLMARK LTD,643,S & FAM SUPP - PRAC GRP E SET 26-28,OTHER PAYMENTS FOR CLIENTS,5902410780,1000078050
03.04.2020,CHILDREN'S SERVICES,ZENITH CARS LTD,"2,343.00",S & FAM SUPP - PRAC GRP F SET 29-31,HIRED VEHICLES,5902411837,1000070570
03.04.2020,CHILDREN'S SERVICES,MADEIRA FLOWER LTD T/A MARIAS KITCHEN,343.6,SCHOOLS-HR TRADED SERVICE,REFRESHMENTS FOR MEETINGS,5902411897,1000058840
03.04.2020,CHILDREN'S SERVICES,BEHAVIOURAL INSIGHTS LTD,900,SCHOOLS-HR TRADED SERVICE,REMOVAL EXPENSES,5902411893,1000079494
03.04.2020,CHILDREN'S SERVICES,FINEFAIR LTD,"1,687.33",SEMI INDEPENDENT CARE LEAVERS,EXTERNAL AGENCIES AND BODIES,2103082394,1000075570
03.04.2020,CHILDREN'S SERVICES,SYDNEY CARE LTD,300,SEMI INDEPENDENT LAC,OTHER PAYMENTS FOR CLIENTS,2103082401,1000081598
03.04.2020,CHILDREN'S SERVICES,REAL LIFE CARE LTD,300,SEMI INDEPENDENT LAC,OTHER PAYMENTS FOR CLIENTS,2103082400,1000083556
03.04.2020,CHILDREN'S SERVICES,REDACTED PERSONAL DATA,"2,713.97",SPECIAL GUARDIANSHIP,PAYMENTS TO CARERS,REDACTED,REDACTED
03.04.2020,COMMUNITIES PROJECTS,S7 CHAUFFEURS LTD,"1,497.00",MAYORAL SUPPORT,HIRED VEHICLES,5902411878,1000075707
03.04.2020,COMMUNITIES PROJECTS,S7 CHAUFFEURS LTD,"3,053.50",MAYORAL SUPPORT,HIRED VEHICLES,5902411879,1000075707
03.04.2020,COMMUNITIES PROJECTS,THAMES HOMECARE SERVICE LTD,281.93,NO RECOURSE TO PUBLIC FUNDS,HOMECARE - C&V,2103082438,1000079295
03.04.2020,COMMUNITIES PROJECTS,THAMES HOMECARE SERVICE LTD,"1,315.65",NO RECOURSE TO PUBLIC FUNDS,HOMECARE - C&V,2103082410,1000079295
03.04.2020,COMMUNITIES PROJECTS,HOME OFFICE SHARED SERVICES CENTRE,"3,324.00",VIOLENCE AGAINST WOMEN & GIRLS,EXTERNAL AGENCIES AND BODIES,2103082501,1000058719
03.04.2020,CUSTOMER EXPERIENCE,HUNTERS CONTRACTS LTD,897,HEAD OF CUSTOMER EXPERIENCE,FURNITURE PURCHASE & REPAIR,5902411840,1000065904
03.04.2020,CUSTOMER EXPERIENCE HGF,COUNTY PRIVATE CLIENT LTD,"3,000.00",HOMELESS PROJECTS,GRANTS,5902411884,1000067619
03.04.2020,CUSTOMER EXPERIENCE HGF,HOMES2LET UK LTD,"14,398.90",NIGHTLY TA (NSC),EXTERNAL AGENCIES AND BODIES,5902411814,1000079868
03.04.2020,CUSTOMER EXPERIENCE HGF,EASYMOVE EA LIMITED,"2,000.00",PSL PLACEMENTS,EXTERNAL AGENCIES AND BODIES,5902411876,1000066859
03.04.2020,CUSTOMER EXPERIENCE HGF,EASYMOVE EA LIMITED,"5,584.64",PSL PLACEMENTS,EXTERNAL AGENCIES AND BODIES,5902411874,1000066859
03.04.2020,CUSTOMER EXPERIENCE HGF,WENTWORTH HOUSING LTD,"3,849.67",PSL PLACEMENTS,EXTERNAL AGENCIES AND BODIES,5902411883,1000083640
03.04.2020,CUSTOMER EXPERIENCE HGF,WENTWORTH HOUSING LTD,"16,000.00",PSL PLACEMENTS,EXTERNAL AGENCIES AND BODIES,5902411816,1000083640
03.04.2020,DEPT DORMANT AND DEAD CODES,KENT COUNTY COUNCIL - LASER,477.99,PLAY SOUTH,ELECTRICITY,5902410916,1000012926
03.04.2020,ENVIRONMENT & LEISURE,OUTDOOR AND CYCLE CONCEPTS LTD,997.5,ENFORCEMENT,"CLOTHING, UNIFORMS & LAUNDRY",5902410033,1000045380
03.04.2020,ENVIRONMENT DIRECTORATE,INSPIRE AT ST PETER'S LTD,332,TEAMS 1 TO 12,MISCELLANEOUS EXPENSES,5902411887,1000041565
03.04.2020,EXCHEQUER SERVICES,NORTHGATE PUBLIC SERVICES (UK) LTD,283.44,ADMINISTRATIVE SUPPORT,POSTAGES,5902411811,1000037405
03.04.2020,EXCHEQUER SERVICES,DSI BILLING SERVICES LTD,875.84,ADMINISTRATIVE SUPPORT,POSTAGES,5902410556,1000058640
03.04.2020,EXCHEQUER SERVICES,DSI BILLING SERVICES LTD,"3,406.65",ADMINISTRATIVE SUPPORT,POSTAGES,5902410556,1000058640
03.04.2020,EXCHEQUER SERVICES,DSI BILLING SERVICES LTD,"6,094.22",ADMINISTRATIVE SUPPORT,POSTAGES,5902410556,1000058640
03.04.2020,EXCHEQUER SERVICES,DSI BILLING SERVICES LTD,"29,977.84",ADMINISTRATIVE SUPPORT,POSTAGES,5902410556,1000058640
03.04.2020,EXTERNAL AFFAIRS,WEB-LABS LTD,"2,000.00",MEDIA,OFFICE EXPENSES,5902411801,1000039819
03.04.2020,HOUSING & MODERNISATION,ST FAITHS COMMUNITY CENTRE,"5,000.00",VCS GRANTS,GRANTS,5902411844,1039446
03.04.2020,HOUSING & MODERNISATION,AGE UK LEWISHAM & SOUTHWARK,"4,500.00",VCS GRANTS,GRANTS,5902411845,1507154
03.04.2020,HOUSING & MODERNISATION,TIME & TALENTS ASSOCIATION,"4,500.00",VCS GRANTS,GRANTS,5902411846,1757632
03.04.2020,HOUSING & MODERNISATION,LONDON WILDLIFE TRUST,"7,500.00",VCS GRANTS,GRANTS,5902411847,1832374
03.04.2020,HOUSING & MODERNISATION,SOUTHWARK CITIZENS ADVICE,"5,600.00",VCS GRANTS,GRANTS,5902411848,1874379
03.04.2020,HOUSING & MODERNISATION,BEORMUND COMMUNITY CENTRE,"12,437.25",VCS GRANTS,GRANTS,5902411849,11048982
03.04.2020,HOUSING & MODERNISATION,BEDE HSE,"4,500.00",VCS GRANTS,GRANTS,5902411850,11248731
03.04.2020,HOUSING & MODERNISATION,CAMBRIDGE HOUSE & TALBOT,"4,500.00",VCS GRANTS,GRANTS,5902411851,11248874
03.04.2020,HOUSING & MODERNISATION,PECAN LTD,"6,500.00",VCS GRANTS,GRANTS,5902411853,11263114
03.04.2020,HOUSING & MODERNISATION,PECAN LTD,"7,250.00",VCS GRANTS,GRANTS,5902411852,11263114
03.04.2020,HOUSING & MODERNISATION,SURREY DOCKS FARM PROVIDENT SOCIETY,"10,000.00",VCS GRANTS,GRANTS,5902411854,1000000958
03.04.2020,HOUSING & MODERNISATION,AAINA WOMEN GROUP,"8,018.25",VCS GRANTS,GRANTS,5902411855,1000002442
03.04.2020,HOUSING & MODERNISATION,BANKSIDE OPEN SPACES TRUST,"4,208.00",VCS GRANTS,GRANTS,5902411856,1000018290
03.04.2020,HOUSING & MODERNISATION,SWK DAY CTR FOR ASYLUM SEEKERS,"11,330.25",VCS GRANTS,GRANTS,5902411857,1000040491
03.04.2020,HOUSING & MODERNISATION,SOUTHWARK EVERY WOMAN'S CENTRE,"5,250.00",VCS GRANTS,GRANTS,5902411858,1000042216
03.04.2020,HOUSING & MODERNISATION,FUTURE MEN,"4,000.00",VCS GRANTS,GRANTS,5902411859,1000046010
03.04.2020,HOUSING & MODERNISATION,CRYSTAL PALACE COMM DEV TRUST,"3,000.00",VCS GRANTS,GRANTS,5902411860,1000054200
03.04.2020,HOUSING & MODERNISATION,LATIN AMERICAN DISABLED PEOPLE PROJECT,"4,000.00",VCS GRANTS,GRANTS,5902411861,1000058588
03.04.2020,HOUSING & MODERNISATION,LATIN AMERICAN WOMEN'S RIGHTS SERVICES,"4,500.00",VCS GRANTS,GRANTS,5902411863,1000068356
03.04.2020,HOUSING & MODERNISATION,PAXTON GREEN TIME BANK,"3,937.50",VCS GRANTS,GRANTS,5902411864,1000070648
03.04.2020,HOUSING & MODERNISATION,BLACKFRIARS SETTLEMENT,"4,500.00",VCS GRANTS,GRANTS,5902411865,1000071456
03.04.2020,HOUSING & MODERNISATION,BERMONDSEY COMMUNITY KITCHEN,"3,750.00",VCS GRANTS,GRANTS,5902411868,1000075477
03.04.2020,HOUSING & MODERNISATION,THE BIKE PROJECT,"3,750.00",VCS GRANTS,GRANTS,5902411870,1000077217
03.04.2020,HOUSING & MODERNISATION,SOUTHWARK TRAVELLERS' ACTION,"5,750.00",VCS GRANTS,GRANTS,5902411871,1000077795
03.04.2020,HOUSING GENERAL FUND,DOLPHIN MOBILITY LTD,"6,928.00",CAPITAL PS (HOUSING GF),CAPITAL GRANTS,5902411100,1000066371
03.04.2020,HOUSING GENERAL FUND,HUNTERS CONTRACTS LTD,300,CAPITAL PS (HOUSING GF),FURNITURE & FITTINGS ACQUISITION,5902411842,1000065904
03.04.2020,HOUSING GENERAL FUND,HUNTERS CONTRACTS LTD,"6,440.00",CAPITAL PS (HOUSING GF),FURNITURE & FITTINGS ACQUISITION,5902411842,1000065904
03.04.2020,HOUSING GENERAL FUND,TREND CONTROL SYSTEMS LTD,"5,346.56",CAPITAL PS (REGEN),CONSTRUCTION,5902411343,1000083165
03.04.2020,HOUSING GENERAL FUND,TREND CONTROL SYSTEMS LTD,"5,654.06",CAPITAL PS (REGEN),CONSTRUCTION,5902411343,1000083165
03.04.2020,HOUSING GENERAL FUND,UNIFIED CONSULTANCY LTD,"13,490.00",CAPITAL PS (REGEN),CONSTRUCTION MAIN CONTRACT,5902410907,1000081827
03.04.2020,HOUSING GENERAL FUND,STONEGROVE LIMITED,"13,522.00",CAPITAL PS (REGEN),CONSTRUCTION MAIN CONTRACT,2103080603,3000001525
03.04.2020,HOUSING HRA,BUDGETMOVES LTD,"2,385.00",CAPITAL PS (HRA),CAPITAL GRANTS,5902411724,1000083799
03.04.2020,HOUSING HRA,DISABILITY ADAPTIONS CONSULTANCY SERVICE T/A DACS,"9,725.06",CAPITAL PS (HRA),CONST'N MAIN CONTRACT - NON CERTIFICATED,2103082500,3000002000
03.04.2020,HOUSING HRA,POINT 2 SURVEYORS LTD,"3,570.00",CAPITAL PS (HRA),CONSTRUCTION FEES  - EXTERNAL,5902411802,1000076513
03.04.2020,HOUSING HRA,MARTIN ARNOLD LTD,"3,019.12",CAPITAL PS (HRA),CONSTRUCTION FEES  - EXTERNAL,5902411838,1000076993
03.04.2020,HOUSING HRA,MARTIN ARNOLD LTD,"7,454.31",CAPITAL PS (HRA),CONSTRUCTION FEES  - EXTERNAL,5902411839,1000076993
03.04.2020,HOUSING HRA,CALFORD SEADEN LLP,"3,822.00",CAPITAL PS (HRA),CONSTRUCTION FEES - EMPLOYERS AGENT,5902411094,1061592
03.04.2020,HOUSING HRA,BSW HEATING LTD,"37,350.31",CAPITAL PS (HRA),CONSTRUCTION MAIN CONTRACT -CERTIFICATED,2103082373,3000000580
03.04.2020,HOUSING HRA,KEEGANS LTD,900,CAPITAL PS (HRA),UTILITIES INSTALLATION,5902411875,1000039674
03.04.2020,HOUSING HRA,RIDGE & PARTNERS LLP,"2,450.00",CAPITAL PS (REGEN),CONSTRUCTION FEES - ENGINEER,5902411886,1000042536
03.04.2020,INSURANCE FUNDS,JOHNSON AUSTIN LTD,300,PROPERTY RELATED INSURANCE,PROFESSIONAL FEES,5902410808,1000040202
03.04.2020,LEISURE DIRECTORATE,KENT COUNTY COUNCIL - LASER,453.84,CAMBERWELL LIBRARY,GAS,5902411823,1000012926
03.04.2020,LEISURE DIRECTORATE,PRIMELEAF PROPERTIES LTD,"57,000.00",CAMBERWELL LIBRARY,SERVICE CHARGES,2103081158,3000624
03.04.2020,LEISURE DIRECTORATE,KENT COUNTY COUNCIL - LASER,-595.37,CANADA WATER LIBRARY,GAS,5902411835,1000012926
03.04.2020,LEISURE DIRECTORATE,KENT COUNTY COUNCIL - LASER,"1,124.96",CANADA WATER LIBRARY,GAS,5902411833,1000012926
03.04.2020,LEISURE DIRECTORATE,JRB ENTERPRISE LTD,"3,940.00",CLIENT SERV(GRNS MAIN),OTHER CONTRACTORS,5902411804,1000043818
03.04.2020,LEISURE DIRECTORATE,DULWICH FESTIVAL,"7,334.69",DULWICH EVENTS,GRANTS,5902411817,1000047450
03.04.2020,LEISURE DIRECTORATE,CARL TURNER ARCHITECTS LTD,"7,350.00",PARKS SERVICES DEVELOPMENT,PROFESSIONAL FEES,5902411679,1000060355
03.04.2020,LEISURE DIRECTORATE,CURVINGROAD LTD,"1,000.00",SOUTHWARK FESTIVAL FUND,OP LEASE/HIRE CHARGES:PLANT/EQUIP/FURNIT,5902411836,1000081411
03.04.2020,LEISURE DIRECTORATE,RH WROUGHT IRON,575,TREES PRINCIPAL ROADS,OTHER CONTRACTORS,2103079792,3000000680
03.04.2020,MODERNISATION HGF,TMP (UK) LIMITED,920,ADVERTISING,RECRUITMENT ADVERTISING,5902411757,1000041810
03.04.2020,MODERNISATION HGF,MAYA INFORMATION SYSTEMS LTD,"2,000.00",APPLICATIONS,CONSULTANTS SERVICES,5902411506,1000082118
03.04.2020,MODERNISATION HGF,MAYA INFORMATION SYSTEMS LTD,"2,000.00",APPLICATIONS,CONSULTANTS SERVICES,5902411506,1000082118
03.04.2020,MODERNISATION HGF,INCLUSIVE EMPLOYERS LTD,"1,970.00",CORPORATE TRAINING BUDGETS,TRAINING,5902410840,1000083490
03.04.2020,MODERNISATION HGF,INTERSERVE (FACILITIES MANAGEMENT),"6,260.55",FM SERVICES BY INTERSERVE,BUILDING R&M,5902410958,1000070792
03.04.2020,MODERNISATION HGF,WEIGHED IN PRODUCTIONS,360,MEMBER DEVELOPMENT,TRAINING,5902411896,1000083930
03.04.2020,MODERNISATION HGF,DISPOSABLES AND CATERING SUPPLIES LTD,289.52,QUEENS RD 1 (BLOCK F),OFFICE EXPENSES,5902410921,1000082869
03.04.2020,PUBLIC HEALTH,SMART HEALTH SOLUTIONS LTD,"3,610.00",HEALTH CHECKS CONTRACTS,EXTERNAL AGENCIES AND BODIES,5902410980,1000081611
03.04.2020,REGENERATION,CBS MAINTENANCE SERVICES LTD,650,5/5A WESTMINSTER BRIDGE ROAD.,BUILDING R&M,5902410880,1000072375
03.04.2020,REGENERATION,XC02 ENERGY LTD,"5,200.00",BLACKFRIARS ROAD PROJECT,PROFESSIONAL FEES,5902411899,1000050094
03.04.2020,RESIDENT SERVICES,VALLEY PROVINCIAL GROUP LLP,"19,246.83",GREAT ESTATES,BUILDING R&M,2103082512,3000001895
03.04.2020,RESIDENT SERVICES,EDF ENERGY PLC,875.12,OPERATIONS/OFFICES ACCOMMODATION,ELECTRICITY,5902411808,1008746
03.04.2020,RESIDENT SERVICES,INTEGRITY PRINT LTD,895,PARKING CONTROL,STATIONERY,5902411800,1000083286
03.04.2020,RESIDENT SERVICES,INTEGRITY PRINT LTD,"1,499.00",PARKING CONTROL,STATIONERY,5902411799,1000083286
03.04.2020,RESIDENT SERVICES,KENT COUNTY COUNCIL - LASER,"2,745.04",TA HOSTELS,ELECTRICITY,5902410858,1000012926
03.04.2020,RESIDENT SERVICES,TAAKSVALE HOUSING LTD,"2,194.00",TA PLACEMENTS,EXTERNAL AGENCIES AND BODIES,5902411824,1000073665
03.04.2020,RESIDENT SERVICES,TAAKSVALE HOUSING LTD,"4,138.00",TA PLACEMENTS,EXTERNAL AGENCIES AND BODIES,5902411798,1000073665
04.04.2020,CHIEF EXECUTIVE,BRESLIN CONSTRUCTION LTD,"7,000.00",CAPITAL PS (REGEN),CONSTRUCTION FEES  - EXTERNAL,2103081152,3000001948
04.04.2020,CHILDREN'S SERVICES,THE APPROPRIATE ADULT SERVICE LTD,"1,200.00",APPROPRIATE ADULT CO-ORDINATOR,EXTERNAL AGENCIES AND BODIES,5902410781,1000047682
04.04.2020,CHILDREN'S SERVICES,SOUTH LONDON & MAUDSLEY HOSPITAL,"15,000.00",MGMT & PARENTING PROG TEAM,EXTERNAL AGENCIES AND BODIES,5902410777,1000013096
04.04.2020,COMMUNITIES,WEBBER AND QUENTIN LTD,"1,300.00",TENANTS FUND,GRANTS,5902410987,1000077088
04.04.2020,CUSTOMER EXPERIENCE HGF,IMPERIAL COLLEGE PROJECTS LTD,336,CORONER'S,PROFESSIONAL FEES,5902411782,1000080106
04.04.2020,EXCHEQUER SERVICES,INFORM CPI LTD,"2,236.13",NNDR,PROFESSIONAL FEES,5902411885,1000073418
04.04.2020,HOUSING GENERAL FUND,SAP (UK) LTD,"3,003.34",CAPITAL PS (STRAT SERV),ICT ACQUISITION,5902410376,1000002550
04.04.2020,LEISURE DIRECTORATE,CASTLE WATER LTD,523.14,BURGESS AREA TEAM,WATER,5902410886,1000078867
04.04.2020,LEISURE DIRECTORATE,C S G (USHERS) LTD,350,TREES PRINCIPAL ROADS,OTHER CONTRACTORS,5902410868,1000073203
04.04.2020,LEISURE DIRECTORATE,C S G (USHERS) LTD,"2,500.00",TREES PRINCIPAL ROADS,OTHER CONTRACTORS,5902410867,1000073203
04.04.2020,LEISURE DIRECTORATE,C S G (USHERS) LTD,"5,500.00",TREES RECOVERY PROJECT,OTHER CONTRACTORS,5902410712,1000073203
04.04.2020,MODERNISATION HGF,KIER FACILITIES SERVICES LTD,533.67,PLANNED FM SERVICES BY KIER,BUILDING R&M,5902411421,1000040603
04.04.2020,MODERNISATION HGF,KIER FACILITIES SERVICES LTD,"3,818.15",PLANNED FM SERVICES BY KIER,BUILDING R&M,5902411610,1000040603
04.04.2020,MODERNISATION HGF,KIER FACILITIES SERVICES LTD,"4,289.20",PLANNED FM SERVICES BY KIER,BUILDING R&M,5902411417,1000040603
04.04.2020,MODERNISATION HGF,KIER FACILITIES SERVICES LTD,"4,762.42",PLANNED FM SERVICES BY KIER,BUILDING R&M,5902411422,1000040603
04.04.2020,MODERNISATION HGF,KIER FACILITIES SERVICES LTD,"5,733.43",PLANNED FM SERVICES BY KIER,BUILDING R&M,5902411420,1000040603
04.04.2020,MODERNISATION HGF,KIER FACILITIES SERVICES LTD,"8,425.83",PLANNED FM SERVICES BY KIER,BUILDING R&M,5902411419,1000040603
04.04.2020,MODERNISATION HGF,KIER FACILITIES SERVICES LTD,"9,314.77",PLANNED FM SERVICES BY KIER,BUILDING R&M,5902411688,1000040603
04.04.2020,MODERNISATION HGF,KIER FACILITIES SERVICES LTD,"9,567.89",PLANNED FM SERVICES BY KIER,BUILDING R&M,5902411418,1000040603
05.04.2020,ASSET MANAGEMENT,LIFTEC LIFTS LTD,"3,519.56",ADAPTATIONS,BUILDING R&M,5902411086,1000057278
05.04.2020,CENTRAL FUNCTIONS,NORTHGATE PUBLIC SERVICES (UK) LTD,"8,300.00",HOME OWNERSHIP,OFFICE EXPENSES,5902411244,1000037405
05.04.2020,CHIEF EXECUTIVE,WALWORTH HOMES LTD,"433,928.25",CAPITAL PS (REGEN),CONST'N MAIN CONTRACT - NON CERTIFICATED,5902411328,1000079197
05.04.2020,CHIEF EXECUTIVE,CARTER JONAS LLP,"1,720.00",CAPITAL PS (REGEN),CONSTRUCTION FEES,5902411121,1000073124
05.04.2020,CHIEF EXECUTIVE,WALWORTH HOMES LTD,"17,357.13",CAPITAL PS (REGEN),CONSTRUCTION FEES,5902411328,1000079197
05.04.2020,CHIEF EXECUTIVE,HAYATSU ARCHITECTS LTD,"15,906.00",CAPITAL PS (REGEN),CONSTRUCTION FEES,5902411830,1000082843
05.04.2020,CHILDREN'S SERVICES,HOLLY BRYAN ASSOCIATES LTD,"6,000.00",MANAGEMENT INFORMATION UNIT,PROFESSIONAL FEES,5902411412,1000077962
05.04.2020,COMMUNITIES,FAIR COMMUNITY HSG SERVICES LTD,"3,063.50",TENANTS FUND,GRANTS,5902411066,1000039650
05.04.2020,CUSTOMER EXPERIENCE HGF,IMPERIAL COLLEGE PROJECTS LTD,264,CORONER'S,PROFESSIONAL FEES,5902411747,1000080106
05.04.2020,CUSTOMER EXPERIENCE HGF,IMPERIAL COLLEGE PROJECTS LTD,428,CORONER'S,PROFESSIONAL FEES,5902411778,1000080106
05.04.2020,CUSTOMER EXPERIENCE HGF,IMPERIAL COLLEGE PROJECTS LTD,460,CORONER'S,PROFESSIONAL FEES,5902411751,1000080106
05.04.2020,CUSTOMER EXPERIENCE HGF,IMPERIAL COLLEGE PROJECTS LTD,640,CORONER'S,PROFESSIONAL FEES,5902411774,1000080106
05.04.2020,ENVIRONMENT AND LEISURE,VERTASE FLI LTD,371.2,CAPITAL PS (LEISURE),CONSTRUCTION FEES  - EXTERNAL,5902411363,1000081119
05.04.2020,ENVIRONMENT DIRECTORATE,SOUTHWARK NEWSPAPER LTD,456,HIGHWAYS DEVELOPMENT,MARKETING & PUBLICITY SERVICES,5902411305,1556957
05.04.2020,ENVIRONMENT DIRECTORATE,SOUTHWARK NEWSPAPER LTD,312,STREET WORKS OVERHEADS,MARKETING & PUBLICITY SERVICES,5902411286,1556957
05.04.2020,ENVIRONMENT DIRECTORATE,SOUTHWARK NEWSPAPER LTD,348,STREET WORKS OVERHEADS,MARKETING & PUBLICITY SERVICES,5902411288,1556957
05.04.2020,HOUSING HRA,MARTIN ARNOLD LTD,"9,569.00",CAPITAL PS (HRA),CONSTRUCTION FEES  - EXTERNAL,5902411792,1000076993
05.04.2020,HOUSING HRA,WALWORTH HOMES LTD,"306,163.39",CAPITAL PS (REGEN),CONST'N MAIN CONTRACT - NON CERTIFICATED,5902411356,1000079197
05.04.2020,HOUSING HRA,WALWORTH HOMES LTD,"9,184.90",CAPITAL PS (REGEN),CONSTRUCTION FEES,5902411356,1000079197
05.04.2020,PLANNING AND TRANSPORT,GVA GRIMLEY LTD T/A AVISON YOUNG,"1,500.00",COMPLIANCE & MONITORING,PROFESSIONAL FEES,5902411491,1000016057
05.04.2020,PLANNING AND TRANSPORT,GVA GRIMLEY LTD T/A AVISON YOUNG,"4,950.00",COMPLIANCE & MONITORING,PROFESSIONAL FEES,5902411491,1000016057
06.04.2020,ADULT SOCIAL CARE,REDACTED PERSONAL DATA,277.3,APPOINTEESHIPS,OTHER PAYMENTS FOR CLIENTS,REDACTED,REDACTED
06.04.2020,ADULT SOCIAL CARE,JAMES BLEWETT TRAINING & CONSULTANCY,"11,700.00",ASW - PROFESSIONAL DEVELOPMENT,TRAINING,5902411728,1000024008
06.04.2020,ADULT SOCIAL CARE,BEDE CAFE PROJECT,260,LD LTS 18-64,DAYCARE,2103082902,1553877
06.04.2020,ADULT SOCIAL CARE,BEDE CAFE PROJECT,260,LD LTS 18-64,DAYCARE,2103082908,1553877
06.04.2020,ADULT SOCIAL CARE,BEDE CAFE PROJECT,260,LD LTS 18-64,DAYCARE,2103082914,1553877
06.04.2020,ADULT SOCIAL CARE,BEDE CAFE PROJECT,280,LD LTS 18-64,DAYCARE,2103082870,1553877
06.04.2020,ADULT SOCIAL CARE,BEDE CAFE PROJECT,288,LD LTS 18-64,DAYCARE,2103082894,1553877
06.04.2020,ADULT SOCIAL CARE,BEDE CAFE PROJECT,308,LD LTS 18-64,DAYCARE,2103082906,1553877
06.04.2020,ADULT SOCIAL CARE,BEDE CAFE PROJECT,400,LD LTS 18-64,DAYCARE,2103082896,1553877
06.04.2020,ADULT SOCIAL CARE,BEDE CAFE PROJECT,520,LD LTS 18-64,DAYCARE,2103082852,1553877
06.04.2020,ADULT SOCIAL CARE,BEDE CAFE PROJECT,520,LD LTS 18-64,DAYCARE,2103082858,1553877
06.04.2020,ADULT SOCIAL CARE,BEDE CAFE PROJECT,520,LD LTS 18-64,DAYCARE,2103082860,1553877
06.04.2020,ADULT SOCIAL CARE,BEDE CAFE PROJECT,520,LD LTS 18-64,DAYCARE,2103082868,1553877
06.04.2020,ADULT SOCIAL CARE,BEDE CAFE PROJECT,530,LD LTS 18-64,DAYCARE,2103082884,1553877
06.04.2020,ADULT SOCIAL CARE,BEDE CAFE PROJECT,535,LD LTS 18-64,DAYCARE,2103082872,1553877
06.04.2020,ADULT SOCIAL CARE,BEDE CAFE PROJECT,640,LD LTS 18-64,DAYCARE,2103082904,1553877
06.04.2020,ADULT SOCIAL CARE,BEDE CAFE PROJECT,780,LD LTS 18-64,DAYCARE,2103082850,1553877
06.04.2020,ADULT SOCIAL CARE,BEDE CAFE PROJECT,800.8,LD LTS 18-64,DAYCARE,2103082876,1553877
06.04.2020,ADULT SOCIAL CARE,BEDE CAFE PROJECT,864,LD LTS 18-64,DAYCARE,2103082910,1553877
06.04.2020,ADULT SOCIAL CARE,BEDE CAFE PROJECT,880,LD LTS 18-64,DAYCARE,2103082856,1553877
06.04.2020,ADULT SOCIAL CARE,BEDE CAFE PROJECT,880,LD LTS 18-64,DAYCARE,2103082886,1553877
06.04.2020,ADULT SOCIAL CARE,BEDE CAFE PROJECT,"1,040.00",LD LTS 18-64,DAYCARE,2103082840,1553877
06.04.2020,ADULT SOCIAL CARE,BEDE CAFE PROJECT,"1,040.00",LD LTS 18-64,DAYCARE,2103082844,1553877
06.04.2020,ADULT SOCIAL CARE,BEDE CAFE PROJECT,"1,040.00",LD LTS 18-64,DAYCARE,2103082862,1553877
06.04.2020,ADULT SOCIAL CARE,BEDE CAFE PROJECT,"1,040.00",LD LTS 18-64,DAYCARE,2103082866,1553877
06.04.2020,ADULT SOCIAL CARE,BEDE CAFE PROJECT,"1,040.00",LD LTS 18-64,DAYCARE,2103082898,1553877
06.04.2020,ADULT SOCIAL CARE,BEDE CAFE PROJECT,"1,060.00",LD LTS 18-64,DAYCARE,2103082846,1553877
06.04.2020,ADULT SOCIAL CARE,BEDE CAFE PROJECT,"1,166.00",LD LTS 18-64,DAYCARE,2103082900,1553877
06.04.2020,ADULT SOCIAL CARE,BEDE CAFE PROJECT,"1,300.00",LD LTS 18-64,DAYCARE,2103082880,1553877
06.04.2020,ADULT SOCIAL CARE,BEDE CAFE PROJECT,"1,426.00",LD LTS 18-64,DAYCARE,2103082882,1553877
06.04.2020,ADULT SOCIAL CARE,BEDE CAFE PROJECT,"1,752.00",LD LTS 18-64,DAYCARE,2103082854,1553877
06.04.2020,ADULT SOCIAL CARE,BEDE CAFE PROJECT,"1,752.00",LD LTS 18-64,DAYCARE,2103082918,1553877
06.04.2020,ADULT SOCIAL CARE,BEDE CAFE PROJECT,"2,920.00",LD LTS 18-64,DAYCARE,2103082864,1553877
06.04.2020,ADULT SOCIAL CARE,BEDE CAFE PROJECT,"2,920.00",LD LTS 18-64,DAYCARE,2103082916,1553877
06.04.2020,ADULT SOCIAL CARE,SURREY DOCKS FARM PROVIDENT SOCIETY,480,LD LTS 18-64,DAYCARE,2103082926,1000000958
06.04.2020,ADULT SOCIAL CARE,SURREY DOCKS FARM PROVIDENT SOCIETY,487.5,LD LTS 18-64,DAYCARE,2103082924,1000000958
06.04.2020,ADULT SOCIAL CARE,SURREY DOCKS FARM PROVIDENT SOCIETY,720,LD LTS 18-64,DAYCARE,2103082922,1000000958
06.04.2020,ADULT SOCIAL CARE,THE CAMDEN SOCIETY (SOCIAL CARE),376.8,LD LTS 18-64,DAYCARE,2103082756,1000036369
06.04.2020,ADULT SOCIAL CARE,THE CAMDEN SOCIETY (SOCIAL CARE),384,LD LTS 18-64,DAYCARE,2103082782,1000036369
06.04.2020,ADULT SOCIAL CARE,THE CAMDEN SOCIETY (SOCIAL CARE),465.6,LD LTS 18-64,DAYCARE,2103082786,1000036369
06.04.2020,ADULT SOCIAL CARE,THE CAMDEN SOCIETY (SOCIAL CARE),480,LD LTS 18-64,DAYCARE,2103082762,1000036369
06.04.2020,ADULT SOCIAL CARE,THE CAMDEN SOCIETY (SOCIAL CARE),500,LD LTS 18-64,DAYCARE,2103082790,1000036369
06.04.2020,ADULT SOCIAL CARE,THE CAMDEN SOCIETY (SOCIAL CARE),500,LD LTS 18-64,DAYCARE,2103082800,1000036369
06.04.2020,ADULT SOCIAL CARE,THE CAMDEN SOCIETY (SOCIAL CARE),500,LD LTS 18-64,DAYCARE,2103082816,1000036369
06.04.2020,ADULT SOCIAL CARE,THE CAMDEN SOCIETY (SOCIAL CARE),599.36,LD LTS 18-64,DAYCARE,2103082758,1000036369
06.04.2020,ADULT SOCIAL CARE,THE CAMDEN SOCIETY (SOCIAL CARE),609.6,LD LTS 18-64,DAYCARE,2103082804,1000036369
06.04.2020,ADULT SOCIAL CARE,THE CAMDEN SOCIETY (SOCIAL CARE),674.16,LD LTS 18-64,DAYCARE,2103082760,1000036369
06.04.2020,ADULT SOCIAL CARE,THE CAMDEN SOCIETY (SOCIAL CARE),676.8,LD LTS 18-64,DAYCARE,2103082766,1000036369
06.04.2020,ADULT SOCIAL CARE,THE CAMDEN SOCIETY (SOCIAL CARE),704,LD LTS 18-64,DAYCARE,2103082776,1000036369
06.04.2020,ADULT SOCIAL CARE,THE CAMDEN SOCIETY (SOCIAL CARE),704,LD LTS 18-64,DAYCARE,2103082794,1000036369
06.04.2020,ADULT SOCIAL CARE,THE CAMDEN SOCIETY (SOCIAL CARE),704,LD LTS 18-64,DAYCARE,2103082814,1000036369
06.04.2020,ADULT SOCIAL CARE,THE CAMDEN SOCIETY (SOCIAL CARE),705.6,LD LTS 18-64,DAYCARE,2103082747,1000036369
06.04.2020,ADULT SOCIAL CARE,THE CAMDEN SOCIETY (SOCIAL CARE),705.6,LD LTS 18-64,DAYCARE,2103082754,1000036369
06.04.2020,ADULT SOCIAL CARE,THE CAMDEN SOCIETY (SOCIAL CARE),903.6,LD LTS 18-64,DAYCARE,2103082759,1000036369
06.04.2020,ADULT SOCIAL CARE,THE CAMDEN SOCIETY (SOCIAL CARE),960,LD LTS 18-64,DAYCARE,2103082744,1000036369
06.04.2020,ADULT SOCIAL CARE,THE CAMDEN SOCIETY (SOCIAL CARE),968,LD LTS 18-64,DAYCARE,2103082788,1000036369
06.04.2020,ADULT SOCIAL CARE,THE CAMDEN SOCIETY (SOCIAL CARE),988,LD LTS 18-64,DAYCARE,2103082755,1000036369
06.04.2020,ADULT SOCIAL CARE,THE CAMDEN SOCIETY (SOCIAL CARE),988,LD LTS 18-64,DAYCARE,2103082769,1000036369
06.04.2020,ADULT SOCIAL CARE,THE CAMDEN SOCIETY (SOCIAL CARE),"1,056.00",LD LTS 18-64,DAYCARE,2103082806,1000036369
06.04.2020,ADULT SOCIAL CARE,THE CAMDEN SOCIETY (SOCIAL CARE),"1,056.00",LD LTS 18-64,DAYCARE,2103082810,1000036369
06.04.2020,ADULT SOCIAL CARE,THE CAMDEN SOCIETY (SOCIAL CARE),"1,056.00",LD LTS 18-64,DAYCARE,2103082822,1000036369
06.04.2020,ADULT SOCIAL CARE,THE CAMDEN SOCIETY (SOCIAL CARE),"1,200.00",LD LTS 18-64,DAYCARE,2103082743,1000036369
06.04.2020,ADULT SOCIAL CARE,THE CAMDEN SOCIETY (SOCIAL CARE),"1,200.00",LD LTS 18-64,DAYCARE,2103082768,1000036369
06.04.2020,ADULT SOCIAL CARE,THE CAMDEN SOCIETY (SOCIAL CARE),"1,320.00",LD LTS 18-64,DAYCARE,2103082792,1000036369
06.04.2020,ADULT SOCIAL CARE,THE CAMDEN SOCIETY (SOCIAL CARE),"1,408.00",LD LTS 18-64,DAYCARE,2103082772,1000036369
06.04.2020,ADULT SOCIAL CARE,THE CAMDEN SOCIETY (SOCIAL CARE),"1,408.00",LD LTS 18-64,DAYCARE,2103082820,1000036369
06.04.2020,ADULT SOCIAL CARE,THE CAMDEN SOCIETY (SOCIAL CARE),"1,451.52",LD LTS 18-64,DAYCARE,2103082770,1000036369
06.04.2020,ADULT SOCIAL CARE,THE CAMDEN SOCIETY (SOCIAL CARE),"1,473.60",LD LTS 18-64,DAYCARE,2103082751,1000036369
06.04.2020,ADULT SOCIAL CARE,THE CAMDEN SOCIETY (SOCIAL CARE),"1,500.00",LD LTS 18-64,DAYCARE,2103082771,1000036369
06.04.2020,ADULT SOCIAL CARE,THE CAMDEN SOCIETY (SOCIAL CARE),"1,536.00",LD LTS 18-64,DAYCARE,2103082812,1000036369
06.04.2020,ADULT SOCIAL CARE,THE CAMDEN SOCIETY (SOCIAL CARE),"1,760.00",LD LTS 18-64,DAYCARE,2103082761,1000036369
06.04.2020,ADULT SOCIAL CARE,THE CAMDEN SOCIETY (SOCIAL CARE),"1,760.00",LD LTS 18-64,DAYCARE,2103082824,1000036369
06.04.2020,ADULT SOCIAL CARE,THE CAMDEN SOCIETY (SOCIAL CARE),"1,824.40",LD LTS 18-64,DAYCARE,2103082818,1000036369
06.04.2020,ADULT SOCIAL CARE,THE CAMDEN SOCIETY (SOCIAL CARE),"1,848.00",LD LTS 18-64,DAYCARE,2103082764,1000036369
06.04.2020,ADULT SOCIAL CARE,THE CAMDEN SOCIETY (SOCIAL CARE),"1,848.00",LD LTS 18-64,DAYCARE,2103082802,1000036369
06.04.2020,ADULT SOCIAL CARE,THE CAMDEN SOCIETY (SOCIAL CARE),"2,000.00",LD LTS 18-64,DAYCARE,2103082784,1000036369
06.04.2020,ADULT SOCIAL CARE,THE CAMDEN SOCIETY (SOCIAL CARE),"2,020.00",LD LTS 18-64,DAYCARE,2103082749,1000036369
06.04.2020,ADULT SOCIAL CARE,THE CAMDEN SOCIETY (SOCIAL CARE),"2,154.48",LD LTS 18-64,DAYCARE,2103082780,1000036369
06.04.2020,ADULT SOCIAL CARE,THE CAMDEN SOCIETY (SOCIAL CARE),"2,160.00",LD LTS 18-64,DAYCARE,2103082774,1000036369
06.04.2020,ADULT SOCIAL CARE,THE CAMDEN SOCIETY (SOCIAL CARE),"2,374.00",LD LTS 18-64,DAYCARE,2103082746,1000036369
06.04.2020,ADULT SOCIAL CARE,THE CAMDEN SOCIETY (SOCIAL CARE),"2,448.00",LD LTS 18-64,DAYCARE,2103082808,1000036369
06.04.2020,ADULT SOCIAL CARE,THE CAMDEN SOCIETY (SOCIAL CARE),"3,385.50",LD LTS 18-64,DAYCARE,2103082796,1000036369
06.04.2020,ADULT SOCIAL CARE,THE CAMDEN SOCIETY (SOCIAL CARE),"3,534.00",LD LTS 18-64,DAYCARE,2103082757,1000036369
06.04.2020,ADULT SOCIAL CARE,BEDE CAFE PROJECT,960,LD LTS 18-64,SUPPORTED LIVING,2103082890,1553877
06.04.2020,ADULT SOCIAL CARE,MEDACS HOMECARE,740.16,LD LTS 18-64,SUPPORTED LIVING,2103082928,11287415
06.04.2020,ADULT SOCIAL CARE,CARE DIRECT UK LTD,347.51,LD LTS 18-64,SUPPORTED LIVING,2103082948,1000066322
06.04.2020,ADULT SOCIAL CARE,REDACTED PERSONAL DATA,337.5,LD LTS 18-64,SUPPORTED LIVING,REDACTED,REDACTED
06.04.2020,ADULT SOCIAL CARE,REDACTED PERSONAL DATA,396,LD LTS 18-64,SUPPORTED LIVING,REDACTED,REDACTED
06.04.2020,ADULT SOCIAL CARE,REDACTED PERSONAL DATA,406.5,LD LTS 18-64,SUPPORTED LIVING,REDACTED,REDACTED
06.04.2020,ADULT SOCIAL CARE,REDACTED PERSONAL DATA,487.5,LD LTS 18-64,SUPPORTED LIVING,REDACTED,REDACTED
06.04.2020,ADULT SOCIAL CARE,REDACTED PERSONAL DATA,780,LD LTS 18-64,SUPPORTED LIVING,REDACTED,REDACTED
06.04.2020,ADULT SOCIAL CARE,BEDE CAFE PROJECT,478.4,LD LTS 65+,DAYCARE,2103082878,1553877
06.04.2020,ADULT SOCIAL CARE,ELEANOR NURSING AND SOCIAL CARE LTD,839.05,MEM LTS 65+,HOMECARE - SPOT,2103082832,1000081695
06.04.2020,ADULT SOCIAL CARE,BEDE CAFE PROJECT,280,MH LTS 18-64,DAYCARE,2103082848,1553877
06.04.2020,ADULT SOCIAL CARE,THE CAMDEN SOCIETY (SOCIAL CARE),705.6,PHY LTS 18-64,DAYCARE,2103082778,1000036369
06.04.2020,ADULT SOCIAL CARE,REDACTED PERSONAL DATA,904.96,PHY LTS 18-64,PAYMENTS TO CLIENTS (DIRECT PAYMENTS),REDACTED,REDACTED
06.04.2020,ADULT SOCIAL CARE,REDACTED PERSONAL DATA,"5,182.80",PHY LTS 18-64,PAYMENTS TO CLIENTS (DIRECT PAYMENTS),REDACTED,REDACTED
06.04.2020,ADULT SOCIAL CARE,LAMBETH CHINESE COMMUNITY ASSOCIATION,"3,073.95",PHY LTS 65+,HOMECARE - SPOT,2103082930,11117038
06.04.2020,ADULT SOCIAL CARE,CARE DIRECT UK LTD,505.88,PHY LTS 65+,HOMECARE - SPOT,2103082952,1000066322
06.04.2020,ADULT SOCIAL CARE,CARE DIRECT UK LTD,559.13,PHY LTS 65+,HOMECARE - SPOT,2103082944,1000066322
06.04.2020,ADULT SOCIAL CARE,ELEANOR NURSING AND SOCIAL CARE LTD,484.4,PHY LTS 65+,HOMECARE - SPOT,2103082826,1000081695
06.04.2020,ADULT SOCIAL CARE,ELEANOR NURSING AND SOCIAL CARE LTD,984.7,PHY LTS 65+,HOMECARE - SPOT,2103082834,1000081695
06.04.2020,ADULT SOCIAL CARE,REDACTED PERSONAL DATA,"1,179.48",PHY LTS 65+,PAYMENTS TO CLIENTS (DIRECT PAYMENTS),REDACTED,REDACTED
06.04.2020,ADULT SOCIAL CARE,THAMES HOMECARE SERVICE LTD,"27,300.00",REABLEMENT CONTRACT,HOMECARE - C&V,5902411627,1000079295
06.04.2020,ADULT SOCIAL CARE,GUYS & ST THOMAS NHS FOUNDATION TRUST,"6,827.95",REABLEMENT SERVICE,EXTERNAL AGENCIES AND BODIES,5902412007,1765536
06.04.2020,ADULT SOCIAL CARE,GUYS & ST THOMAS NHS FOUNDATION TRUST,"29,303.61",REABLEMENT SERVICE,EXTERNAL AGENCIES AND BODIES,5902411997,1765536
06.04.2020,ADULT SOCIAL CARE,BEDE CAFE PROJECT,"1,168.00",SOCIAL ISOLATION,DAYCARE,2103082912,1553877
06.04.2020,ADULT SOCIAL CARE,SURREY DOCKS FARM PROVIDENT SOCIETY,500,SOCIAL ISOLATION,DAYCARE,2103082920,1000000958
06.04.2020,ASSET MANAGEMENT,JUDGE AND PRIESTLEY SOLICITORS,"7,800.00",DISREPAIR,PAYMENTS FOR LEGAL SERVICES,5902411974,1472217
06.04.2020,CENTRAL FUNCTIONS,STANBURY BUILDING SERVICES LTD,350,COMMERCIAL PROPERTIES,BUILDING R&M,5902411646,1000078207
06.04.2020,CENTRAL FUNCTIONS,ETC VENUES LTD,"3,723.00",HOME OWNERSHIP,TRAINING,5902411993,1000045226
06.04.2020,CENTRAL FUNCTIONS,DEIMA PROPERTIES LTD,"1,031.79",HOME OWNERSHIP INCOME,HOUSING RESIDENTIAL RENTS,2103083083,1000084183
06.04.2020,CHIEF EXECUTIVE,KN NETWORK SERVICES LTD,"177,508.41",CAPITAL PS (REGEN),CONSTRUCTION MAIN CONTRACT -CERTIFICATED,2103080498,3000002134
06.04.2020,CHILDREN AND ADULT,FAITHFUL & GOULD,"11,293.00",CAPITAL PS (EDUCATION),CONSTRUCTION,5902411947,1000061390
06.04.2020,CHILDREN AND ADULT,PDC CONSTRUCTION SERVICES LTD,"3,258.00",CAPITAL PS (EDUCATION),CONSTRUCTION,2103083053,3000001841
06.04.2020,CHILDREN'S SERVICES,REDACTED PERSONAL DATA,300,CARE LEAVERS SERVICES 16+,OTHER PAYMENTS FOR CLIENTS,REDACTED,REDACTED
06.04.2020,CHILDREN'S SERVICES,REDACTED PERSONAL DATA,300,FURTHER EDUCATION SUPPORT,CLIENT TRANSPORT,REDACTED,REDACTED
06.04.2020,CHILDREN'S SERVICES,AIDHOUR LIMITED,260,MANAGEMENT INFORMATION UNIT,EXTERNAL AGENCIES AND BODIES,5902411932,1000057345
06.04.2020,CHILDREN'S SERVICES,THE SALVATION ARMY,"55,040.00",SEMI INDEPENDENT CARE LEAVERS,EXTERNAL AGENCIES AND BODIES,5902411803,1000016253
06.04.2020,CHILDREN'S SERVICES,THE SALVATION ARMY,"81,250.00",SEMI INDEPENDENT LAC,EXTERNAL AGENCIES AND BODIES,5902411803,1000016253
06.04.2020,COMMUNITIES PROJECTS,WHATEVER DESIGN LTD,"1,088.00",HEAD OF COMM ENGAGE,MARKETING & PUBLICITY SERVICES,5902411968,1000036500
06.04.2020,CUSTOMER EXPERIENCE HGF,IMPERIAL COLLEGE PROJECTS LTD,336,CORONER'S,PROFESSIONAL FEES,5902411919,1000080106
06.04.2020,ENVIRONMENT AND LEISURE,DRAPER TOGETHER,"2,892.95",CAPITAL PS (LEISURE),CAPITAL GRANTS,5902411935,1000082816
06.04.2020,ENVIRONMENT AND LEISURE,BARCHAM TREES PLC,600,CAPITAL PS (LEISURE),CONSTRUCTION FEES,5902411809,11254891
06.04.2020,ENVIRONMENT AND LEISURE,RH WROUGHT IRON,"2,000.00",CAPITAL PS (LEISURE),CONSTRUCTION MAIN CONTRACT -CERTIFICATED,2103083047,3000000680
06.04.2020,ENVIRONMENT DIRECTORATE,TRAVIS PERKINS TRADING COMPANY LTD,259.7,DULWICH DD,MATERIALS,5902412008,1514319
06.04.2020,ENVIRONMENT DIRECTORATE,LONDON TOOLS LIMITED,630,ELECTRICIANS - DAY TO DAY,MATERIALS,5902412052,1000003017
06.04.2020,ENVIRONMENT DIRECTORATE,LONDON TOOLS LIMITED,"1,780.00",ENGINEERING CRAFTS,MATERIALS,5902412060,1000003017
06.04.2020,ENVIRONMENT DIRECTORATE,AUTO SISTANCE LTD,638,HIGHWAYS DEVELOPMENT,OTHER CONTRACTORS,5902411995,1000070536
06.04.2020,ENVIRONMENT DIRECTORATE,AUTO SISTANCE LTD,650,HIGHWAYS DEVELOPMENT,OTHER CONTRACTORS,5902411994,1000070536
06.04.2020,ENVIRONMENT DIRECTORATE,APCOA PARKING (UK) LTD,"302,580.96",PARKING OVERHEADS,OTHER CONTRACTORS,5902411311,1718645
06.04.2020,ENVIRONMENT DIRECTORATE,SOURCECODE UK LIMITED,"1,500.00",PROJECT SUPPORT,SOFTWARE,5902412012,1000083943
06.04.2020,ENVIRONMENT DIRECTORATE,SOURCECODE UK LIMITED,"21,629.34",PROJECT SUPPORT,SOFTWARE,5902412011,1000083943
06.04.2020,ENVIRONMENT DIRECTORATE,LONDON TOOLS LIMITED,274.5,PUBLIC LIGHTING,EQUIPMENT PURCHASE & REPAIR,5902412053,1000003017
06.04.2020,ENVIRONMENT DIRECTORATE,LONDON TOOLS LIMITED,275,PUBLIC LIGHTING,EQUIPMENT PURCHASE & REPAIR,5902412049,1000003017
06.04.2020,ENVIRONMENT DIRECTORATE,LONDON TOOLS LIMITED,420,PUBLIC LIGHTING,EQUIPMENT PURCHASE & REPAIR,5902412047,1000003017
06.04.2020,ENVIRONMENT DIRECTORATE,LONDON TOOLS LIMITED,432,PUBLIC LIGHTING,EQUIPMENT PURCHASE & REPAIR,5902412050,1000003017
06.04.2020,ENVIRONMENT DIRECTORATE,LONDON TOOLS LIMITED,"1,560.00",PUBLIC LIGHTING,EQUIPMENT PURCHASE & REPAIR,5902412049,1000003017
06.04.2020,ENVIRONMENT DIRECTORATE,LONDON TOOLS LIMITED,"1,900.00",PUBLIC LIGHTING,EQUIPMENT PURCHASE & REPAIR,5902412049,1000003017
06.04.2020,ENVIRONMENT DIRECTORATE,LONDON TOOLS LIMITED,"2,250.00",PUBLIC LIGHTING,EQUIPMENT PURCHASE & REPAIR,5902412049,1000003017
06.04.2020,ENVIRONMENT DIRECTORATE,LONDON TOOLS LIMITED,300,PUBLIC LIGHTING,MATERIALS,5902412048,1000003017
06.04.2020,ENVIRONMENT DIRECTORATE,LONDON TOOLS LIMITED,320,R & M OVERHEADS,EQUIPMENT PURCHASE & REPAIR,5902412067,1000003017
06.04.2020,ENVIRONMENT DIRECTORATE,LONDON TOOLS LIMITED,325.7,R & M OVERHEADS,EQUIPMENT PURCHASE & REPAIR,5902412052,1000003017
06.04.2020,ENVIRONMENT DIRECTORATE,LONDON TOOLS LIMITED,335,R & M OVERHEADS,EQUIPMENT PURCHASE & REPAIR,5902412064,1000003017
06.04.2020,ENVIRONMENT DIRECTORATE,LONDON TOOLS LIMITED,340,R & M OVERHEADS,EQUIPMENT PURCHASE & REPAIR,5902412067,1000003017
06.04.2020,ENVIRONMENT DIRECTORATE,LONDON TOOLS LIMITED,350,R & M OVERHEADS,EQUIPMENT PURCHASE & REPAIR,5902412065,1000003017
06.04.2020,ENVIRONMENT DIRECTORATE,LONDON TOOLS LIMITED,389.4,R & M OVERHEADS,EQUIPMENT PURCHASE & REPAIR,5902412054,1000003017
06.04.2020,ENVIRONMENT DIRECTORATE,LONDON TOOLS LIMITED,630,R & M OVERHEADS,EQUIPMENT PURCHASE & REPAIR,5902412052,1000003017
06.04.2020,ENVIRONMENT DIRECTORATE,LONDON TOOLS LIMITED,640,R & M OVERHEADS,EQUIPMENT PURCHASE & REPAIR,5902412052,1000003017
06.04.2020,ENVIRONMENT DIRECTORATE,LONDON TOOLS LIMITED,415,R & M OVERHEADS,MATERIALS,5902412064,1000003017
06.04.2020,ENVIRONMENT DIRECTORATE,SCANPROBE TECHNIQUES LTD,550,SBS COMMUNAL REPAIRS,"CLOTHING, UNIFORMS & LAUNDRY",5902412005,1000083698
06.04.2020,ENVIRONMENT DIRECTORATE,SCANPROBE TECHNIQUES LTD,600,SBS COMMUNAL REPAIRS,"CLOTHING, UNIFORMS & LAUNDRY",5902412006,1000083698
06.04.2020,ENVIRONMENT DIRECTORATE,LONDON TOOLS LIMITED,298.7,SBS COMMUNAL REPAIRS,MATERIALS,5902412077,1000003017
06.04.2020,ENVIRONMENT DIRECTORATE,LONDON TOOLS LIMITED,900,STREETS (NORTH EAST),MATERIALS,5902412039,1000003017
06.04.2020,ENVIRONMENT DIRECTORATE,GC CONSTRUCT LTD,"31,433.92",SUPPORTED HOUSING - REPAIRS,OTHER CONTRACTORS,2103083052,3000002106
06.04.2020,ENVIRONMENT DIRECTORATE,LARAC,445,SUSTAINABLE WASTE OVERHEADS,MARKETING & PUBLICITY SERVICES,5902412014,1000011025
06.04.2020,EXCHEQUER SERVICES,SOS OFFICE SUPPLIES LTD,550,ADMINISTRATIVE SUPPORT,OFFICE EXPENSES,5902411939,1000027032
06.04.2020,EXCHEQUER SERVICES,SOS OFFICE SUPPLIES LTD,550,ADMINISTRATIVE SUPPORT,OFFICE EXPENSES,5902411941,1000027032
06.04.2020,FINANCE DIRECTOR,BDO LLP,"22,005.00",INTERNAL AUDIT CONTRACTS,PAYMENTS FOR FINANCIAL SERVICES,5902411130,1000057898
06.04.2020,FINANCIAL AND INFORMATION GOVERNANCE,BDO LLP,"2,083.33",RISK ADMIN,PROFESSIONAL FEES,5902411260,1000057898
06.04.2020,HOUSING,SMITH & BYFORD LTD,"44,614.34",SMITH AND BYFORD,I-WORLD CONTRACTORS HOLDING ACCOUNT,2103082739,3000000520
06.04.2020,HOUSING,SMITH & BYFORD LTD,"500,000.00",SMITH AND BYFORD,I-WORLD CONTRACTORS HOLDING ACCOUNT,2103082739,3000000520
06.04.2020,HOUSING & MODERNISATION,SOUTHWARK LAW CENTRE,"30,800.00",LEGAL GRANTS,EXTERNAL AGENCIES AND BODIES,5902411929,1981325
06.04.2020,HOUSING GENERAL FUND,WOODLANDS PETCARE LTD,"1,611.53",CAPITAL PS (HOUSING GF),CONSTRUCTION SITE COSTS,5902411925,1000063009
06.04.2020,HOUSING HRA,DUCTCLEAN (UK) LTD,"3,000.00",CAPITAL PS (HRA),CONSTRUCTION,2103082240,3000001635
06.04.2020,HOUSING HRA,OPEN COMMUNITIES LTD,"2,635.00",CAPITAL PS (HRA),CONSTRUCTION FEES,5902411946,1000065800
06.04.2020,HOUSING HRA,CALFORD SEADEN LLP,882,CAPITAL PS (HRA),CONSTRUCTION FEES  - EXTERNAL,5902411339,1061592
06.04.2020,HOUSING HRA,SALTASH ENTERPRISES LTD,"1,904.55",CAPITAL PS (HRA),CONSTRUCTION MAIN CONTRACT -CERTIFICATED,2103083049,4013605
06.04.2020,HOUSING HRA,SALTASH ENTERPRISES LTD,"10,990.01",CAPITAL PS (HRA),CONSTRUCTION MAIN CONTRACT -CERTIFICATED,2103082737,4013605
06.04.2020,HOUSING HRA,SALTASH ENTERPRISES LTD,"46,175.63",CAPITAL PS (HRA),CONSTRUCTION MAIN CONTRACT -CERTIFICATED,2103082736,4013605
06.04.2020,INSURANCE FUNDS,JOHNSON AUSTIN LTD,500,PROPERTY RELATED INSURANCE,PROFESSIONAL FEES,5902411302,1000040202
06.04.2020,LEISURE DIRECTORATE,NPOWER LTD,-719.05,BURGESS AREA TEAM,ELECTRICITY,5902411977,1000078994
06.04.2020,LEISURE DIRECTORATE,NPOWER LTD,-719.05,BURGESS AREA TEAM,ELECTRICITY,5902411978,1000078994
06.04.2020,LEISURE DIRECTORATE,NPOWER LTD,-709.83,BURGESS AREA TEAM,ELECTRICITY,5902411975,1000078994
06.04.2020,LEISURE DIRECTORATE,NPOWER LTD,709.83,BURGESS AREA TEAM,ELECTRICITY,5902411980,1000078994
06.04.2020,LEISURE DIRECTORATE,NPOWER LTD,719.05,BURGESS AREA TEAM,ELECTRICITY,5902411981,1000078994
06.04.2020,LEISURE DIRECTORATE,NPOWER LTD,719.06,BURGESS AREA TEAM,ELECTRICITY,5902411979,1000078994
06.04.2020,LEISURE DIRECTORATE,WARWICK LANDSCAPING LTD,"63,035.76",CEMETERIES,OTHER R&M,2103081123,3000001705
06.04.2020,LEISURE DIRECTORATE,P D CONSTRUCTION LTD,"1,464.00",DULWICH AREA TEAM,OTHER R&M,2103083054,4001883
06.04.2020,LEISURE DIRECTORATE,P D CONSTRUCTION LTD,"8,160.00",DULWICH AREA TEAM,OTHER R&M,2103083051,4001883
06.04.2020,LEISURE DIRECTORATE,P D CONSTRUCTION LTD,"10,980.00",DULWICH AREA TEAM,OTHER R&M,2103083050,4001883
06.04.2020,LEISURE DIRECTORATE,DULWICH FESTIVAL,"2,423.73",DULWICH EVENTS,GRANTS,5902411818,1000047450
06.04.2020,LEISURE DIRECTORATE,KENT COUNTY COUNCIL - LASER,653.83,DULWICH LIBRARY,GAS,5902412017,1000012926
06.04.2020,LEISURE DIRECTORATE,LONDON TOOLS LIMITED,360,FACILITIES MANAGEMENT,MATERIALS,5902412035,1000003017
06.04.2020,LEISURE DIRECTORATE,KENT COUNTY COUNCIL - LASER,"1,568.27",HERITAGE,GAS,5902411922,1000012926
06.04.2020,LEISURE DIRECTORATE,KENT COUNTY COUNCIL - LASER,"1,624.49",HERITAGE,GAS,5902411923,1000012926
06.04.2020,LEISURE DIRECTORATE,KENT COUNTY COUNCIL - LASER,"1,678.26",HERITAGE,GAS,5902411921,1000012926
06.04.2020,LEISURE DIRECTORATE,KENT COUNTY COUNCIL - LASER,-419.43,JOHN HARVARD LIBRARY,ELECTRICITY,5902411928,1000012926
06.04.2020,LEISURE DIRECTORATE,KENT COUNTY COUNCIL - LASER,"3,643.23",JOHN HARVARD LIBRARY,ELECTRICITY,5902411926,1000012926
06.04.2020,LEISURE DIRECTORATE,KENT COUNTY COUNCIL - LASER,342.15,NUNHEAD LIBRARY,GAS,5902411960,1000012926
06.04.2020,LEISURE DIRECTORATE,KENT COUNTY COUNCIL - LASER,-654.74,PECKHAM LIBRARY,ELECTRICITY,5902411940,1000012926
06.04.2020,LEISURE DIRECTORATE,KENT COUNTY COUNCIL - LASER,"3,238.91",PECKHAM LIBRARY,ELECTRICITY,5902411938,1000012926
06.04.2020,LEISURE DIRECTORATE,KENT COUNTY COUNCIL - LASER,"1,706.63",PECKHAM LIBRARY,GAS,5902411930,1000012926
06.04.2020,LEISURE DIRECTORATE,CONWAY AECOM LTD,"13,200.00",SDM BUDGET,PROFESSIONAL FEES,5902411371,1000071205
06.04.2020,LEISURE DIRECTORATE,KANOPY,943,STOCK SERVICES,SUBSCRIPTIONS,5902412004,1000082832
06.04.2020,MODERNISATION HGF,ABILITY PROMOTIONS LTD,495,HR PAYROLL COSTS,OTHER EMPLOYEE EXPENSES,5902412015,1000082504
06.04.2020,NEW BUILD,BAILY  GARNER LLP,"4,336.09",DEVELOPMENT DELIVERY,PROFESSIONAL FEES,5902412001,1000663
06.04.2020,REGENERATION,STANBURY BUILDING SERVICES LTD,295,5/5A WESTMINSTER BRIDGE ROAD.,BUILDING R&M,5902411485,1000078207
06.04.2020,REGENERATION,CLYDE & CO,"3,382.50","COURAGE YARD, SHAD THAMES",SOLICITORS FRAMEWORK LEGAL SERVICES,5902411670,1000067838
06.04.2020,REGENERATION,DENTONS UK AND MIDDLE EAST LLP,"8,787.00",CPHA SURPLUS,PROFESSIONAL FEES,5902411711,1000015637
06.04.2020,REGENERATION,NEW LONDON ARCHITECTURE LTD,"4,000.00",MASTER PLAN-H/WAY & TRANS INTERCHANGE,MARKETING & PUBLICITY SERVICES,5902411934,1000036614
06.04.2020,REGENERATION,BELLROCK PROPERTY & FACILITIES MANAGEMENT LTD C/O PROPERTY SOLUTIONS (UK) LTD,"1,300.00",PROFESSIONAL SERVICES (GENERAL),CONSULTANTS SERVICES,5902411998,1000083638
06.04.2020,REGENERATION,STANBURY BUILDING SERVICES LTD,"1,500.00",TOWER WORKSHOPS,BUILDING R&M,5902411507,1000078207
06.04.2020,RESIDENT SERVICES,LONDON TOOLS LIMITED,270,TA HOSTELS,MATERIALS,5902412031,1000003017
06.04.2020,RESIDENT SERVICES,LONDON TOOLS LIMITED,351,TA HOSTELS,MATERIALS,5902412034,1000003017
06.04.2020,RESIDENT SERVICES,LONDON TOOLS LIMITED,360,TA HOSTELS,MATERIALS,5902412031,1000003017
06.04.2020,RESIDENT SERVICES,CYBERSTYLE LETTINGS LTD,576,TA PLACEMENTS,EXTERNAL AGENCIES AND BODIES,5902412045,1000079319
06.04.2020,RESIDENT SERVICES,CYBERSTYLE LETTINGS LTD,"1,116.00",TA PLACEMENTS,EXTERNAL AGENCIES AND BODIES,5902412043,1000079319
06.04.2020,SOUTHWARK BUILDING SERVICES,LONDON TOOLS LIMITED,"1,425.67",STORES/LOGISTICS,BSU STORES CONTROL ACCOUNT (SAP MATERIALS MGT),5902412071,1000003017
06.04.2020,SOUTHWARK BUILDING SERVICES,LONDON TOOLS LIMITED,862.5,STORES/LOGISTICS,CREDITORS -GR/IR CLEARING ACCOUNT,5902412063,1000003017
06.04.2020,SOUTHWARK BUILDING SERVICES,LONDON TOOLS LIMITED,"1,175.00",STORES/LOGISTICS,CREDITORS -GR/IR CLEARING ACCOUNT,5902412066,1000003017
06.04.2020,SOUTHWARK BUILDING SERVICES,LONDON TOOLS LIMITED,"1,725.00",STORES/LOGISTICS,CREDITORS -GR/IR CLEARING ACCOUNT,5902412059,1000003017
06.04.2020,SOUTHWARK BUILDING SERVICES,LONDON TOOLS LIMITED,"2,012.50",STORES/LOGISTICS,CREDITORS -GR/IR CLEARING ACCOUNT,5902412059,1000003017
06.04.2020,SOUTHWARK BUILDING SERVICES,LONDON TOOLS LIMITED,"2,012.50",STORES/LOGISTICS,CREDITORS -GR/IR CLEARING ACCOUNT,5902412063,1000003017
06.04.2020,SOUTHWARK BUILDING SERVICES,LONDON TOOLS LIMITED,"2,625.00",STORES/LOGISTICS,CREDITORS -GR/IR CLEARING ACCOUNT,5902412066,1000003017
06.04.2020,SOUTHWARK BUILDING SERVICES,LONDON TOOLS LIMITED,"2,851.20",STORES/LOGISTICS,CREDITORS -GR/IR CLEARING ACCOUNT,5902412071,1000003017
07.04.2020,ADULT SOCIAL CARE,THE CAMDEN SOCIETY (SOCIAL CARE),376.8,LD LTS 18-64,DAYCARE,2103083313,1000036369
07.04.2020,ADULT SOCIAL CARE,THE CAMDEN SOCIETY (SOCIAL CARE),384,LD LTS 18-64,DAYCARE,2103083353,1000036369
07.04.2020,ADULT SOCIAL CARE,THE CAMDEN SOCIETY (SOCIAL CARE),465.6,LD LTS 18-64,DAYCARE,2103083365,1000036369
07.04.2020,ADULT SOCIAL CARE,THE CAMDEN SOCIETY (SOCIAL CARE),480,LD LTS 18-64,DAYCARE,2103083297,1000036369
07.04.2020,ADULT SOCIAL CARE,THE CAMDEN SOCIETY (SOCIAL CARE),480,LD LTS 18-64,DAYCARE,2103083333,1000036369
07.04.2020,ADULT SOCIAL CARE,THE CAMDEN SOCIETY (SOCIAL CARE),500,LD LTS 18-64,DAYCARE,2103083277,1000036369
07.04.2020,ADULT SOCIAL CARE,THE CAMDEN SOCIETY (SOCIAL CARE),500,LD LTS 18-64,DAYCARE,2103083309,1000036369
07.04.2020,ADULT SOCIAL CARE,THE CAMDEN SOCIETY (SOCIAL CARE),500,LD LTS 18-64,DAYCARE,2103083377,1000036369
07.04.2020,ADULT SOCIAL CARE,THE CAMDEN SOCIETY (SOCIAL CARE),599.36,LD LTS 18-64,DAYCARE,2103083335,1000036369
07.04.2020,ADULT SOCIAL CARE,THE CAMDEN SOCIETY (SOCIAL CARE),609.6,LD LTS 18-64,DAYCARE,2103083295,1000036369
07.04.2020,ADULT SOCIAL CARE,THE CAMDEN SOCIETY (SOCIAL CARE),674.16,LD LTS 18-64,DAYCARE,2103083293,1000036369
07.04.2020,ADULT SOCIAL CARE,THE CAMDEN SOCIETY (SOCIAL CARE),676.8,LD LTS 18-64,DAYCARE,2103083285,1000036369
07.04.2020,ADULT SOCIAL CARE,THE CAMDEN SOCIETY (SOCIAL CARE),704,LD LTS 18-64,DAYCARE,2103083289,1000036369
07.04.2020,ADULT SOCIAL CARE,THE CAMDEN SOCIETY (SOCIAL CARE),704,LD LTS 18-64,DAYCARE,2103083329,1000036369
07.04.2020,ADULT SOCIAL CARE,THE CAMDEN SOCIETY (SOCIAL CARE),704,LD LTS 18-64,DAYCARE,2103083363,1000036369
07.04.2020,ADULT SOCIAL CARE,THE CAMDEN SOCIETY (SOCIAL CARE),704,LD LTS 18-64,DAYCARE,2103083381,1000036369
07.04.2020,ADULT SOCIAL CARE,THE CAMDEN SOCIETY (SOCIAL CARE),705.6,LD LTS 18-64,DAYCARE,2103083281,1000036369
07.04.2020,ADULT SOCIAL CARE,THE CAMDEN SOCIETY (SOCIAL CARE),705.6,LD LTS 18-64,DAYCARE,2103083371,1000036369
07.04.2020,ADULT SOCIAL CARE,THE CAMDEN SOCIETY (SOCIAL CARE),903.6,LD LTS 18-64,DAYCARE,2103083351,1000036369
07.04.2020,ADULT SOCIAL CARE,THE CAMDEN SOCIETY (SOCIAL CARE),960,LD LTS 18-64,DAYCARE,2103083303,1000036369
07.04.2020,ADULT SOCIAL CARE,THE CAMDEN SOCIETY (SOCIAL CARE),960,LD LTS 18-64,DAYCARE,2103083311,1000036369
07.04.2020,ADULT SOCIAL CARE,THE CAMDEN SOCIETY (SOCIAL CARE),968,LD LTS 18-64,DAYCARE,2103083321,1000036369
07.04.2020,ADULT SOCIAL CARE,THE CAMDEN SOCIETY (SOCIAL CARE),988,LD LTS 18-64,DAYCARE,2103083347,1000036369
07.04.2020,ADULT SOCIAL CARE,THE CAMDEN SOCIETY (SOCIAL CARE),988,LD LTS 18-64,DAYCARE,2103083349,1000036369
07.04.2020,ADULT SOCIAL CARE,THE CAMDEN SOCIETY (SOCIAL CARE),"1,056.00",LD LTS 18-64,DAYCARE,2103083287,1000036369
07.04.2020,ADULT SOCIAL CARE,THE CAMDEN SOCIETY (SOCIAL CARE),"1,056.00",LD LTS 18-64,DAYCARE,2103083337,1000036369
07.04.2020,ADULT SOCIAL CARE,THE CAMDEN SOCIETY (SOCIAL CARE),"1,056.00",LD LTS 18-64,DAYCARE,2103083341,1000036369
07.04.2020,ADULT SOCIAL CARE,THE CAMDEN SOCIETY (SOCIAL CARE),"1,056.00",LD LTS 18-64,DAYCARE,2103083359,1000036369
07.04.2020,ADULT SOCIAL CARE,THE CAMDEN SOCIETY (SOCIAL CARE),"1,200.00",LD LTS 18-64,DAYCARE,2103083299,1000036369
07.04.2020,ADULT SOCIAL CARE,THE CAMDEN SOCIETY (SOCIAL CARE),"1,200.00",LD LTS 18-64,DAYCARE,2103083367,1000036369
07.04.2020,ADULT SOCIAL CARE,THE CAMDEN SOCIETY (SOCIAL CARE),"1,320.00",LD LTS 18-64,DAYCARE,2103083325,1000036369
07.04.2020,ADULT SOCIAL CARE,THE CAMDEN SOCIETY (SOCIAL CARE),"1,408.00",LD LTS 18-64,DAYCARE,2103083383,1000036369
07.04.2020,ADULT SOCIAL CARE,THE CAMDEN SOCIETY (SOCIAL CARE),"1,451.52",LD LTS 18-64,DAYCARE,2103083301,1000036369
07.04.2020,ADULT SOCIAL CARE,THE CAMDEN SOCIETY (SOCIAL CARE),"1,473.60",LD LTS 18-64,DAYCARE,2103083345,1000036369
07.04.2020,ADULT SOCIAL CARE,THE CAMDEN SOCIETY (SOCIAL CARE),"1,500.00",LD LTS 18-64,DAYCARE,2103083373,1000036369
07.04.2020,ADULT SOCIAL CARE,THE CAMDEN SOCIETY (SOCIAL CARE),"1,536.00",LD LTS 18-64,DAYCARE,2103083375,1000036369
07.04.2020,ADULT SOCIAL CARE,THE CAMDEN SOCIETY (SOCIAL CARE),"1,760.00",LD LTS 18-64,DAYCARE,2103083305,1000036369
07.04.2020,ADULT SOCIAL CARE,THE CAMDEN SOCIETY (SOCIAL CARE),"1,760.00",LD LTS 18-64,DAYCARE,2103083339,1000036369
07.04.2020,ADULT SOCIAL CARE,THE CAMDEN SOCIETY (SOCIAL CARE),"1,760.00",LD LTS 18-64,DAYCARE,2103083369,1000036369
07.04.2020,ADULT SOCIAL CARE,THE CAMDEN SOCIETY (SOCIAL CARE),"1,824.40",LD LTS 18-64,DAYCARE,2103083355,1000036369
07.04.2020,ADULT SOCIAL CARE,THE CAMDEN SOCIETY (SOCIAL CARE),"1,848.00",LD LTS 18-64,DAYCARE,2103083327,1000036369
07.04.2020,ADULT SOCIAL CARE,THE CAMDEN SOCIETY (SOCIAL CARE),"1,848.00",LD LTS 18-64,DAYCARE,2103083331,1000036369
07.04.2020,ADULT SOCIAL CARE,THE CAMDEN SOCIETY (SOCIAL CARE),"2,000.00",LD LTS 18-64,DAYCARE,2103083291,1000036369
07.04.2020,ADULT SOCIAL CARE,THE CAMDEN SOCIETY (SOCIAL CARE),"2,020.00",LD LTS 18-64,DAYCARE,2103083357,1000036369
07.04.2020,ADULT SOCIAL CARE,THE CAMDEN SOCIETY (SOCIAL CARE),"2,154.48",LD LTS 18-64,DAYCARE,2103083385,1000036369
07.04.2020,ADULT SOCIAL CARE,THE CAMDEN SOCIETY (SOCIAL CARE),"2,160.00",LD LTS 18-64,DAYCARE,2103083307,1000036369
07.04.2020,ADULT SOCIAL CARE,THE CAMDEN SOCIETY (SOCIAL CARE),"2,374.00",LD LTS 18-64,DAYCARE,2103083283,1000036369
07.04.2020,ADULT SOCIAL CARE,THE CAMDEN SOCIETY (SOCIAL CARE),"2,448.00",LD LTS 18-64,DAYCARE,2103083317,1000036369
07.04.2020,ADULT SOCIAL CARE,THE CAMDEN SOCIETY (SOCIAL CARE),"3,160.00",LD LTS 18-64,DAYCARE,2103083315,1000036369
07.04.2020,ADULT SOCIAL CARE,THE CAMDEN SOCIETY (SOCIAL CARE),"3,534.00",LD LTS 18-64,DAYCARE,2103083323,1000036369
07.04.2020,ADULT SOCIAL CARE,THE CAMDEN SOCIETY (SOCIAL CARE),705.6,PHY LTS 18-64,DAYCARE,2103083343,1000036369
07.04.2020,ADULT SOCIAL CARE,SERVESOUL LTD,262.87,PHY LTS 65+,HOMECARE - SPOT,2103083393,1000081503
07.04.2020,ADULT SOCIAL CARE,SERVESOUL LTD,262.87,PHY LTS 65+,HOMECARE - SPOT,2103083426,1000081503
07.04.2020,ADULT SOCIAL CARE,SERVESOUL LTD,425.6,PHY LTS 65+,HOMECARE - SPOT,2103083395,1000081503
07.04.2020,ADULT SOCIAL CARE,SERVESOUL LTD,433.94,PHY LTS 65+,HOMECARE - SPOT,2103083422,1000081503
07.04.2020,ADULT SOCIAL CARE,SERVESOUL LTD,517.39,PHY LTS 65+,HOMECARE - SPOT,2103083410,1000081503
07.04.2020,ADULT SOCIAL CARE,SERVESOUL LTD,517.39,PHY LTS 65+,HOMECARE - SPOT,2103083427,1000081503
07.04.2020,ADULT SOCIAL CARE,SERVESOUL LTD,534.08,PHY LTS 65+,HOMECARE - SPOT,2103083407,1000081503
07.04.2020,ADULT SOCIAL CARE,SERVESOUL LTD,534.08,PHY LTS 65+,HOMECARE - SPOT,2103083423,1000081503
07.04.2020,ADULT SOCIAL CARE,SERVESOUL LTD,559.12,PHY LTS 65+,HOMECARE - SPOT,2103083396,1000081503
07.04.2020,ADULT SOCIAL CARE,SERVESOUL LTD,559.12,PHY LTS 65+,HOMECARE - SPOT,2103083418,1000081503
07.04.2020,ADULT SOCIAL CARE,SERVESOUL LTD,642.57,PHY LTS 65+,HOMECARE - SPOT,2103083400,1000081503
07.04.2020,ADULT SOCIAL CARE,SERVESOUL LTD,642.57,PHY LTS 65+,HOMECARE - SPOT,2103083412,1000081503
07.04.2020,ADULT SOCIAL CARE,SERVESOUL LTD,350.49,PHY STS 65+,HOMECARE - IC,2103083397,1000081503
07.04.2020,ADULT SOCIAL CARE,SERVESOUL LTD,350.49,PHY STS 65+,HOMECARE - IC,2103083419,1000081503
07.04.2020,ADULT SOCIAL CARE,PEOPLE PLUS,370.75,SPEC NEEDS CHILDREN,PAYMENTS FOR FINANCIAL SERVICES,5902412171,1000076642
07.04.2020,ADULT SOCIAL CARE,PEOPLE PLUS,"2,407.00",SPEC NEEDS CHILDREN,PAYMENTS FOR FINANCIAL SERVICES,5902412171,1000076642
07.04.2020,ADULT SOCIAL CARE,PEOPLE PLUS,"5,847.25",SPEC NEEDS CHILDREN,PAYMENTS FOR FINANCIAL SERVICES,5902412171,1000076642
07.04.2020,ADULT SOCIAL CARE,PEOPLE PLUS,392,SPEC NEEDS CHILDREN,PROFESSIONAL FEES,5902412192,1000076642
07.04.2020,ADULT SOCIAL CARE,PEOPLE PLUS,392,SPEC NEEDS CHILDREN,PROFESSIONAL FEES,5902412200,1000076642
07.04.2020,ADULT SOCIAL CARE,KIDS,472,SPECIALIST CARE,SECTION 17 PAYMENTS TO AGENCIES/CARERS,2103083273,1000030036
07.04.2020,ADULT SOCIAL CARE,SERVESOUL LTD,375.53,SUB LTS 18-64,HOMECARE - SPOT,2103083401,1000081503
07.04.2020,ADULT SOCIAL CARE,SERVESOUL LTD,375.53,SUB LTS 18-64,HOMECARE - SPOT,2103083429,1000081503
07.04.2020,ASSET MANAGEMENT,LONDON TOOLS LIMITED,292.5,REPAIRS OPERATIONS,MATERIALS,5902412098,1000003017
07.04.2020,ASSET MANAGEMENT,LONDON TOOLS LIMITED,292.5,REPAIRS OPERATIONS,MATERIALS,5902412098,1000003017
07.04.2020,ASSET MANAGEMENT,LONDON TOOLS LIMITED,292.5,REPAIRS OPERATIONS,MATERIALS,5902412223,1000003017
07.04.2020,ASSET MANAGEMENT,LONDON TOOLS LIMITED,330,REPAIRS OPERATIONS,MATERIALS,5902412221,1000003017
07.04.2020,CENTRAL FUNCTIONS,BLAKENEY LEIGH LTD,"1,875.00",AYLESBURY,PROFESSIONAL FEES,5902412347,1438839
07.04.2020,CENTRAL FUNCTIONS,BLAKENEY LEIGH LTD,"4,066.88",AYLESBURY,PROFESSIONAL FEES,5902412359,1438839
07.04.2020,CENTRAL FUNCTIONS,BLAKENEY LEIGH LTD,"11,340.00",AYLESBURY,PROFESSIONAL FEES,5902412355,1438839
07.04.2020,CENTRAL FUNCTIONS,ETC VENUES LTD,612,EXCHEQUER SUPPORT SERVICES,TRAINING,5902412284,1000045226
07.04.2020,CHIEF EXECUTIVE,CARTER JONAS LLP,"2,699.42",CAPITAL PS (REGEN),CONSTRUCTION FEES,5902412393,1000073124
07.04.2020,CHIEF EXECUTIVE,ADVERTISING SITE MANAGEMENT LIMITED,"1,125.00",CAPITAL PS (REGEN),LAND & BUILDINGS ACQUISITION FEES,5902412235,1000083914
07.04.2020,CHILDREN'S SERVICES,ILLUMINATED ARTS,"3,382.50",CENTRAL SUPPORT,EXTERNAL AGENCIES AND BODIES,5902412349,1000078065
07.04.2020,CHILDREN'S SERVICES,GREATER LONDON FOSTERING,"2,495.90",FRIENDS & FAMILY FOSTERING,EXTERNAL AGENCIES AND BODIES,2103083275,1000029184
07.04.2020,CHILDREN'S SERVICES,NICKII MESSER,500,SCHOOLS-HR TRADED SERVICE,PROFESSIONAL FEES,5902412234,1000084106
07.04.2020,CHILDREN'S SERVICES,DALEY BREAD LTD,"3,542.86",SEMI INDEPENDENT CARE LEAVERS,EXTERNAL AGENCIES AND BODIES,2103083271,1000080141
07.04.2020,CHILDREN'S SERVICES,DALEY BREAD LTD,"4,071.43",SEMI INDEPENDENT CARE LEAVERS,EXTERNAL AGENCIES AND BODIES,2103083263,1000080141
07.04.2020,CHILDREN'S SERVICES,DALEY BREAD LTD,"4,207.01",SEMI INDEPENDENT CARE LEAVERS,EXTERNAL AGENCIES AND BODIES,2103083267,1000080141
07.04.2020,CHILDREN'S SERVICES,DALEY BREAD LTD,"14,791.34",SEMI INDEPENDENT CARE LEAVERS,EXTERNAL AGENCIES AND BODIES,2103083265,1000080141
07.04.2020,CHILDREN'S SERVICES,DALEY BREAD LTD,"4,561.43",SEMI INDEPENDENT LAC,EXTERNAL AGENCIES AND BODIES,2103083255,1000080141
07.04.2020,CHILDREN'S SERVICES,NATIONWIDE ACCOMMODATION,532.5,TEMPORARY ACCOMMODATION,EXTERNAL AGENCIES AND BODIES,5902412384,1000076112
07.04.2020,CHILDREN'S SERVICES,NATIONWIDE ACCOMMODATION,603.5,TEMPORARY ACCOMMODATION,EXTERNAL AGENCIES AND BODIES,5902412380,1000076112
07.04.2020,CHILDREN'S SERVICES,DALEY BREAD LTD,"4,207.14",UASC LAC,EXTERNAL AGENCIES AND BODIES,2103083246,1000080141
07.04.2020,COMMUNITIES,NECKINGER ESTATE T&RA,"-4,950.00",TRSIG,GRANTS,5902412592,1266905
07.04.2020,COMMUNITIES,NECKINGER ESTATE T&RA,"4,950.00",TRSIG,GRANTS,5902407946,1266905
07.04.2020,COMMUNITIES PROJECTS,BOSENCE FARM COMMUNITY LTD,"3,220.00",TIER 4 SERVICES,OTHER CONTRACTORS,5902412411,1000081460
07.04.2020,CORP.MANAGEMENT & CHIEF EXEC.,POTTERS FIELDS PARK MANAGEMENT TRUST,"15,813.97",POTTERS FIELD PROJECT COSTS,SERVICE CHARGES,2103083260,1000053530
07.04.2020,CUSTOMER EXPERIENCE,ARGOS BUSINESS SOLUTIONS LTD,"2,291.24",COMPLAINTS,OFFICE EXPENSES,5902412388,1000001734
07.04.2020,CUSTOMER EXPERIENCE,ARGOS BUSINESS SOLUTIONS LTD,919.19,PECKHAM MSSP,OFFICE EXPENSES,5902412377,1000001734
07.04.2020,CUSTOMER EXPERIENCE HGF,WILLOW ESTATE AGENTS (LONDON) LTD,"2,000.00",PSL PLACEMENTS,EXTERNAL AGENCIES AND BODIES,5902412152,1000060607
07.04.2020,CUSTOMER EXPERIENCE HGF,WILLOW ESTATE AGENTS (LONDON) LTD,"4,000.00",PSL PLACEMENTS,EXTERNAL AGENCIES AND BODIES,5902412153,1000060607
07.04.2020,CUSTOMER EXPERIENCE HGF,LIVING ACCOMMODATION LTD,"8,080.00",RAPID REHOUSING,EXTERNAL AGENCIES AND BODIES,5902412391,1000063985
07.04.2020,CUSTOMER EXPERIENCE HGF,LIVING ACCOMMODATION LTD,"12,100.00",RAPID REHOUSING,EXTERNAL AGENCIES AND BODIES,5902412395,1000063985
07.04.2020,ENVIRONMENT DIRECTORATE,IMPERATIVE TRAINING LTD,255,BUSINESS CORE,OTHER EMPLOYEE EXPENSES,5902412277,1000075053
07.04.2020,ENVIRONMENT DIRECTORATE,TRAVIS PERKINS TRADING COMPANY LTD,475.7,ELECTRICAL TEAM,MATERIALS,5902412426,1514319
07.04.2020,ENVIRONMENT DIRECTORATE,LONDON TOOLS LIMITED,270,ENGINEERING CRAFTS,EQUIPMENT PURCHASE & REPAIR,5902412124,1000003017
07.04.2020,ENVIRONMENT DIRECTORATE,LONDON TOOLS LIMITED,590,ENGINEERING CRAFTS,EQUIPMENT PURCHASE & REPAIR,5902412112,1000003017
07.04.2020,ENVIRONMENT DIRECTORATE,LONDON TOOLS LIMITED,"1,500.00",ENGINEERING CRAFTS,MATERIALS,5902412107,1000003017
07.04.2020,ENVIRONMENT DIRECTORATE,PURPOSE POWDER COATINGS LTD,425,ENGINEERING CRAFTS,MATERIALS,5902412087,1000059450
07.04.2020,ENVIRONMENT DIRECTORATE,PURPOSE POWDER COATINGS LTD,522.08,ENGINEERING CRAFTS,MATERIALS,5902412117,1000059450
07.04.2020,ENVIRONMENT DIRECTORATE,BERKELEY HOMES (SOUTH EAST LONDON),"7,171.63",FLEET SERVICES MANAGEMENT,RENTS,2103083250,1000082826
07.04.2020,ENVIRONMENT DIRECTORATE,SKILLS TRAINING CENTRE LTD,"4,532.25",MANAGEMENT TEAM,TRAINING,5902412110,1000059249
07.04.2020,ENVIRONMENT DIRECTORATE,TRAVIS PERKINS TRADING COMPANY LTD,313.33,NUNHEAD DD,MATERIALS,5902412317,1514319
07.04.2020,ENVIRONMENT DIRECTORATE,TRAVIS PERKINS TRADING COMPANY LTD,313.33,NUNHEAD DD,MATERIALS,5902412321,1514319
07.04.2020,ENVIRONMENT DIRECTORATE,LONDON TOOLS LIMITED,259.8,PARKS TECH UNIT (PREMISES),MATERIALS,5902412165,1000003017
07.04.2020,ENVIRONMENT DIRECTORATE,LONDON TOOLS LIMITED,366,PUBLIC LIGHTING,EQUIPMENT PURCHASE & REPAIR,5902412135,1000003017
07.04.2020,ENVIRONMENT DIRECTORATE,LONDON TOOLS LIMITED,480,PUBLIC LIGHTING,EQUIPMENT PURCHASE & REPAIR,5902412105,1000003017
07.04.2020,ENVIRONMENT DIRECTORATE,LONDON TOOLS LIMITED,254,R & M OVERHEADS,EQUIPMENT PURCHASE & REPAIR,5902412093,1000003017
07.04.2020,ENVIRONMENT DIRECTORATE,LONDON TOOLS LIMITED,295,R & M OVERHEADS,EQUIPMENT PURCHASE & REPAIR,5902412099,1000003017
07.04.2020,ENVIRONMENT DIRECTORATE,LONDON TOOLS LIMITED,496,R & M OVERHEADS,EQUIPMENT PURCHASE & REPAIR,5902412106,1000003017
07.04.2020,ENVIRONMENT DIRECTORATE,LONDON TOOLS LIMITED,255.4,R & M OVERHEADS,MATERIALS,5902412084,1000003017
07.04.2020,ENVIRONMENT DIRECTORATE,LONDON TOOLS LIMITED,300,R & M OVERHEADS,MATERIALS,5902412122,1000003017
07.04.2020,ENVIRONMENT DIRECTORATE,LONDON TOOLS LIMITED,360,R & M OVERHEADS,MATERIALS,5902412218,1000003017
07.04.2020,ENVIRONMENT DIRECTORATE,LONDON TOOLS LIMITED,390,R & M OVERHEADS,MATERIALS,5902412106,1000003017
07.04.2020,ENVIRONMENT DIRECTORATE,LONDON TOOLS LIMITED,432,R & M OVERHEADS,MATERIALS,5902412086,1000003017
07.04.2020,ENVIRONMENT DIRECTORATE,LONDON TOOLS LIMITED,620.1,R & M OVERHEADS,MATERIALS,5902412154,1000003017
07.04.2020,ENVIRONMENT DIRECTORATE,LONDON TOOLS LIMITED,370,SBS COMMUNAL REPAIRS,MATERIALS,5902412089,1000003017
07.04.2020,ENVIRONMENT DIRECTORATE,LONDON TOOLS LIMITED,"1,610.00",SBS OUT OF HOURS,MATERIALS,5902412295,1000003017
07.04.2020,ENVIRONMENT DIRECTORATE,HENDERSON UK PROPERTY PAIF,"3,613.17",STREET TRADING A/C,RENTS,2103083243,1000080250
07.04.2020,EXCHEQUER SERVICES,CAPITA BUSINESS SERVICES LTD,"1,368.22",CAPITA,OTHER CONTRACTORS,5902412405,1000049446
07.04.2020,EXCHEQUER SERVICES,CAPITA BUSINESS SERVICES LTD,"17,815.16",CAPITA,OTHER CONTRACTORS,5902412410,1000049446
07.04.2020,HOUSING,OCO LIMITED,"997,987.46",PAYMENTS CONTROL ACCOUNT - OCO,I-WORLD CONTRACTORS HOLDING ACCOUNT,5902412310,1006066
07.04.2020,HOUSING & MODERNISATION,SOUTHWARK CITIZENS ADVICE,"65,965.00",LEGAL GRANTS,EXTERNAL AGENCIES AND BODIES,5902412390,1874379
07.04.2020,HOUSING GENERAL FUND,ASTRAL PS LTD,"10,256.18",CAPITAL PS (HOUSING GF),CAPITAL GRANTS,5902412382,1000073720
07.04.2020,LEISURE DIRECTORATE,PROFESSIONAL SPORTSTURF DESIGN,570,HOMERSTALL ROAD SPORTS GROUND,GROUNDS MAINTENANCE,5902412178,1000084185
07.04.2020,LEISURE DIRECTORATE,TECHNICAL SURFACES,275,SOUTHWARK AREA TEAM,OTHER R&M,5902412392,1000011451
07.04.2020,LEISURE DIRECTORATE,GRISTWOOD & TOMS LTD,"9,360.00",TREES RECOVERY PROJECT,OTHER CONTRACTORS,5902412133,1000028580
07.04.2020,LEISURE DIRECTORATE,GRISTWOOD & TOMS LTD,"13,180.00",TREES RECOVERY PROJECT,OTHER CONTRACTORS,5902412136,1000028580
07.04.2020,LEISURE DIRECTORATE,GRISTWOOD & TOMS LTD,"15,870.00",TREES RECOVERY PROJECT,OTHER CONTRACTORS,5902412233,1000028580
07.04.2020,MODERNISATION HGF,RCA BUSINESS PSYCHOLOGISTS LTD,"2,750.00",OCCUPATIONAL ASSESSMENT,CONSULTANTS SERVICES,5902412404,1000080957
07.04.2020,PLANNING AND TRANSPORT,PURCELL ARCHITECTURE LTD,"22,357.46",CONSERVATION,PROFESSIONAL FEES,5902412302,1000082955
07.04.2020,PLANNING AND TRANSPORT,WALWORTH METHODIST CHURCH,675,PLANNING POLICY TEAM,HIRE OF ROOMS/HALLS,5902412361,1000042218
07.04.2020,REGENERATION,ALI EKBER BULUT,"1,750.00",CPHA  MANAGED PROPERTIES,RENTS,2103083257,1000080799
07.04.2020,RESIDENT SERVICES,LONDON TOOLS LIMITED,440,EXTRA CARE,MATERIALS,5902412101,1000003017
07.04.2020,RESIDENT SERVICES,LONDON TOOLS LIMITED,"1,295.00",EXTRA CARE,MATERIALS,5902412126,1000003017
07.04.2020,RESIDENT SERVICES,LONDON TOOLS LIMITED,335,NORTHCOTT HOUSE,MATERIALS,5902412140,1000003017
07.04.2020,RESIDENT SERVICES,LONDON TOOLS LIMITED,336,TA HOSTELS,MATERIALS,5902412129,1000003017
07.04.2020,SOUTHWARK BUILDING SERVICES,"BROWNING, JONES & MORRIS LTD",294,STORES/LOGISTICS,CREDITORS -GR/IR CLEARING ACCOUNT,5902412262,1027429
07.04.2020,SOUTHWARK BUILDING SERVICES,"BROWNING, JONES & MORRIS LTD",359.8,STORES/LOGISTICS,CREDITORS -GR/IR CLEARING ACCOUNT,5902412270,1027429
07.04.2020,SOUTHWARK BUILDING SERVICES,"BROWNING, JONES & MORRIS LTD",453,STORES/LOGISTICS,CREDITORS -GR/IR CLEARING ACCOUNT,5902412270,1027429
07.04.2020,SOUTHWARK BUILDING SERVICES,"BROWNING, JONES & MORRIS LTD",499,STORES/LOGISTICS,CREDITORS -GR/IR CLEARING ACCOUNT,5902412262,1027429
07.04.2020,SOUTHWARK BUILDING SERVICES,"BROWNING, JONES & MORRIS LTD",570,STORES/LOGISTICS,CREDITORS -GR/IR CLEARING ACCOUNT,5902412270,1027429
07.04.2020,SOUTHWARK BUILDING SERVICES,"BROWNING, JONES & MORRIS LTD",750,STORES/LOGISTICS,CREDITORS -GR/IR CLEARING ACCOUNT,5902412265,1027429
07.04.2020,SOUTHWARK BUILDING SERVICES,"BROWNING, JONES & MORRIS LTD",839.4,STORES/LOGISTICS,CREDITORS -GR/IR CLEARING ACCOUNT,5902412270,1027429
07.04.2020,SOUTHWARK BUILDING SERVICES,LONDON TOOLS LIMITED,270,STORES/LOGISTICS,CREDITORS -GR/IR CLEARING ACCOUNT,5902412127,1000003017
07.04.2020,SOUTHWARK BUILDING SERVICES,LONDON TOOLS LIMITED,280,STORES/LOGISTICS,CREDITORS -GR/IR CLEARING ACCOUNT,5902412102,1000003017
07.04.2020,SOUTHWARK BUILDING SERVICES,LONDON TOOLS LIMITED,325,STORES/LOGISTICS,CREDITORS -GR/IR CLEARING ACCOUNT,5902412083,1000003017
07.04.2020,SOUTHWARK BUILDING SERVICES,LONDON TOOLS LIMITED,370,STORES/LOGISTICS,CREDITORS -GR/IR CLEARING ACCOUNT,5902412088,1000003017
07.04.2020,SOUTHWARK BUILDING SERVICES,LONDON TOOLS LIMITED,487.5,STORES/LOGISTICS,CREDITORS -GR/IR CLEARING ACCOUNT,5902412096,1000003017
07.04.2020,SOUTHWARK BUILDING SERVICES,LONDON TOOLS LIMITED,500,STORES/LOGISTICS,CREDITORS -GR/IR CLEARING ACCOUNT,5902412102,1000003017
07.04.2020,SOUTHWARK BUILDING SERVICES,LONDON TOOLS LIMITED,610,STORES/LOGISTICS,CREDITORS -GR/IR CLEARING ACCOUNT,5902412100,1000003017
07.04.2020,SOUTHWARK BUILDING SERVICES,LONDON TOOLS LIMITED,660,STORES/LOGISTICS,CREDITORS -GR/IR CLEARING ACCOUNT,5902412096,1000003017
07.04.2020,SOUTHWARK BUILDING SERVICES,LONDON TOOLS LIMITED,875,STORES/LOGISTICS,CREDITORS -GR/IR CLEARING ACCOUNT,5902412083,1000003017
07.04.2020,SOUTHWARK BUILDING SERVICES,LONDON TOOLS LIMITED,"1,427.50",STORES/LOGISTICS,CREDITORS -GR/IR CLEARING ACCOUNT,5902412079,1000003017
07.04.2020,SOUTHWARK BUILDING SERVICES,LONDON TOOLS LIMITED,"2,145.00",STORES/LOGISTICS,CREDITORS -GR/IR CLEARING ACCOUNT,5902412100,1000003017
07.04.2020,SOUTHWARK BUILDING SERVICES,LONDON TOOLS LIMITED,"2,250.00",STORES/LOGISTICS,CREDITORS -GR/IR CLEARING ACCOUNT,5902412091,1000003017
07.04.2020,SOUTHWARK BUILDING SERVICES,LONDON TOOLS LIMITED,"5,192.00",STORES/LOGISTICS,CREDITORS -GR/IR CLEARING ACCOUNT,5902412183,1000003017
07.04.2020,SOUTHWARK BUILDING SERVICES,LONDON TOOLS LIMITED,"14,933.00",STORES/LOGISTICS,CREDITORS -GR/IR CLEARING ACCOUNT,5902412080,1000003017
07.04.2020,SOUTHWARK BUILDING SERVICES,LONDON TOOLS LIMITED,"14,987.50",STORES/LOGISTICS,CREDITORS -GR/IR CLEARING ACCOUNT,5902412082,1000003017
07.04.2020,SOUTHWARK BUILDING SERVICES,ONSITE SUPPORT LTD,261.75,STORES/LOGISTICS,CREDITORS -GR/IR CLEARING ACCOUNT,5902412291,1000043198
07.04.2020,SOUTHWARK BUILDING SERVICES,ONSITE SUPPORT LTD,349,STORES/LOGISTICS,CREDITORS -GR/IR CLEARING ACCOUNT,5902412291,1000043198
07.04.2020,SOUTHWARK BUILDING SERVICES,ONSITE SUPPORT LTD,523.5,STORES/LOGISTICS,CREDITORS -GR/IR CLEARING ACCOUNT,5902412291,1000043198
08.04.2020,ADULT SOCIAL CARE,INDEPENDENT PEOPLE HOMECARE LTD,"3,985.71",CARERS SERVICES,PLACEMENTS - RESPITE,2103084991,1000083488
08.04.2020,ADULT SOCIAL CARE,NORTHGATE PUBLIC SERVICES (UK) LTD,"1,000.00",DEBT TASK FORCE,COMMS & COMPUTING CONTRACT CHARGES,5902412697,1000037405
08.04.2020,ADULT SOCIAL CARE,WE ARE BEAMS LTD,400,DISABILITIES LAC,EXTERNAL AGENCIES AND BODIES,5902412614,1000083431
08.04.2020,ADULT SOCIAL CARE,WE ARE BEAMS LTD,"2,000.00",DISABILITIES LAC,EXTERNAL AGENCIES AND BODIES,5902412613,1000083431
08.04.2020,ADULT SOCIAL CARE,KISIMUL GROUP LTD,"37,522.95",DISABILITIES LAC,RESIDENTIAL CARE,2103084084,1000079657
08.04.2020,ADULT SOCIAL CARE,ACCESS MOBILITY TRANSPORT LTD,"1,903.40",LD LTS 18-64,CLIENT TRANSPORT,2103084924,1000074637
08.04.2020,ADULT SOCIAL CARE,THE CAMDEN SOCIETY (SOCIAL CARE),720,LD LTS 18-64,DAYCARE,2103084996,1000036369
08.04.2020,ADULT SOCIAL CARE,ACT TOO LTD,400,LD LTS 18-64,DAYCARE,2103084920,1000053657
08.04.2020,ADULT SOCIAL CARE,AURORA OPTIONS,408,LD LTS 18-64,DAYCARE,2103085980,1000066695
08.04.2020,ADULT SOCIAL CARE,KENT HARRIER PROPERTY MANAGEMENT,"1,526.00",LD LTS 18-64,EXTERNAL AGENCIES AND BODIES,2103084915,1000078130
08.04.2020,ADULT SOCIAL CARE,KENT HARRIER PROPERTY MANAGEMENT,"1,590.00",LD LTS 18-64,EXTERNAL AGENCIES AND BODIES,2103084916,1000078130
08.04.2020,ADULT SOCIAL CARE,SWK DISABLEMENT ASSN,"2,275.32",LD LTS 18-64,HOMECARE - C&V,2103084869,1000011698
08.04.2020,ADULT SOCIAL CARE,PEOPLEPLUS ILS,254.68,LD LTS 18-64,PAYMENTS TO CLIENTS (DIRECT PAYMENTS),2103085676,1000061886
08.04.2020,ADULT SOCIAL CARE,PEOPLEPLUS ILS,260,LD LTS 18-64,PAYMENTS TO CLIENTS (DIRECT PAYMENTS),2103085619,1000061886
08.04.2020,ADULT SOCIAL CARE,PEOPLEPLUS ILS,266,LD LTS 18-64,PAYMENTS TO CLIENTS (DIRECT PAYMENTS),2103085954,1000061886
08.04.2020,ADULT SOCIAL CARE,PEOPLEPLUS ILS,299.6,LD LTS 18-64,PAYMENTS TO CLIENTS (DIRECT PAYMENTS),2103085234,1000061886
08.04.2020,ADULT SOCIAL CARE,PEOPLEPLUS ILS,300,LD LTS 18-64,PAYMENTS TO CLIENTS (DIRECT PAYMENTS),2103085928,1000061886
08.04.2020,ADULT SOCIAL CARE,PEOPLEPLUS ILS,305.88,LD LTS 18-64,PAYMENTS TO CLIENTS (DIRECT PAYMENTS),2103085674,1000061886
08.04.2020,ADULT SOCIAL CARE,PEOPLEPLUS ILS,316.8,LD LTS 18-64,PAYMENTS TO CLIENTS (DIRECT PAYMENTS),2103085275,1000061886
08.04.2020,ADULT SOCIAL CARE,PEOPLEPLUS ILS,329.32,LD LTS 18-64,PAYMENTS TO CLIENTS (DIRECT PAYMENTS),2103085331,1000061886
08.04.2020,ADULT SOCIAL CARE,PEOPLEPLUS ILS,329.8,LD LTS 18-64,PAYMENTS TO CLIENTS (DIRECT PAYMENTS),2103085496,1000061886
08.04.2020,ADULT SOCIAL CARE,PEOPLEPLUS ILS,334,LD LTS 18-64,PAYMENTS TO CLIENTS (DIRECT PAYMENTS),2103085808,1000061886
08.04.2020,ADULT SOCIAL CARE,PEOPLEPLUS ILS,342,LD LTS 18-64,PAYMENTS TO CLIENTS (DIRECT PAYMENTS),2103085895,1000061886
08.04.2020,ADULT SOCIAL CARE,PEOPLEPLUS ILS,349,LD LTS 18-64,PAYMENTS TO CLIENTS (DIRECT PAYMENTS),2103085559,1000061886
08.04.2020,ADULT SOCIAL CARE,PEOPLEPLUS ILS,352,LD LTS 18-64,PAYMENTS TO CLIENTS (DIRECT PAYMENTS),2103085601,1000061886
08.04.2020,ADULT SOCIAL CARE,PEOPLEPLUS ILS,356.92,LD LTS 18-64,PAYMENTS TO CLIENTS (DIRECT PAYMENTS),2103085401,1000061886
08.04.2020,ADULT SOCIAL CARE,PEOPLEPLUS ILS,374,LD LTS 18-64,PAYMENTS TO CLIENTS (DIRECT PAYMENTS),2103085650,1000061886
08.04.2020,ADULT SOCIAL CARE,PEOPLEPLUS ILS,385.6,LD LTS 18-64,PAYMENTS TO CLIENTS (DIRECT PAYMENTS),2103085232,1000061886
08.04.2020,ADULT SOCIAL CARE,PEOPLEPLUS ILS,419.44,LD LTS 18-64,PAYMENTS TO CLIENTS (DIRECT PAYMENTS),2103085277,1000061886
08.04.2020,ADULT SOCIAL CARE,PEOPLEPLUS ILS,437.6,LD LTS 18-64,PAYMENTS TO CLIENTS (DIRECT PAYMENTS),2103085851,1000061886
08.04.2020,ADULT SOCIAL CARE,PEOPLEPLUS ILS,440,LD LTS 18-64,PAYMENTS TO CLIENTS (DIRECT PAYMENTS),2103085573,1000061886
08.04.2020,ADULT SOCIAL CARE,PEOPLEPLUS ILS,452.48,LD LTS 18-64,PAYMENTS TO CLIENTS (DIRECT PAYMENTS),2103085325,1000061886
08.04.2020,ADULT SOCIAL CARE,PEOPLEPLUS ILS,458.08,LD LTS 18-64,PAYMENTS TO CLIENTS (DIRECT PAYMENTS),2103085795,1000061886
08.04.2020,ADULT SOCIAL CARE,PEOPLEPLUS ILS,464.8,LD LTS 18-64,PAYMENTS TO CLIENTS (DIRECT PAYMENTS),2103085335,1000061886
08.04.2020,ADULT SOCIAL CARE,PEOPLEPLUS ILS,480,LD LTS 18-64,PAYMENTS TO CLIENTS (DIRECT PAYMENTS),2103085274,1000061886
08.04.2020,ADULT SOCIAL CARE,PEOPLEPLUS ILS,486.48,LD LTS 18-64,PAYMENTS TO CLIENTS (DIRECT PAYMENTS),2103085958,1000061886
08.04.2020,ADULT SOCIAL CARE,PEOPLEPLUS ILS,493.36,LD LTS 18-64,PAYMENTS TO CLIENTS (DIRECT PAYMENTS),2103085266,1000061886
08.04.2020,ADULT SOCIAL CARE,PEOPLEPLUS ILS,513.36,LD LTS 18-64,PAYMENTS TO CLIENTS (DIRECT PAYMENTS),2103085885,1000061886
08.04.2020,ADULT SOCIAL CARE,PEOPLEPLUS ILS,558.72,LD LTS 18-64,PAYMENTS TO CLIENTS (DIRECT PAYMENTS),2103085709,1000061886
08.04.2020,ADULT SOCIAL CARE,PEOPLEPLUS ILS,577,LD LTS 18-64,PAYMENTS TO CLIENTS (DIRECT PAYMENTS),2103085939,1000061886
08.04.2020,ADULT SOCIAL CARE,PEOPLEPLUS ILS,578,LD LTS 18-64,PAYMENTS TO CLIENTS (DIRECT PAYMENTS),2103085219,1000061886
08.04.2020,ADULT SOCIAL CARE,PEOPLEPLUS ILS,579.12,LD LTS 18-64,PAYMENTS TO CLIENTS (DIRECT PAYMENTS),2103085448,1000061886
08.04.2020,ADULT SOCIAL CARE,PEOPLEPLUS ILS,632.4,LD LTS 18-64,PAYMENTS TO CLIENTS (DIRECT PAYMENTS),2103085354,1000061886
08.04.2020,ADULT SOCIAL CARE,PEOPLEPLUS ILS,633.2,LD LTS 18-64,PAYMENTS TO CLIENTS (DIRECT PAYMENTS),2103085283,1000061886
08.04.2020,ADULT SOCIAL CARE,PEOPLEPLUS ILS,633.2,LD LTS 18-64,PAYMENTS TO CLIENTS (DIRECT PAYMENTS),2103085861,1000061886
08.04.2020,ADULT SOCIAL CARE,PEOPLEPLUS ILS,670,LD LTS 18-64,PAYMENTS TO CLIENTS (DIRECT PAYMENTS),2103085360,1000061886
08.04.2020,ADULT SOCIAL CARE,PEOPLEPLUS ILS,670,LD LTS 18-64,PAYMENTS TO CLIENTS (DIRECT PAYMENTS),2103085925,1000061886
08.04.2020,ADULT SOCIAL CARE,PEOPLEPLUS ILS,680,LD LTS 18-64,PAYMENTS TO CLIENTS (DIRECT PAYMENTS),2103085516,1000061886
08.04.2020,ADULT SOCIAL CARE,PEOPLEPLUS ILS,712.4,LD LTS 18-64,PAYMENTS TO CLIENTS (DIRECT PAYMENTS),2103085391,1000061886
08.04.2020,ADULT SOCIAL CARE,PEOPLEPLUS ILS,718,LD LTS 18-64,PAYMENTS TO CLIENTS (DIRECT PAYMENTS),2103085205,1000061886
08.04.2020,ADULT SOCIAL CARE,PEOPLEPLUS ILS,724.24,LD LTS 18-64,PAYMENTS TO CLIENTS (DIRECT PAYMENTS),2103085988,1000061886
08.04.2020,ADULT SOCIAL CARE,PEOPLEPLUS ILS,743.04,LD LTS 18-64,PAYMENTS TO CLIENTS (DIRECT PAYMENTS),2103085258,1000061886
08.04.2020,ADULT SOCIAL CARE,PEOPLEPLUS ILS,753.04,LD LTS 18-64,PAYMENTS TO CLIENTS (DIRECT PAYMENTS),2103085332,1000061886
08.04.2020,ADULT SOCIAL CARE,PEOPLEPLUS ILS,753.04,LD LTS 18-64,PAYMENTS TO CLIENTS (DIRECT PAYMENTS),2103085722,1000061886
08.04.2020,ADULT SOCIAL CARE,PEOPLEPLUS ILS,754,LD LTS 18-64,PAYMENTS TO CLIENTS (DIRECT PAYMENTS),2103085890,1000061886
08.04.2020,ADULT SOCIAL CARE,PEOPLEPLUS ILS,758.72,LD LTS 18-64,PAYMENTS TO CLIENTS (DIRECT PAYMENTS),2103085908,1000061886
08.04.2020,ADULT SOCIAL CARE,PEOPLEPLUS ILS,762.28,LD LTS 18-64,PAYMENTS TO CLIENTS (DIRECT PAYMENTS),2103085364,1000061886
08.04.2020,ADULT SOCIAL CARE,PEOPLEPLUS ILS,766,LD LTS 18-64,PAYMENTS TO CLIENTS (DIRECT PAYMENTS),2103085201,1000061886
08.04.2020,ADULT SOCIAL CARE,PEOPLEPLUS ILS,780,LD LTS 18-64,PAYMENTS TO CLIENTS (DIRECT PAYMENTS),2103085649,1000061886
08.04.2020,ADULT SOCIAL CARE,PEOPLEPLUS ILS,784.08,LD LTS 18-64,PAYMENTS TO CLIENTS (DIRECT PAYMENTS),2103085827,1000061886
08.04.2020,ADULT SOCIAL CARE,PEOPLEPLUS ILS,789.6,LD LTS 18-64,PAYMENTS TO CLIENTS (DIRECT PAYMENTS),2103085597,1000061886
08.04.2020,ADULT SOCIAL CARE,PEOPLEPLUS ILS,794,LD LTS 18-64,PAYMENTS TO CLIENTS (DIRECT PAYMENTS),2103085723,1000061886
08.04.2020,ADULT SOCIAL CARE,PEOPLEPLUS ILS,811.84,LD LTS 18-64,PAYMENTS TO CLIENTS (DIRECT PAYMENTS),2103085462,1000061886
08.04.2020,ADULT SOCIAL CARE,PEOPLEPLUS ILS,819.84,LD LTS 18-64,PAYMENTS TO CLIENTS (DIRECT PAYMENTS),2103085298,1000061886
08.04.2020,ADULT SOCIAL CARE,PEOPLEPLUS ILS,852.04,LD LTS 18-64,PAYMENTS TO CLIENTS (DIRECT PAYMENTS),2103085285,1000061886
08.04.2020,ADULT SOCIAL CARE,PEOPLEPLUS ILS,860,LD LTS 18-64,PAYMENTS TO CLIENTS (DIRECT PAYMENTS),2103085411,1000061886
08.04.2020,ADULT SOCIAL CARE,PEOPLEPLUS ILS,875.6,LD LTS 18-64,PAYMENTS TO CLIENTS (DIRECT PAYMENTS),2103085712,1000061886
08.04.2020,ADULT SOCIAL CARE,PEOPLEPLUS ILS,890.84,LD LTS 18-64,PAYMENTS TO CLIENTS (DIRECT PAYMENTS),2103085475,1000061886
08.04.2020,ADULT SOCIAL CARE,PEOPLEPLUS ILS,896.8,LD LTS 18-64,PAYMENTS TO CLIENTS (DIRECT PAYMENTS),2103085342,1000061886
08.04.2020,ADULT SOCIAL CARE,PEOPLEPLUS ILS,904.96,LD LTS 18-64,PAYMENTS TO CLIENTS (DIRECT PAYMENTS),2103085502,1000061886
08.04.2020,ADULT SOCIAL CARE,PEOPLEPLUS ILS,918,LD LTS 18-64,PAYMENTS TO CLIENTS (DIRECT PAYMENTS),2103085671,1000061886
08.04.2020,ADULT SOCIAL CARE,PEOPLEPLUS ILS,957.2,LD LTS 18-64,PAYMENTS TO CLIENTS (DIRECT PAYMENTS),2103085490,1000061886
08.04.2020,ADULT SOCIAL CARE,PEOPLEPLUS ILS,970.2,LD LTS 18-64,PAYMENTS TO CLIENTS (DIRECT PAYMENTS),2103085466,1000061886
08.04.2020,ADULT SOCIAL CARE,PEOPLEPLUS ILS,"1,000.00",LD LTS 18-64,PAYMENTS TO CLIENTS (DIRECT PAYMENTS),2103085443,1000061886
08.04.2020,ADULT SOCIAL CARE,PEOPLEPLUS ILS,"1,000.00",LD LTS 18-64,PAYMENTS TO CLIENTS (DIRECT PAYMENTS),2103085487,1000061886
08.04.2020,ADULT SOCIAL CARE,PEOPLEPLUS ILS,"1,013.48",LD LTS 18-64,PAYMENTS TO CLIENTS (DIRECT PAYMENTS),2103085302,1000061886
08.04.2020,ADULT SOCIAL CARE,PEOPLEPLUS ILS,"1,018.08",LD LTS 18-64,PAYMENTS TO CLIENTS (DIRECT PAYMENTS),2103085605,1000061886
08.04.2020,ADULT SOCIAL CARE,PEOPLEPLUS ILS,"1,052.00",LD LTS 18-64,PAYMENTS TO CLIENTS (DIRECT PAYMENTS),2103085631,1000061886
08.04.2020,ADULT SOCIAL CARE,PEOPLEPLUS ILS,"1,054.00",LD LTS 18-64,PAYMENTS TO CLIENTS (DIRECT PAYMENTS),2103085717,1000061886
08.04.2020,ADULT SOCIAL CARE,PEOPLEPLUS ILS,"1,128.96",LD LTS 18-64,PAYMENTS TO CLIENTS (DIRECT PAYMENTS),2103085665,1000061886
08.04.2020,ADULT SOCIAL CARE,PEOPLEPLUS ILS,"1,172.48",LD LTS 18-64,PAYMENTS TO CLIENTS (DIRECT PAYMENTS),2103085309,1000061886
08.04.2020,ADULT SOCIAL CARE,PEOPLEPLUS ILS,"1,192.64",LD LTS 18-64,PAYMENTS TO CLIENTS (DIRECT PAYMENTS),2103085575,1000061886
08.04.2020,ADULT SOCIAL CARE,PEOPLEPLUS ILS,"1,242.40",LD LTS 18-64,PAYMENTS TO CLIENTS (DIRECT PAYMENTS),2103085253,1000061886
08.04.2020,ADULT SOCIAL CARE,PEOPLEPLUS ILS,"1,319.24",LD LTS 18-64,PAYMENTS TO CLIENTS (DIRECT PAYMENTS),2103085488,1000061886
08.04.2020,ADULT SOCIAL CARE,PEOPLEPLUS ILS,"1,324.40",LD LTS 18-64,PAYMENTS TO CLIENTS (DIRECT PAYMENTS),2103085500,1000061886
08.04.2020,ADULT SOCIAL CARE,PEOPLEPLUS ILS,"1,326.40",LD LTS 18-64,PAYMENTS TO CLIENTS (DIRECT PAYMENTS),2103085767,1000061886
08.04.2020,ADULT SOCIAL CARE,PEOPLEPLUS ILS,"1,358.00",LD LTS 18-64,PAYMENTS TO CLIENTS (DIRECT PAYMENTS),2103085583,1000061886
08.04.2020,ADULT SOCIAL CARE,PEOPLEPLUS ILS,"1,359.24",LD LTS 18-64,PAYMENTS TO CLIENTS (DIRECT PAYMENTS),2103085807,1000061886
08.04.2020,ADULT SOCIAL CARE,PEOPLEPLUS ILS,"1,433.20",LD LTS 18-64,PAYMENTS TO CLIENTS (DIRECT PAYMENTS),2103085557,1000061886
08.04.2020,ADULT SOCIAL CARE,PEOPLEPLUS ILS,"1,460.96",LD LTS 18-64,PAYMENTS TO CLIENTS (DIRECT PAYMENTS),2103085967,1000061886
08.04.2020,ADULT SOCIAL CARE,PEOPLEPLUS ILS,"1,475.84",LD LTS 18-64,PAYMENTS TO CLIENTS (DIRECT PAYMENTS),2103085789,1000061886
08.04.2020,ADULT SOCIAL CARE,PEOPLEPLUS ILS,"1,480.20",LD LTS 18-64,PAYMENTS TO CLIENTS (DIRECT PAYMENTS),2103085300,1000061886
08.04.2020,ADULT SOCIAL CARE,PEOPLEPLUS ILS,"1,529.52",LD LTS 18-64,PAYMENTS TO CLIENTS (DIRECT PAYMENTS),2103085422,1000061886
08.04.2020,ADULT SOCIAL CARE,PEOPLEPLUS ILS,"1,570.60",LD LTS 18-64,PAYMENTS TO CLIENTS (DIRECT PAYMENTS),2103085621,1000061886
08.04.2020,ADULT SOCIAL CARE,PEOPLEPLUS ILS,"1,593.92",LD LTS 18-64,PAYMENTS TO CLIENTS (DIRECT PAYMENTS),2103085757,1000061886
08.04.2020,ADULT SOCIAL CARE,PEOPLEPLUS ILS,"1,605.76",LD LTS 18-64,PAYMENTS TO CLIENTS (DIRECT PAYMENTS),2103085547,1000061886
08.04.2020,ADULT SOCIAL CARE,PEOPLEPLUS ILS,"1,617.28",LD LTS 18-64,PAYMENTS TO CLIENTS (DIRECT PAYMENTS),2103085840,1000061886
08.04.2020,ADULT SOCIAL CARE,PEOPLEPLUS ILS,"1,659.04",LD LTS 18-64,PAYMENTS TO CLIENTS (DIRECT PAYMENTS),2103085607,1000061886
08.04.2020,ADULT SOCIAL CARE,PEOPLEPLUS ILS,"1,674.96",LD LTS 18-64,PAYMENTS TO CLIENTS (DIRECT PAYMENTS),2103085429,1000061886
08.04.2020,ADULT SOCIAL CARE,PEOPLEPLUS ILS,"1,690.24",LD LTS 18-64,PAYMENTS TO CLIENTS (DIRECT PAYMENTS),2103085867,1000061886
08.04.2020,ADULT SOCIAL CARE,PEOPLEPLUS ILS,"1,696.32",LD LTS 18-64,PAYMENTS TO CLIENTS (DIRECT PAYMENTS),2103085524,1000061886
08.04.2020,ADULT SOCIAL CARE,PEOPLEPLUS ILS,"1,696.80",LD LTS 18-64,PAYMENTS TO CLIENTS (DIRECT PAYMENTS),2103085236,1000061886
08.04.2020,ADULT SOCIAL CARE,PEOPLEPLUS ILS,"1,714.00",LD LTS 18-64,PAYMENTS TO CLIENTS (DIRECT PAYMENTS),2103085784,1000061886
08.04.2020,ADULT SOCIAL CARE,PEOPLEPLUS ILS,"1,730.80",LD LTS 18-64,PAYMENTS TO CLIENTS (DIRECT PAYMENTS),2103085853,1000061886
08.04.2020,ADULT SOCIAL CARE,PEOPLEPLUS ILS,"1,823.48",LD LTS 18-64,PAYMENTS TO CLIENTS (DIRECT PAYMENTS),2103085224,1000061886
08.04.2020,ADULT SOCIAL CARE,PEOPLEPLUS ILS,"1,829.00",LD LTS 18-64,PAYMENTS TO CLIENTS (DIRECT PAYMENTS),2103085319,1000061886
08.04.2020,ADULT SOCIAL CARE,PEOPLEPLUS ILS,"1,829.60",LD LTS 18-64,PAYMENTS TO CLIENTS (DIRECT PAYMENTS),2103085415,1000061886
08.04.2020,ADULT SOCIAL CARE,PEOPLEPLUS ILS,"1,832.64",LD LTS 18-64,PAYMENTS TO CLIENTS (DIRECT PAYMENTS),2103085506,1000061886
08.04.2020,ADULT SOCIAL CARE,PEOPLEPLUS ILS,"1,862.00",LD LTS 18-64,PAYMENTS TO CLIENTS (DIRECT PAYMENTS),2103085287,1000061886
08.04.2020,ADULT SOCIAL CARE,PEOPLEPLUS ILS,"1,888.28",LD LTS 18-64,PAYMENTS TO CLIENTS (DIRECT PAYMENTS),2103085476,1000061886
08.04.2020,ADULT SOCIAL CARE,PEOPLEPLUS ILS,"1,950.96",LD LTS 18-64,PAYMENTS TO CLIENTS (DIRECT PAYMENTS),2103085678,1000061886
08.04.2020,ADULT SOCIAL CARE,PEOPLEPLUS ILS,"2,044.40",LD LTS 18-64,PAYMENTS TO CLIENTS (DIRECT PAYMENTS),2103085756,1000061886
08.04.2020,ADULT SOCIAL CARE,PEOPLEPLUS ILS,"2,090.00",LD LTS 18-64,PAYMENTS TO CLIENTS (DIRECT PAYMENTS),2103085396,1000061886
08.04.2020,ADULT SOCIAL CARE,PEOPLEPLUS ILS,"2,097.56",LD LTS 18-64,PAYMENTS TO CLIENTS (DIRECT PAYMENTS),2103085718,1000061886
08.04.2020,ADULT SOCIAL CARE,PEOPLEPLUS ILS,"2,131.20",LD LTS 18-64,PAYMENTS TO CLIENTS (DIRECT PAYMENTS),2103085977,1000061886
08.04.2020,ADULT SOCIAL CARE,PEOPLEPLUS ILS,"2,268.84",LD LTS 18-64,PAYMENTS TO CLIENTS (DIRECT PAYMENTS),2103085919,1000061886
08.04.2020,ADULT SOCIAL CARE,PEOPLEPLUS ILS,"2,289.28",LD LTS 18-64,PAYMENTS TO CLIENTS (DIRECT PAYMENTS),2103085857,1000061886
08.04.2020,ADULT SOCIAL CARE,PEOPLEPLUS ILS,"2,354.88",LD LTS 18-64,PAYMENTS TO CLIENTS (DIRECT PAYMENTS),2103085468,1000061886
08.04.2020,ADULT SOCIAL CARE,PEOPLEPLUS ILS,"2,447.76",LD LTS 18-64,PAYMENTS TO CLIENTS (DIRECT PAYMENTS),2103085986,1000061886
08.04.2020,ADULT SOCIAL CARE,PEOPLEPLUS ILS,"2,494.00",LD LTS 18-64,PAYMENTS TO CLIENTS (DIRECT PAYMENTS),2103085938,1000061886
08.04.2020,ADULT SOCIAL CARE,PEOPLEPLUS ILS,"2,668.40",LD LTS 18-64,PAYMENTS TO CLIENTS (DIRECT PAYMENTS),2103085523,1000061886
08.04.2020,ADULT SOCIAL CARE,PEOPLEPLUS ILS,"2,865.00",LD LTS 18-64,PAYMENTS TO CLIENTS (DIRECT PAYMENTS),2103085675,1000061886
08.04.2020,ADULT SOCIAL CARE,PEOPLEPLUS ILS,"2,906.00",LD LTS 18-64,PAYMENTS TO CLIENTS (DIRECT PAYMENTS),2103085395,1000061886
08.04.2020,ADULT SOCIAL CARE,PEOPLEPLUS ILS,"2,918.00",LD LTS 18-64,PAYMENTS TO CLIENTS (DIRECT PAYMENTS),2103085279,1000061886
08.04.2020,ADULT SOCIAL CARE,PEOPLEPLUS ILS,"2,972.00",LD LTS 18-64,PAYMENTS TO CLIENTS (DIRECT PAYMENTS),2103085322,1000061886
08.04.2020,ADULT SOCIAL CARE,PEOPLEPLUS ILS,"3,024.11",LD LTS 18-64,PAYMENTS TO CLIENTS (DIRECT PAYMENTS),2103085915,1000061886
08.04.2020,ADULT SOCIAL CARE,PEOPLEPLUS ILS,"3,106.52",LD LTS 18-64,PAYMENTS TO CLIENTS (DIRECT PAYMENTS),2103085936,1000061886
08.04.2020,ADULT SOCIAL CARE,PEOPLEPLUS ILS,"3,610.00",LD LTS 18-64,PAYMENTS TO CLIENTS (DIRECT PAYMENTS),2103085386,1000061886
08.04.2020,ADULT SOCIAL CARE,PEOPLEPLUS ILS,"3,795.20",LD LTS 18-64,PAYMENTS TO CLIENTS (DIRECT PAYMENTS),2103085903,1000061886
08.04.2020,ADULT SOCIAL CARE,PEOPLEPLUS ILS,"3,913.00",LD LTS 18-64,PAYMENTS TO CLIENTS (DIRECT PAYMENTS),2103085545,1000061886
08.04.2020,ADULT SOCIAL CARE,PEOPLEPLUS ILS,"4,242.00",LD LTS 18-64,PAYMENTS TO CLIENTS (DIRECT PAYMENTS),2103085280,1000061886
08.04.2020,ADULT SOCIAL CARE,PEOPLEPLUS ILS,"4,524.80",LD LTS 18-64,PAYMENTS TO CLIENTS (DIRECT PAYMENTS),2103085338,1000061886
08.04.2020,ADULT SOCIAL CARE,PEOPLEPLUS ILS,"4,629.20",LD LTS 18-64,PAYMENTS TO CLIENTS (DIRECT PAYMENTS),2103085311,1000061886
08.04.2020,ADULT SOCIAL CARE,PEOPLEPLUS ILS,"7,997.92",LD LTS 18-64,PAYMENTS TO CLIENTS (DIRECT PAYMENTS),2103085477,1000061886
08.04.2020,ADULT SOCIAL CARE,PEOPLEPLUS ILS,"9,126.80",LD LTS 18-64,PAYMENTS TO CLIENTS (DIRECT PAYMENTS),2103085271,1000061886
08.04.2020,ADULT SOCIAL CARE,PEOPLEPLUS ILS,"11,809.20",LD LTS 18-64,PAYMENTS TO CLIENTS (DIRECT PAYMENTS),2103085691,1000061886
08.04.2020,ADULT SOCIAL CARE,PEOPLEPLUS ILS,"12,619.20",LD LTS 18-64,PAYMENTS TO CLIENTS (DIRECT PAYMENTS),2103085337,1000061886
08.04.2020,ADULT SOCIAL CARE,PEOPLEPLUS ILS,"12,619.20",LD LTS 18-64,PAYMENTS TO CLIENTS (DIRECT PAYMENTS),2103085655,1000061886
08.04.2020,ADULT SOCIAL CARE,FRESH IDEAS & SOLUTIONS SERVICES CIC,465.64,LD LTS 18-64,PAYMENTS TO CLIENTS (DIRECT PAYMENTS),2103085465,1000070832
08.04.2020,ADULT SOCIAL CARE,FRESH IDEAS & SOLUTIONS SERVICES CIC,740,LD LTS 18-64,PAYMENTS TO CLIENTS (DIRECT PAYMENTS),2103085565,1000070832
08.04.2020,ADULT SOCIAL CARE,FRESH IDEAS & SOLUTIONS SERVICES CIC,875.6,LD LTS 18-64,PAYMENTS TO CLIENTS (DIRECT PAYMENTS),2103085398,1000070832
08.04.2020,ADULT SOCIAL CARE,FRESH IDEAS & SOLUTIONS SERVICES CIC,"1,047.52",LD LTS 18-64,PAYMENTS TO CLIENTS (DIRECT PAYMENTS),2103085368,1000070832
08.04.2020,ADULT SOCIAL CARE,FRESH IDEAS & SOLUTIONS SERVICES CIC,"1,663.56",LD LTS 18-64,PAYMENTS TO CLIENTS (DIRECT PAYMENTS),2103085310,1000070832
08.04.2020,ADULT SOCIAL CARE,FRESH IDEAS & SOLUTIONS SERVICES CIC,"1,848.00",LD LTS 18-64,PAYMENTS TO CLIENTS (DIRECT PAYMENTS),2103085984,1000070832
08.04.2020,ADULT SOCIAL CARE,FRESH IDEAS & SOLUTIONS SERVICES CIC,"2,618.80",LD LTS 18-64,PAYMENTS TO CLIENTS (DIRECT PAYMENTS),2103085351,1000070832
08.04.2020,ADULT SOCIAL CARE,REDACTED PERSONAL DATA,"2,262.40",LD LTS 18-64,PAYMENTS TO CLIENTS (DIRECT PAYMENTS),REDACTED,REDACTED
08.04.2020,ADULT SOCIAL CARE,REDACTED PERSONAL DATA,"3,923.12",LD LTS 18-64,PAYMENTS TO CLIENTS (DIRECT PAYMENTS),REDACTED,REDACTED
08.04.2020,ADULT SOCIAL CARE,REDACTED PERSONAL DATA,981.52,LD LTS 18-64,PAYMENTS TO CLIENTS (DIRECT PAYMENTS),REDACTED,REDACTED
08.04.2020,ADULT SOCIAL CARE,REDACTED PERSONAL DATA,"6,287.92",LD LTS 18-64,PAYMENTS TO CLIENTS (DIRECT PAYMENTS),REDACTED,REDACTED
08.04.2020,ADULT SOCIAL CARE,REDACTED PERSONAL DATA,"2,452.08",LD LTS 18-64,PAYMENTS TO CLIENTS (DIRECT PAYMENTS),REDACTED,REDACTED
08.04.2020,ADULT SOCIAL CARE,REDACTED PERSONAL DATA,"1,979.60",LD LTS 18-64,PAYMENTS TO CLIENTS (DIRECT PAYMENTS),REDACTED,REDACTED
08.04.2020,ADULT SOCIAL CARE,REDACTED PERSONAL DATA,"8,484.60",LD LTS 18-64,PAYMENTS TO CLIENTS (DIRECT PAYMENTS),REDACTED,REDACTED
08.04.2020,ADULT SOCIAL CARE,REDACTED PERSONAL DATA,288.8,LD LTS 18-64,PAYMENTS TO CLIENTS (DIRECT PAYMENTS),REDACTED,REDACTED
08.04.2020,ADULT SOCIAL CARE,REDACTED PERSONAL DATA,"1,534.00",LD LTS 18-64,PAYMENTS TO CLIENTS (DIRECT PAYMENTS),REDACTED,REDACTED
08.04.2020,ADULT SOCIAL CARE,REDACTED PERSONAL DATA,"2,158.60",LD LTS 18-64,PAYMENTS TO CLIENTS (DIRECT PAYMENTS),REDACTED,REDACTED
08.04.2020,ADULT SOCIAL CARE,REDACTED PERSONAL DATA,"3,864.64",LD LTS 18-64,PAYMENTS TO CLIENTS (DIRECT PAYMENTS),REDACTED,REDACTED
08.04.2020,ADULT SOCIAL CARE,REDACTED PERSONAL DATA,"4,932.10",LD LTS 18-64,PAYMENTS TO CLIENTS (DIRECT PAYMENTS),REDACTED,REDACTED
08.04.2020,ADULT SOCIAL CARE,REDACTED PERSONAL DATA,"1,420.12",LD LTS 18-64,PAYMENTS TO CLIENTS (DIRECT PAYMENTS),REDACTED,REDACTED
08.04.2020,ADULT SOCIAL CARE,REDACTED PERSONAL DATA,594.4,LD LTS 18-64,PAYMENTS TO CLIENTS (DIRECT PAYMENTS),REDACTED,REDACTED
08.04.2020,ADULT SOCIAL CARE,REDACTED PERSONAL DATA,414.8,LD LTS 18-64,PAYMENTS TO CLIENTS (DIRECT PAYMENTS),REDACTED,REDACTED
08.04.2020,ADULT SOCIAL CARE,REDACTED PERSONAL DATA,300,LD LTS 18-64,PAYMENTS TO CLIENTS (DIRECT PAYMENTS),REDACTED,REDACTED
08.04.2020,ADULT SOCIAL CARE,REDACTED PERSONAL DATA,282.8,LD LTS 18-64,PAYMENTS TO CLIENTS (DIRECT PAYMENTS),REDACTED,REDACTED
08.04.2020,ADULT SOCIAL CARE,REDACTED PERSONAL DATA,"1,368.32",LD LTS 18-64,PAYMENTS TO CLIENTS (DIRECT PAYMENTS),REDACTED,REDACTED
08.04.2020,ADULT SOCIAL CARE,REDACTED PERSONAL DATA,"2,317.60",LD LTS 18-64,PAYMENTS TO CLIENTS (DIRECT PAYMENTS),REDACTED,REDACTED
08.04.2020,ADULT SOCIAL CARE,REDACTED PERSONAL DATA,"2,000.00",LD LTS 18-64,PAYMENTS TO CLIENTS (DIRECT PAYMENTS),REDACTED,REDACTED
08.04.2020,ADULT SOCIAL CARE,REDACTED PERSONAL DATA,522.6,LD LTS 18-64,PAYMENTS TO CLIENTS (DIRECT PAYMENTS),REDACTED,REDACTED
08.04.2020,ADULT SOCIAL CARE,REDACTED PERSONAL DATA,"6,644.40",LD LTS 18-64,PAYMENTS TO CLIENTS (DIRECT PAYMENTS),REDACTED,REDACTED
08.04.2020,ADULT SOCIAL CARE,REDACTED PERSONAL DATA,"1,025.20",LD LTS 18-64,PAYMENTS TO CLIENTS (DIRECT PAYMENTS),REDACTED,REDACTED
08.04.2020,ADULT SOCIAL CARE,REDACTED PERSONAL DATA,809.8,LD LTS 18-64,PAYMENTS TO CLIENTS (DIRECT PAYMENTS),REDACTED,REDACTED
08.04.2020,ADULT SOCIAL CARE,REDACTED PERSONAL DATA,300,LD LTS 18-64,PAYMENTS TO CLIENTS (DIRECT PAYMENTS),REDACTED,REDACTED
08.04.2020,ADULT SOCIAL CARE,REDACTED PERSONAL DATA,"2,118.00",LD LTS 18-64,PAYMENTS TO CLIENTS (DIRECT PAYMENTS),REDACTED,REDACTED
08.04.2020,ADULT SOCIAL CARE,REDACTED PERSONAL DATA,738,LD LTS 18-64,PAYMENTS TO CLIENTS (DIRECT PAYMENTS),REDACTED,REDACTED
08.04.2020,ADULT SOCIAL CARE,REDACTED PERSONAL DATA,282.8,LD LTS 18-64,PAYMENTS TO CLIENTS (DIRECT PAYMENTS),REDACTED,REDACTED
08.04.2020,ADULT SOCIAL CARE,REDACTED PERSONAL DATA,"1,036.24",LD LTS 18-64,PAYMENTS TO CLIENTS (DIRECT PAYMENTS),REDACTED,REDACTED
08.04.2020,ADULT SOCIAL CARE,REDACTED PERSONAL DATA,320,LD LTS 18-64,PAYMENTS TO CLIENTS (DIRECT PAYMENTS),REDACTED,REDACTED
08.04.2020,ADULT SOCIAL CARE,REDACTED PERSONAL DATA,"1,443.00",LD LTS 18-64,PAYMENTS TO CLIENTS (DIRECT PAYMENTS),REDACTED,REDACTED
08.04.2020,ADULT SOCIAL CARE,REDACTED PERSONAL DATA,"2,116.00",LD LTS 18-64,PAYMENTS TO CLIENTS (DIRECT PAYMENTS),REDACTED,REDACTED
08.04.2020,ADULT SOCIAL CARE,REDACTED PERSONAL DATA,639.2,LD LTS 18-64,PAYMENTS TO CLIENTS (DIRECT PAYMENTS),REDACTED,REDACTED
08.04.2020,ADULT SOCIAL CARE,REDACTED PERSONAL DATA,"1,200.00",LD LTS 18-64,PAYMENTS TO CLIENTS (DIRECT PAYMENTS),REDACTED,REDACTED
08.04.2020,ADULT SOCIAL CARE,REDACTED PERSONAL DATA,718,LD LTS 18-64,PAYMENTS TO CLIENTS (DIRECT PAYMENTS),REDACTED,REDACTED
08.04.2020,ADULT SOCIAL CARE,REDACTED PERSONAL DATA,"1,290.16",LD LTS 18-64,PAYMENTS TO CLIENTS (DIRECT PAYMENTS),REDACTED,REDACTED
08.04.2020,ADULT SOCIAL CARE,REDACTED PERSONAL DATA,"1,532.68",LD LTS 18-64,PAYMENTS TO CLIENTS (DIRECT PAYMENTS),REDACTED,REDACTED
08.04.2020,ADULT SOCIAL CARE,REDACTED PERSONAL DATA,"1,532.92",LD LTS 18-64,PAYMENTS TO CLIENTS (DIRECT PAYMENTS),REDACTED,REDACTED
08.04.2020,ADULT SOCIAL CARE,REDACTED PERSONAL DATA,"4,020.80",LD LTS 18-64,PAYMENTS TO CLIENTS (DIRECT PAYMENTS),REDACTED,REDACTED
08.04.2020,ADULT SOCIAL CARE,REDACTED PERSONAL DATA,"7,434.88",LD LTS 18-64,PAYMENTS TO CLIENTS (DIRECT PAYMENTS),REDACTED,REDACTED
08.04.2020,ADULT SOCIAL CARE,REDACTED PERSONAL DATA,"2,347.24",LD LTS 18-64,PAYMENTS TO CLIENTS (DIRECT PAYMENTS),REDACTED,REDACTED
08.04.2020,ADULT SOCIAL CARE,REDACTED PERSONAL DATA,"1,746.16",LD LTS 18-64,PAYMENTS TO CLIENTS (DIRECT PAYMENTS),REDACTED,REDACTED
08.04.2020,ADULT SOCIAL CARE,REDACTED PERSONAL DATA,"2,660.20",LD LTS 18-64,PAYMENTS TO CLIENTS (DIRECT PAYMENTS),REDACTED,REDACTED
08.04.2020,ADULT SOCIAL CARE,REDACTED PERSONAL DATA,676,LD LTS 18-64,PAYMENTS TO CLIENTS (DIRECT PAYMENTS),REDACTED,REDACTED
08.04.2020,ADULT SOCIAL CARE,REDACTED PERSONAL DATA,"1,293.44",LD LTS 18-64,PAYMENTS TO CLIENTS (DIRECT PAYMENTS),REDACTED,REDACTED
08.04.2020,ADULT SOCIAL CARE,REDACTED PERSONAL DATA,"1,493.16",LD LTS 18-64,PAYMENTS TO CLIENTS (DIRECT PAYMENTS),REDACTED,REDACTED
08.04.2020,ADULT SOCIAL CARE,REDACTED PERSONAL DATA,"12,580.00",LD LTS 18-64,PAYMENTS TO CLIENTS (DIRECT PAYMENTS),REDACTED,REDACTED
08.04.2020,ADULT SOCIAL CARE,REDACTED PERSONAL DATA,978,LD LTS 18-64,PAYMENTS TO CLIENTS (DIRECT PAYMENTS),REDACTED,REDACTED
08.04.2020,ADULT SOCIAL CARE,REDACTED PERSONAL DATA,956.16,LD LTS 18-64,PAYMENTS TO CLIENTS (DIRECT PAYMENTS),REDACTED,REDACTED
08.04.2020,ADULT SOCIAL CARE,REDACTED PERSONAL DATA,"1,400.00",LD LTS 18-64,PAYMENTS TO CLIENTS (DIRECT PAYMENTS),REDACTED,REDACTED
08.04.2020,ADULT SOCIAL CARE,REDACTED PERSONAL DATA,"2,736.00",LD LTS 18-64,PAYMENTS TO CLIENTS (DIRECT PAYMENTS),REDACTED,REDACTED
08.04.2020,ADULT SOCIAL CARE,REDACTED PERSONAL DATA,484.32,LD LTS 18-64,PAYMENTS TO CLIENTS (DIRECT PAYMENTS),REDACTED,REDACTED
08.04.2020,ADULT SOCIAL CARE,REDACTED PERSONAL DATA,359.36,LD LTS 18-64,PAYMENTS TO CLIENTS (DIRECT PAYMENTS),REDACTED,REDACTED
08.04.2020,ADULT SOCIAL CARE,REDACTED PERSONAL DATA,777.16,LD LTS 18-64,PAYMENTS TO CLIENTS (DIRECT PAYMENTS),REDACTED,REDACTED
08.04.2020,ADULT SOCIAL CARE,REDACTED PERSONAL DATA,460.04,LD LTS 18-64,PAYMENTS TO CLIENTS (DIRECT PAYMENTS),REDACTED,REDACTED
08.04.2020,ADULT SOCIAL CARE,REDACTED PERSONAL DATA,430.8,LD LTS 18-64,PAYMENTS TO CLIENTS (DIRECT PAYMENTS),REDACTED,REDACTED
08.04.2020,ADULT SOCIAL CARE,REDACTED PERSONAL DATA,858.88,LD LTS 18-64,PAYMENTS TO CLIENTS (DIRECT PAYMENTS),REDACTED,REDACTED
08.04.2020,ADULT SOCIAL CARE,CHOICE SUPPORT,"6,037.20",LD LTS 18-64,SUPPORTED LIVING,2103084923,1104183
08.04.2020,ADULT SOCIAL CARE,KEYRING-LIVING SUPPORT NETWORKS LTD,285.84,LD LTS 18-64,SUPPORTED LIVING,2103084994,1486496
08.04.2020,ADULT SOCIAL CARE,GRANGE FARM COMPLEX,"1,778.36",LD LTS 18-64,SUPPORTED LIVING,2103085805,11086081
08.04.2020,ADULT SOCIAL CARE,THE FRANCES TAYLOR FOUNDATION,742.2,LD LTS 18-64,SUPPORTED LIVING,2103084937,1000007274
08.04.2020,ADULT SOCIAL CARE,SWK DISABLEMENT ASSN,434.88,LD LTS 18-64,SUPPORTED LIVING,2103084857,1000011698
08.04.2020,ADULT SOCIAL CARE,SWK DISABLEMENT ASSN,434.88,LD LTS 18-64,SUPPORTED LIVING,2103084903,1000011698
08.04.2020,ADULT SOCIAL CARE,SWK DISABLEMENT ASSN,724.8,LD LTS 18-64,SUPPORTED LIVING,2103084803,1000011698
08.04.2020,ADULT SOCIAL CARE,SWK DISABLEMENT ASSN,842.58,LD LTS 18-64,SUPPORTED LIVING,2103084894,1000011698
08.04.2020,ADULT SOCIAL CARE,PLUS SERVICES,"3,200.00",LD LTS 18-64,SUPPORTED LIVING,2103085455,1000021241
08.04.2020,ADULT SOCIAL CARE,PLUS SERVICES,"5,173.60",LD LTS 18-64,SUPPORTED LIVING,2103085930,1000021241
08.04.2020,ADULT SOCIAL CARE,PLUS SERVICES,"5,495.20",LD LTS 18-64,SUPPORTED LIVING,2103085589,1000021241
08.04.2020,ADULT SOCIAL CARE,CONTACT PROFESSIONALS,399,LD LTS 18-64,SUPPORTED LIVING,2103084914,1000057263
08.04.2020,ADULT SOCIAL CARE,CONTACT PROFESSIONALS,465,LD LTS 18-64,SUPPORTED LIVING,2103084925,1000057263
08.04.2020,ADULT SOCIAL CARE,DARETHEALTHCARE UK LTD,455.07,LD LTS 18-64,SUPPORTED LIVING,2103084926,1000059149
08.04.2020,ADULT SOCIAL CARE,MARCUS AND MARCUS LTD,"1,280.00",LD LTS 18-64,SUPPORTED LIVING,2103084918,1000065913
08.04.2020,ADULT SOCIAL CARE,MARCUS AND MARCUS LTD,"4,000.00",LD LTS 18-64,SUPPORTED LIVING,2103084919,1000065913
08.04.2020,ADULT SOCIAL CARE,MARCUS AND MARCUS LTD,"4,800.00",LD LTS 18-64,SUPPORTED LIVING,2103084922,1000065913
08.04.2020,ADULT SOCIAL CARE,AURORA OPTIONS,"2,855.16",LD LTS 18-64,SUPPORTED LIVING,2103085856,1000066695
08.04.2020,ADULT SOCIAL CARE,AURORA OPTIONS,"2,855.16",LD LTS 18-64,SUPPORTED LIVING,2103085962,1000066695
08.04.2020,ADULT SOCIAL CARE,AURORA OPTIONS,"3,441.16",LD LTS 18-64,SUPPORTED LIVING,2103085884,1000066695
08.04.2020,ADULT SOCIAL CARE,HEALTH PERSONNEL LTD,"3,270.00",LD LTS 18-64,SUPPORTED LIVING,2103085384,1000076377
08.04.2020,ADULT SOCIAL CARE,REDACTED PERSONAL DATA,"1,032.16",LD LTS 18-64,SUPPORTED LIVING,REDACTED,REDACTED
08.04.2020,ADULT SOCIAL CARE,PEOPLEPLUS ILS,482,LD LTS 65+,PAYMENTS TO CLIENTS (DIRECT PAYMENTS),2103085758,1000061886
08.04.2020,ADULT SOCIAL CARE,UNITED RESPONSE,"1,599.00",LD LTS 65+,SUPPORTED LIVING,2103085549,1022934
08.04.2020,ADULT SOCIAL CARE,SWK DISABLEMENT ASSN,"1,522.08",LD LTS 65+,SUPPORTED LIVING,2103084843,1000011698
08.04.2020,ADULT SOCIAL CARE,PLUS SERVICES,"6,147.92",LD LTS 65+,SUPPORTED LIVING,2103085495,1000021241
08.04.2020,ADULT SOCIAL CARE,PEOPLEPLUS ILS,"-1,523.19",MEM LTS 18-64,PAYMENTS TO CLIENTS (DIRECT PAYMENTS),2103085763,1000061886
08.04.2020,ADULT SOCIAL CARE,PEOPLEPLUS ILS,480.76,MEM LTS 18-64,PAYMENTS TO CLIENTS (DIRECT PAYMENTS),2103085262,1000061886
08.04.2020,ADULT SOCIAL CARE,PEOPLEPLUS ILS,"1,184.00",MEM LTS 18-64,PAYMENTS TO CLIENTS (DIRECT PAYMENTS),2103085782,1000061886
08.04.2020,ADULT SOCIAL CARE,REDACTED PERSONAL DATA,256,MEM LTS 18-64,SUPPORTED LIVING,REDACTED,REDACTED
08.04.2020,ADULT SOCIAL CARE,AGE UK  LEWISHAM & SOUTHWARK,360,MEM LTS 65+,DAYCARE,2103085363,1000066751
08.04.2020,ADULT SOCIAL CARE,AGE UK  LEWISHAM & SOUTHWARK,540,MEM LTS 65+,DAYCARE,2103085447,1000066751
08.04.2020,ADULT SOCIAL CARE,AGE UK  LEWISHAM & SOUTHWARK,540,MEM LTS 65+,DAYCARE,2103085987,1000066751
08.04.2020,ADULT SOCIAL CARE,AGE UK  LEWISHAM & SOUTHWARK,900,MEM LTS 65+,DAYCARE,2103085837,1000066751
08.04.2020,ADULT SOCIAL CARE,AGE UK  LEWISHAM & SOUTHWARK,900,MEM LTS 65+,DAYCARE,2103085863,1000066751
08.04.2020,ADULT SOCIAL CARE,PEOPLEPLUS ILS,-258.88,MEM LTS 65+,DISCRETIONARY FLEXIBLE FEES & INCOME,2103085225,1000061886
08.04.2020,ADULT SOCIAL CARE,REDACTED PERSONAL DATA,"-1,189.32",MEM LTS 65+,DISCRETIONARY FLEXIBLE FEES & INCOME,REDACTED,REDACTED
08.04.2020,ADULT SOCIAL CARE,PEOPLEPLUS ILS,599.6,MEM LTS 65+,PAYMENTS TO CLIENTS (DIRECT PAYMENTS),2103085478,1000061886
08.04.2020,ADULT SOCIAL CARE,PEOPLEPLUS ILS,914,MEM LTS 65+,PAYMENTS TO CLIENTS (DIRECT PAYMENTS),2103085563,1000061886
08.04.2020,ADULT SOCIAL CARE,PEOPLEPLUS ILS,989.8,MEM LTS 65+,PAYMENTS TO CLIENTS (DIRECT PAYMENTS),2103085226,1000061886
08.04.2020,ADULT SOCIAL CARE,PEOPLEPLUS ILS,"1,221.76",MEM LTS 65+,PAYMENTS TO CLIENTS (DIRECT PAYMENTS),2103085804,1000061886
08.04.2020,ADULT SOCIAL CARE,REDACTED PERSONAL DATA,"1,345.44",MEM LTS 65+,PAYMENTS TO CLIENTS (DIRECT PAYMENTS),REDACTED,REDACTED
08.04.2020,ADULT SOCIAL CARE,REDACTED PERSONAL DATA,"1,187.76",MEM LTS 65+,PAYMENTS TO CLIENTS (DIRECT PAYMENTS),REDACTED,REDACTED
08.04.2020,ADULT SOCIAL CARE,REDACTED PERSONAL DATA,"2,282.40",MEM LTS 65+,PAYMENTS TO CLIENTS (DIRECT PAYMENTS),REDACTED,REDACTED
08.04.2020,ADULT SOCIAL CARE,AGE UK  LEWISHAM & SOUTHWARK,360,MH LTS 18-64,DAYCARE,2103085752,1000066751
08.04.2020,ADULT SOCIAL CARE,BLACKFRIARS SETTLEMENT,-262.86,MH LTS 18-64,DAYCARE,2103085816,1000071456
08.04.2020,ADULT SOCIAL CARE,SWK DISABLEMENT ASSN,362.4,MH LTS 18-64,HOMECARE - SPOT,2103084829,1000011698
08.04.2020,ADULT SOCIAL CARE,SWK DISABLEMENT ASSN,434.88,MH LTS 18-64,HOMECARE - SPOT,2103084837,1000011698
08.04.2020,ADULT SOCIAL CARE,PEOPLEPLUS ILS,"-3,311.00",MH LTS 18-64,PAYMENTS TO CLIENTS (DIRECT PAYMENTS),2103085595,1000061886
08.04.2020,ADULT SOCIAL CARE,PEOPLEPLUS ILS,"-1,681.79",MH LTS 18-64,PAYMENTS TO CLIENTS (DIRECT PAYMENTS),2103085345,1000061886
08.04.2020,ADULT SOCIAL CARE,PEOPLEPLUS ILS,254.08,MH LTS 18-64,PAYMENTS TO CLIENTS (DIRECT PAYMENTS),2103085893,1000061886
08.04.2020,ADULT SOCIAL CARE,PEOPLEPLUS ILS,260.24,MH LTS 18-64,PAYMENTS TO CLIENTS (DIRECT PAYMENTS),2103085507,1000061886
08.04.2020,ADULT SOCIAL CARE,PEOPLEPLUS ILS,260.24,MH LTS 18-64,PAYMENTS TO CLIENTS (DIRECT PAYMENTS),2103085841,1000061886
08.04.2020,ADULT SOCIAL CARE,PEOPLEPLUS ILS,274,MH LTS 18-64,PAYMENTS TO CLIENTS (DIRECT PAYMENTS),2103085530,1000061886
08.04.2020,ADULT SOCIAL CARE,PEOPLEPLUS ILS,287.2,MH LTS 18-64,PAYMENTS TO CLIENTS (DIRECT PAYMENTS),2103085213,1000061886
08.04.2020,ADULT SOCIAL CARE,PEOPLEPLUS ILS,287.96,MH LTS 18-64,PAYMENTS TO CLIENTS (DIRECT PAYMENTS),2103085252,1000061886
08.04.2020,ADULT SOCIAL CARE,PEOPLEPLUS ILS,293.44,MH LTS 18-64,PAYMENTS TO CLIENTS (DIRECT PAYMENTS),2103085542,1000061886
08.04.2020,ADULT SOCIAL CARE,PEOPLEPLUS ILS,307.15,MH LTS 18-64,PAYMENTS TO CLIENTS (DIRECT PAYMENTS),2103085392,1000061886
08.04.2020,ADULT SOCIAL CARE,PEOPLEPLUS ILS,308,MH LTS 18-64,PAYMENTS TO CLIENTS (DIRECT PAYMENTS),2103085503,1000061886
08.04.2020,ADULT SOCIAL CARE,PEOPLEPLUS ILS,316.8,MH LTS 18-64,PAYMENTS TO CLIENTS (DIRECT PAYMENTS),2103085554,1000061886
08.04.2020,ADULT SOCIAL CARE,PEOPLEPLUS ILS,318,MH LTS 18-64,PAYMENTS TO CLIENTS (DIRECT PAYMENTS),2103085387,1000061886
08.04.2020,ADULT SOCIAL CARE,PEOPLEPLUS ILS,326,MH LTS 18-64,PAYMENTS TO CLIENTS (DIRECT PAYMENTS),2103085738,1000061886
08.04.2020,ADULT SOCIAL CARE,PEOPLEPLUS ILS,327.44,MH LTS 18-64,PAYMENTS TO CLIENTS (DIRECT PAYMENTS),2103085800,1000061886
08.04.2020,ADULT SOCIAL CARE,PEOPLEPLUS ILS,366.8,MH LTS 18-64,PAYMENTS TO CLIENTS (DIRECT PAYMENTS),2103085291,1000061886
08.04.2020,ADULT SOCIAL CARE,PEOPLEPLUS ILS,373.36,MH LTS 18-64,PAYMENTS TO CLIENTS (DIRECT PAYMENTS),2103085339,1000061886
08.04.2020,ADULT SOCIAL CARE,PEOPLEPLUS ILS,381.4,MH LTS 18-64,PAYMENTS TO CLIENTS (DIRECT PAYMENTS),2103085203,1000061886
08.04.2020,ADULT SOCIAL CARE,PEOPLEPLUS ILS,385.76,MH LTS 18-64,PAYMENTS TO CLIENTS (DIRECT PAYMENTS),2103085242,1000061886
08.04.2020,ADULT SOCIAL CARE,PEOPLEPLUS ILS,393.2,MH LTS 18-64,PAYMENTS TO CLIENTS (DIRECT PAYMENTS),2103085460,1000061886
08.04.2020,ADULT SOCIAL CARE,PEOPLEPLUS ILS,394,MH LTS 18-64,PAYMENTS TO CLIENTS (DIRECT PAYMENTS),2103085672,1000061886
08.04.2020,ADULT SOCIAL CARE,PEOPLEPLUS ILS,413.96,MH LTS 18-64,PAYMENTS TO CLIENTS (DIRECT PAYMENTS),2103085927,1000061886
08.04.2020,ADULT SOCIAL CARE,PEOPLEPLUS ILS,427.92,MH LTS 18-64,PAYMENTS TO CLIENTS (DIRECT PAYMENTS),2103085521,1000061886
08.04.2020,ADULT SOCIAL CARE,PEOPLEPLUS ILS,429.92,MH LTS 18-64,PAYMENTS TO CLIENTS (DIRECT PAYMENTS),2103085926,1000061886
08.04.2020,ADULT SOCIAL CARE,PEOPLEPLUS ILS,440.16,MH LTS 18-64,PAYMENTS TO CLIENTS (DIRECT PAYMENTS),2103085402,1000061886
08.04.2020,ADULT SOCIAL CARE,PEOPLEPLUS ILS,454,MH LTS 18-64,PAYMENTS TO CLIENTS (DIRECT PAYMENTS),2103085644,1000061886
08.04.2020,ADULT SOCIAL CARE,PEOPLEPLUS ILS,458.2,MH LTS 18-64,PAYMENTS TO CLIENTS (DIRECT PAYMENTS),2103085724,1000061886
08.04.2020,ADULT SOCIAL CARE,PEOPLEPLUS ILS,486.48,MH LTS 18-64,PAYMENTS TO CLIENTS (DIRECT PAYMENTS),2103085297,1000061886
08.04.2020,ADULT SOCIAL CARE,PEOPLEPLUS ILS,489.32,MH LTS 18-64,PAYMENTS TO CLIENTS (DIRECT PAYMENTS),2103085775,1000061886
08.04.2020,ADULT SOCIAL CARE,PEOPLEPLUS ILS,504.4,MH LTS 18-64,PAYMENTS TO CLIENTS (DIRECT PAYMENTS),2103085561,1000061886
08.04.2020,ADULT SOCIAL CARE,PEOPLEPLUS ILS,547.52,MH LTS 18-64,PAYMENTS TO CLIENTS (DIRECT PAYMENTS),2103085571,1000061886
08.04.2020,ADULT SOCIAL CARE,PEOPLEPLUS ILS,559.84,MH LTS 18-64,PAYMENTS TO CLIENTS (DIRECT PAYMENTS),2103085379,1000061886
08.04.2020,ADULT SOCIAL CARE,PEOPLEPLUS ILS,565.6,MH LTS 18-64,PAYMENTS TO CLIENTS (DIRECT PAYMENTS),2103085209,1000061886
08.04.2020,ADULT SOCIAL CARE,PEOPLEPLUS ILS,573,MH LTS 18-64,PAYMENTS TO CLIENTS (DIRECT PAYMENTS),2103085600,1000061886
08.04.2020,ADULT SOCIAL CARE,PEOPLEPLUS ILS,609.84,MH LTS 18-64,PAYMENTS TO CLIENTS (DIRECT PAYMENTS),2103085620,1000061886
08.04.2020,ADULT SOCIAL CARE,PEOPLEPLUS ILS,684.54,MH LTS 18-64,PAYMENTS TO CLIENTS (DIRECT PAYMENTS),2103085961,1000061886
08.04.2020,ADULT SOCIAL CARE,PEOPLEPLUS ILS,694.16,MH LTS 18-64,PAYMENTS TO CLIENTS (DIRECT PAYMENTS),2103085952,1000061886
08.04.2020,ADULT SOCIAL CARE,PEOPLEPLUS ILS,720.8,MH LTS 18-64,PAYMENTS TO CLIENTS (DIRECT PAYMENTS),2103085732,1000061886
08.04.2020,ADULT SOCIAL CARE,PEOPLEPLUS ILS,"1,023.20",MH LTS 18-64,PAYMENTS TO CLIENTS (DIRECT PAYMENTS),2103085627,1000061886
08.04.2020,ADULT SOCIAL CARE,PEOPLEPLUS ILS,"1,738.00",MH LTS 18-64,PAYMENTS TO CLIENTS (DIRECT PAYMENTS),2103085593,1000061886
08.04.2020,ADULT SOCIAL CARE,PEOPLEPLUS ILS,"2,311.60",MH LTS 18-64,PAYMENTS TO CLIENTS (DIRECT PAYMENTS),2103085218,1000061886
08.04.2020,ADULT SOCIAL CARE,REDACTED PERSONAL DATA,410.08,MH LTS 18-64,PAYMENTS TO CLIENTS (DIRECT PAYMENTS),REDACTED,REDACTED
08.04.2020,ADULT SOCIAL CARE,REDACTED PERSONAL DATA,328,MH LTS 18-64,PAYMENTS TO CLIENTS (DIRECT PAYMENTS),REDACTED,REDACTED
08.04.2020,ADULT SOCIAL CARE,REDACTED PERSONAL DATA,888,MH LTS 18-64,PAYMENTS TO CLIENTS (DIRECT PAYMENTS),REDACTED,REDACTED
08.04.2020,ADULT SOCIAL CARE,REDACTED PERSONAL DATA,"1,158.36",MH LTS 18-64,PAYMENTS TO CLIENTS (DIRECT PAYMENTS),REDACTED,REDACTED
08.04.2020,ADULT SOCIAL CARE,OASIS CARE AND TRAINING AGENCY,882.56,MH LTS 18-64,SUPPORTED LIVING,2103084990,1000003687
08.04.2020,ADULT SOCIAL CARE,SWK DISABLEMENT ASSN,253.68,MH LTS 18-64,SUPPORTED LIVING,2103084811,1000011698
08.04.2020,ADULT SOCIAL CARE,SWK DISABLEMENT ASSN,271.8,MH LTS 18-64,SUPPORTED LIVING,2103084901,1000011698
08.04.2020,ADULT SOCIAL CARE,SWK DISABLEMENT ASSN,289.92,MH LTS 18-64,SUPPORTED LIVING,2103084853,1000011698
08.04.2020,ADULT SOCIAL CARE,SWK DISABLEMENT ASSN,289.92,MH LTS 18-64,SUPPORTED LIVING,2103084881,1000011698
08.04.2020,ADULT SOCIAL CARE,SWK DISABLEMENT ASSN,289.92,MH LTS 18-64,SUPPORTED LIVING,2103084898,1000011698
08.04.2020,ADULT SOCIAL CARE,SWK DISABLEMENT ASSN,289.92,MH LTS 18-64,SUPPORTED LIVING,2103084908,1000011698
08.04.2020,ADULT SOCIAL CARE,SWK DISABLEMENT ASSN,326.16,MH LTS 18-64,SUPPORTED LIVING,2103084887,1000011698
08.04.2020,ADULT SOCIAL CARE,SWK DISABLEMENT ASSN,471.12,MH LTS 18-64,SUPPORTED LIVING,2103084831,1000011698
08.04.2020,ADULT SOCIAL CARE,SWK DISABLEMENT ASSN,579.84,MH LTS 18-64,SUPPORTED LIVING,2103084895,1000011698
08.04.2020,ADULT SOCIAL CARE,SWK DISABLEMENT ASSN,652.32,MH LTS 18-64,SUPPORTED LIVING,2103084904,1000011698
08.04.2020,ADULT SOCIAL CARE,SWK DISABLEMENT ASSN,"1,621.74",MH LTS 18-64,SUPPORTED LIVING,2103084855,1000011698
08.04.2020,ADULT SOCIAL CARE,PEOPLEPLUS ILS,253,MH LTS 65+,PAYMENTS TO CLIENTS (DIRECT PAYMENTS),2103085540,1000061886
08.04.2020,ADULT SOCIAL CARE,PEOPLEPLUS ILS,321.56,MH LTS 65+,PAYMENTS TO CLIENTS (DIRECT PAYMENTS),2103085517,1000061886
08.04.2020,ADULT SOCIAL CARE,REDACTED PERSONAL DATA,960,MH LTS 65+,PAYMENTS TO CLIENTS (DIRECT PAYMENTS),REDACTED,REDACTED
08.04.2020,ADULT SOCIAL CARE,SWK DISABLEMENT ASSN,289.92,MH LTS 65+,SUPPORTED LIVING,2103084805,1000011698
08.04.2020,ADULT SOCIAL CARE,SWK DISABLEMENT ASSN,688.56,MH LTS 65+,SUPPORTED LIVING,2103084867,1000011698
08.04.2020,ADULT SOCIAL CARE,PEOPLEPLUS ILS,"-1,745.65",PHB- SOUTHWARK CCG,RECOVERABLE COSTS INCL. HEALTH,2103085237,1000061886
08.04.2020,ADULT SOCIAL CARE,PEOPLEPLUS ILS,"1,470.00",PHB- SOUTHWARK CCG,RECOVERABLE COSTS INCL. HEALTH,2103085900,1000061886
08.04.2020,ADULT SOCIAL CARE,PEOPLEPLUS ILS,"4,127.92",PHB- SOUTHWARK CCG,RECOVERABLE COSTS INCL. HEALTH,2103085216,1000061886
08.04.2020,ADULT SOCIAL CARE,PEOPLEPLUS ILS,"4,347.48",PHB- SOUTHWARK CCG,RECOVERABLE COSTS INCL. HEALTH,2103085825,1000061886
08.04.2020,ADULT SOCIAL CARE,PEOPLEPLUS ILS,"6,673.20",PHB- SOUTHWARK CCG,RECOVERABLE COSTS INCL. HEALTH,2103085750,1000061886
08.04.2020,ADULT SOCIAL CARE,REDACTED PERSONAL DATA,"9,079.20",PHB- SOUTHWARK CCG,RECOVERABLE COSTS INCL. HEALTH,REDACTED,REDACTED
08.04.2020,ADULT SOCIAL CARE,REDACTED PERSONAL DATA,"7,482.40",PHB- SOUTHWARK CCG,RECOVERABLE COSTS INCL. HEALTH,REDACTED,REDACTED
08.04.2020,ADULT SOCIAL CARE,REDACTED PERSONAL DATA,"2,549.52",PHB- SOUTHWARK CCG,RECOVERABLE COSTS INCL. HEALTH,REDACTED,REDACTED
08.04.2020,ADULT SOCIAL CARE,REDACTED PERSONAL DATA,"2,699.76",PHB- SOUTHWARK CCG,RECOVERABLE COSTS INCL. HEALTH,REDACTED,REDACTED
08.04.2020,ADULT SOCIAL CARE,AGE UK  LEWISHAM & SOUTHWARK,360,PHY LTS 18-64,DAYCARE,2103085721,1000066751
08.04.2020,ADULT SOCIAL CARE,AGE UK  LEWISHAM & SOUTHWARK,360,PHY LTS 18-64,DAYCARE,2103085972,1000066751
08.04.2020,ADULT SOCIAL CARE,AGE UK  LEWISHAM & SOUTHWARK,540,PHY LTS 18-64,DAYCARE,2103085276,1000066751
08.04.2020,ADULT SOCIAL CARE,SWK DISABLEMENT ASSN,305.64,PHY LTS 18-64,HOMECARE - SPOT,2103084821,1000011698
08.04.2020,ADULT SOCIAL CARE,SWK DISABLEMENT ASSN,475.44,PHY LTS 18-64,HOMECARE - SPOT,2103084823,1000011698
08.04.2020,ADULT SOCIAL CARE,SWK DISABLEMENT ASSN,713.16,PHY LTS 18-64,HOMECARE - SPOT,2103084875,1000011698
08.04.2020,ADULT SOCIAL CARE,SWK DISABLEMENT ASSN,"1,154.64",PHY LTS 18-64,HOMECARE - SPOT,2103084905,1000011698
08.04.2020,ADULT SOCIAL CARE,SWK DISABLEMENT ASSN,"1,315.95",PHY LTS 18-64,HOMECARE - SPOT,2103084863,1000011698
08.04.2020,ADULT SOCIAL CARE,SWK DISABLEMENT ASSN,"1,714.98",PHY LTS 18-64,HOMECARE - SPOT,2103084912,1000011698
08.04.2020,ADULT SOCIAL CARE,SWK DISABLEMENT ASSN,"2,241.36",PHY LTS 18-64,HOMECARE - SPOT,2103084907,1000011698
08.04.2020,ADULT SOCIAL CARE,SWK DISABLEMENT ASSN,"2,665.86",PHY LTS 18-64,HOMECARE - SPOT,2103084906,1000011698
08.04.2020,ADULT SOCIAL CARE,SWK DISABLEMENT ASSN,"3,044.16",PHY LTS 18-64,HOMECARE - SPOT,2103084883,1000011698
08.04.2020,ADULT SOCIAL CARE,SWK DISABLEMENT ASSN,"3,429.96",PHY LTS 18-64,HOMECARE - SPOT,2103084841,1000011698
08.04.2020,ADULT SOCIAL CARE,PEOPLEPLUS ILS,265.64,PHY LTS 18-64,PAYMENTS TO CLIENTS (DIRECT PAYMENTS),2103085914,1000061886
08.04.2020,ADULT SOCIAL CARE,PEOPLEPLUS ILS,279.64,PHY LTS 18-64,PAYMENTS TO CLIENTS (DIRECT PAYMENTS),2103085872,1000061886
08.04.2020,ADULT SOCIAL CARE,PEOPLEPLUS ILS,295.04,PHY LTS 18-64,PAYMENTS TO CLIENTS (DIRECT PAYMENTS),2103085906,1000061886
08.04.2020,ADULT SOCIAL CARE,PEOPLEPLUS ILS,347.68,PHY LTS 18-64,PAYMENTS TO CLIENTS (DIRECT PAYMENTS),2103085662,1000061886
08.04.2020,ADULT SOCIAL CARE,PEOPLEPLUS ILS,365,PHY LTS 18-64,PAYMENTS TO CLIENTS (DIRECT PAYMENTS),2103085729,1000061886
08.04.2020,ADULT SOCIAL CARE,PEOPLEPLUS ILS,388.4,PHY LTS 18-64,PAYMENTS TO CLIENTS (DIRECT PAYMENTS),2103085576,1000061886
08.04.2020,ADULT SOCIAL CARE,PEOPLEPLUS ILS,411.8,PHY LTS 18-64,PAYMENTS TO CLIENTS (DIRECT PAYMENTS),2103085698,1000061886
08.04.2020,ADULT SOCIAL CARE,PEOPLEPLUS ILS,429.92,PHY LTS 18-64,PAYMENTS TO CLIENTS (DIRECT PAYMENTS),2103085669,1000061886
08.04.2020,ADULT SOCIAL CARE,PEOPLEPLUS ILS,429.92,PHY LTS 18-64,PAYMENTS TO CLIENTS (DIRECT PAYMENTS),2103085888,1000061886
08.04.2020,ADULT SOCIAL CARE,PEOPLEPLUS ILS,444.08,PHY LTS 18-64,PAYMENTS TO CLIENTS (DIRECT PAYMENTS),2103085349,1000061886
08.04.2020,ADULT SOCIAL CARE,PEOPLEPLUS ILS,447.4,PHY LTS 18-64,PAYMENTS TO CLIENTS (DIRECT PAYMENTS),2103085353,1000061886
08.04.2020,ADULT SOCIAL CARE,PEOPLEPLUS ILS,472.36,PHY LTS 18-64,PAYMENTS TO CLIENTS (DIRECT PAYMENTS),2103085876,1000061886
08.04.2020,ADULT SOCIAL CARE,PEOPLEPLUS ILS,486.48,PHY LTS 18-64,PAYMENTS TO CLIENTS (DIRECT PAYMENTS),2103085320,1000061886
08.04.2020,ADULT SOCIAL CARE,PEOPLEPLUS ILS,504,PHY LTS 18-64,PAYMENTS TO CLIENTS (DIRECT PAYMENTS),2103085957,1000061886
08.04.2020,ADULT SOCIAL CARE,PEOPLEPLUS ILS,505.4,PHY LTS 18-64,PAYMENTS TO CLIENTS (DIRECT PAYMENTS),2103085260,1000061886
08.04.2020,ADULT SOCIAL CARE,PEOPLEPLUS ILS,509.12,PHY LTS 18-64,PAYMENTS TO CLIENTS (DIRECT PAYMENTS),2103085819,1000061886
08.04.2020,ADULT SOCIAL CARE,PEOPLEPLUS ILS,543.04,PHY LTS 18-64,PAYMENTS TO CLIENTS (DIRECT PAYMENTS),2103085425,1000061886
08.04.2020,ADULT SOCIAL CARE,PEOPLEPLUS ILS,579.6,PHY LTS 18-64,PAYMENTS TO CLIENTS (DIRECT PAYMENTS),2103085482,1000061886
08.04.2020,ADULT SOCIAL CARE,PEOPLEPLUS ILS,587.32,PHY LTS 18-64,PAYMENTS TO CLIENTS (DIRECT PAYMENTS),2103085244,1000061886
08.04.2020,ADULT SOCIAL CARE,PEOPLEPLUS ILS,598.4,PHY LTS 18-64,PAYMENTS TO CLIENTS (DIRECT PAYMENTS),2103085457,1000061886
08.04.2020,ADULT SOCIAL CARE,PEOPLEPLUS ILS,608.04,PHY LTS 18-64,PAYMENTS TO CLIENTS (DIRECT PAYMENTS),2103085378,1000061886
08.04.2020,ADULT SOCIAL CARE,PEOPLEPLUS ILS,613.76,PHY LTS 18-64,PAYMENTS TO CLIENTS (DIRECT PAYMENTS),2103085633,1000061886
08.04.2020,ADULT SOCIAL CARE,PEOPLEPLUS ILS,613.76,PHY LTS 18-64,PAYMENTS TO CLIENTS (DIRECT PAYMENTS),2103085785,1000061886
08.04.2020,ADULT SOCIAL CARE,PEOPLEPLUS ILS,613.76,PHY LTS 18-64,PAYMENTS TO CLIENTS (DIRECT PAYMENTS),2103085801,1000061886
08.04.2020,ADULT SOCIAL CARE,PEOPLEPLUS ILS,627.88,PHY LTS 18-64,PAYMENTS TO CLIENTS (DIRECT PAYMENTS),2103085623,1000061886
08.04.2020,ADULT SOCIAL CARE,PEOPLEPLUS ILS,636.32,PHY LTS 18-64,PAYMENTS TO CLIENTS (DIRECT PAYMENTS),2103085768,1000061886
08.04.2020,ADULT SOCIAL CARE,PEOPLEPLUS ILS,642.04,PHY LTS 18-64,PAYMENTS TO CLIENTS (DIRECT PAYMENTS),2103085953,1000061886
08.04.2020,ADULT SOCIAL CARE,PEOPLEPLUS ILS,670.32,PHY LTS 18-64,PAYMENTS TO CLIENTS (DIRECT PAYMENTS),2103085340,1000061886
08.04.2020,ADULT SOCIAL CARE,PEOPLEPLUS ILS,678.72,PHY LTS 18-64,PAYMENTS TO CLIENTS (DIRECT PAYMENTS),2103085699,1000061886
08.04.2020,ADULT SOCIAL CARE,PEOPLEPLUS ILS,678.72,PHY LTS 18-64,PAYMENTS TO CLIENTS (DIRECT PAYMENTS),2103085844,1000061886
08.04.2020,ADULT SOCIAL CARE,PEOPLEPLUS ILS,707,PHY LTS 18-64,PAYMENTS TO CLIENTS (DIRECT PAYMENTS),2103085764,1000061886
08.04.2020,ADULT SOCIAL CARE,PEOPLEPLUS ILS,724.24,PHY LTS 18-64,PAYMENTS TO CLIENTS (DIRECT PAYMENTS),2103085787,1000061886
08.04.2020,ADULT SOCIAL CARE,PEOPLEPLUS ILS,741,PHY LTS 18-64,PAYMENTS TO CLIENTS (DIRECT PAYMENTS),2103085736,1000061886
08.04.2020,ADULT SOCIAL CARE,PEOPLEPLUS ILS,741,PHY LTS 18-64,PAYMENTS TO CLIENTS (DIRECT PAYMENTS),2103085942,1000061886
08.04.2020,ADULT SOCIAL CARE,PEOPLEPLUS ILS,769.28,PHY LTS 18-64,PAYMENTS TO CLIENTS (DIRECT PAYMENTS),2103085383,1000061886
08.04.2020,ADULT SOCIAL CARE,PEOPLEPLUS ILS,769.28,PHY LTS 18-64,PAYMENTS TO CLIENTS (DIRECT PAYMENTS),2103085592,1000061886
08.04.2020,ADULT SOCIAL CARE,PEOPLEPLUS ILS,786.2,PHY LTS 18-64,PAYMENTS TO CLIENTS (DIRECT PAYMENTS),2103085711,1000061886
08.04.2020,ADULT SOCIAL CARE,PEOPLEPLUS ILS,791.84,PHY LTS 18-64,PAYMENTS TO CLIENTS (DIRECT PAYMENTS),2103085284,1000061886
08.04.2020,ADULT SOCIAL CARE,PEOPLEPLUS ILS,796.88,PHY LTS 18-64,PAYMENTS TO CLIENTS (DIRECT PAYMENTS),2103085830,1000061886
08.04.2020,ADULT SOCIAL CARE,PEOPLEPLUS ILS,840,PHY LTS 18-64,PAYMENTS TO CLIENTS (DIRECT PAYMENTS),2103085312,1000061886
08.04.2020,ADULT SOCIAL CARE,PEOPLEPLUS ILS,840,PHY LTS 18-64,PAYMENTS TO CLIENTS (DIRECT PAYMENTS),2103085587,1000061886
08.04.2020,ADULT SOCIAL CARE,PEOPLEPLUS ILS,840,PHY LTS 18-64,PAYMENTS TO CLIENTS (DIRECT PAYMENTS),2103085797,1000061886
08.04.2020,ADULT SOCIAL CARE,PEOPLEPLUS ILS,877.8,PHY LTS 18-64,PAYMENTS TO CLIENTS (DIRECT PAYMENTS),2103085751,1000061886
08.04.2020,ADULT SOCIAL CARE,PEOPLEPLUS ILS,891.52,PHY LTS 18-64,PAYMENTS TO CLIENTS (DIRECT PAYMENTS),2103085598,1000061886
08.04.2020,ADULT SOCIAL CARE,PEOPLEPLUS ILS,894.76,PHY LTS 18-64,PAYMENTS TO CLIENTS (DIRECT PAYMENTS),2103085469,1000061886
08.04.2020,ADULT SOCIAL CARE,PEOPLEPLUS ILS,932.8,PHY LTS 18-64,PAYMENTS TO CLIENTS (DIRECT PAYMENTS),2103085380,1000061886
08.04.2020,ADULT SOCIAL CARE,PEOPLEPLUS ILS,938.96,PHY LTS 18-64,PAYMENTS TO CLIENTS (DIRECT PAYMENTS),2103085689,1000061886
08.04.2020,ADULT SOCIAL CARE,PEOPLEPLUS ILS,947.24,PHY LTS 18-64,PAYMENTS TO CLIENTS (DIRECT PAYMENTS),2103085257,1000061886
08.04.2020,ADULT SOCIAL CARE,PEOPLEPLUS ILS,978.32,PHY LTS 18-64,PAYMENTS TO CLIENTS (DIRECT PAYMENTS),2103085240,1000061886
08.04.2020,ADULT SOCIAL CARE,PEOPLEPLUS ILS,989.8,PHY LTS 18-64,PAYMENTS TO CLIENTS (DIRECT PAYMENTS),2103085981,1000061886
08.04.2020,ADULT SOCIAL CARE,PEOPLEPLUS ILS,995.52,PHY LTS 18-64,PAYMENTS TO CLIENTS (DIRECT PAYMENTS),2103085321,1000061886
08.04.2020,ADULT SOCIAL CARE,PEOPLEPLUS ILS,"1,009.68",PHY LTS 18-64,PAYMENTS TO CLIENTS (DIRECT PAYMENTS),2103085625,1000061886
08.04.2020,ADULT SOCIAL CARE,PEOPLEPLUS ILS,"1,023.80",PHY LTS 18-64,PAYMENTS TO CLIENTS (DIRECT PAYMENTS),2103085399,1000061886
08.04.2020,ADULT SOCIAL CARE,PEOPLEPLUS ILS,"1,023.80",PHY LTS 18-64,PAYMENTS TO CLIENTS (DIRECT PAYMENTS),2103085899,1000061886
08.04.2020,ADULT SOCIAL CARE,PEOPLEPLUS ILS,"1,052.64",PHY LTS 18-64,PAYMENTS TO CLIENTS (DIRECT PAYMENTS),2103085838,1000061886
08.04.2020,ADULT SOCIAL CARE,PEOPLEPLUS ILS,"1,122.80",PHY LTS 18-64,PAYMENTS TO CLIENTS (DIRECT PAYMENTS),2103085491,1000061886
08.04.2020,ADULT SOCIAL CARE,PEOPLEPLUS ILS,"1,146.40",PHY LTS 18-64,PAYMENTS TO CLIENTS (DIRECT PAYMENTS),2103085413,1000061886
08.04.2020,ADULT SOCIAL CARE,PEOPLEPLUS ILS,"1,150.52",PHY LTS 18-64,PAYMENTS TO CLIENTS (DIRECT PAYMENTS),2103085424,1000061886
08.04.2020,ADULT SOCIAL CARE,PEOPLEPLUS ILS,"1,187.76",PHY LTS 18-64,PAYMENTS TO CLIENTS (DIRECT PAYMENTS),2103085529,1000061886
08.04.2020,ADULT SOCIAL CARE,PEOPLEPLUS ILS,"1,193.48",PHY LTS 18-64,PAYMENTS TO CLIENTS (DIRECT PAYMENTS),2103085323,1000061886
08.04.2020,ADULT SOCIAL CARE,PEOPLEPLUS ILS,"1,250.04",PHY LTS 18-64,PAYMENTS TO CLIENTS (DIRECT PAYMENTS),2103085412,1000061886
08.04.2020,ADULT SOCIAL CARE,PEOPLEPLUS ILS,"1,278.32",PHY LTS 18-64,PAYMENTS TO CLIENTS (DIRECT PAYMENTS),2103085636,1000061886
08.04.2020,ADULT SOCIAL CARE,PEOPLEPLUS ILS,"1,330.00",PHY LTS 18-64,PAYMENTS TO CLIENTS (DIRECT PAYMENTS),2103085842,1000061886
08.04.2020,ADULT SOCIAL CARE,PEOPLEPLUS ILS,"1,371.44",PHY LTS 18-64,PAYMENTS TO CLIENTS (DIRECT PAYMENTS),2103085791,1000061886
08.04.2020,ADULT SOCIAL CARE,PEOPLEPLUS ILS,"1,426.00",PHY LTS 18-64,PAYMENTS TO CLIENTS (DIRECT PAYMENTS),2103085229,1000061886
08.04.2020,ADULT SOCIAL CARE,PEOPLEPLUS ILS,"1,616.52",PHY LTS 18-64,PAYMENTS TO CLIENTS (DIRECT PAYMENTS),2103085450,1000061886
08.04.2020,ADULT SOCIAL CARE,PEOPLEPLUS ILS,"1,624.00",PHY LTS 18-64,PAYMENTS TO CLIENTS (DIRECT PAYMENTS),2103085419,1000061886
08.04.2020,ADULT SOCIAL CARE,PEOPLEPLUS ILS,"1,733.56",PHY LTS 18-64,PAYMENTS TO CLIENTS (DIRECT PAYMENTS),2103085367,1000061886
08.04.2020,ADULT SOCIAL CARE,PEOPLEPLUS ILS,"1,909.40",PHY LTS 18-64,PAYMENTS TO CLIENTS (DIRECT PAYMENTS),2103085265,1000061886
08.04.2020,ADULT SOCIAL CARE,PEOPLEPLUS ILS,"2,013.60",PHY LTS 18-64,PAYMENTS TO CLIENTS (DIRECT PAYMENTS),2103085344,1000061886
08.04.2020,ADULT SOCIAL CARE,PEOPLEPLUS ILS,"2,039.10",PHY LTS 18-64,PAYMENTS TO CLIENTS (DIRECT PAYMENTS),2103085637,1000061886
08.04.2020,ADULT SOCIAL CARE,PEOPLEPLUS ILS,"2,589.00",PHY LTS 18-64,PAYMENTS TO CLIENTS (DIRECT PAYMENTS),2103085358,1000061886
08.04.2020,ADULT SOCIAL CARE,PEOPLEPLUS ILS,"2,646.80",PHY LTS 18-64,PAYMENTS TO CLIENTS (DIRECT PAYMENTS),2103085813,1000061886
08.04.2020,ADULT SOCIAL CARE,PEOPLEPLUS ILS,"3,307.52",PHY LTS 18-64,PAYMENTS TO CLIENTS (DIRECT PAYMENTS),2103085472,1000061886
08.04.2020,ADULT SOCIAL CARE,PEOPLEPLUS ILS,"3,576.40",PHY LTS 18-64,PAYMENTS TO CLIENTS (DIRECT PAYMENTS),2103085223,1000061886
08.04.2020,ADULT SOCIAL CARE,PEOPLEPLUS ILS,"4,118.92",PHY LTS 18-64,PAYMENTS TO CLIENTS (DIRECT PAYMENTS),2103085860,1000061886
08.04.2020,ADULT SOCIAL CARE,PEOPLEPLUS ILS,"4,799.52",PHY LTS 18-64,PAYMENTS TO CLIENTS (DIRECT PAYMENTS),2103085762,1000061886
08.04.2020,ADULT SOCIAL CARE,PEOPLEPLUS ILS,"7,698.60",PHY LTS 18-64,PAYMENTS TO CLIENTS (DIRECT PAYMENTS),2103085661,1000061886
08.04.2020,ADULT SOCIAL CARE,FRESH IDEAS & SOLUTIONS SERVICES CIC,-848.4,PHY LTS 18-64,PAYMENTS TO CLIENTS (DIRECT PAYMENTS),2103085212,1000070832
08.04.2020,ADULT SOCIAL CARE,FRESH IDEAS & SOLUTIONS SERVICES CIC,712.72,PHY LTS 18-64,PAYMENTS TO CLIENTS (DIRECT PAYMENTS),2103085659,1000070832
08.04.2020,ADULT SOCIAL CARE,FRESH IDEAS & SOLUTIONS SERVICES CIC,870,PHY LTS 18-64,PAYMENTS TO CLIENTS (DIRECT PAYMENTS),2103085761,1000070832
08.04.2020,ADULT SOCIAL CARE,FRESH IDEAS & SOLUTIONS SERVICES CIC,"1,108.64",PHY LTS 18-64,PAYMENTS TO CLIENTS (DIRECT PAYMENTS),2103085518,1000070832
08.04.2020,ADULT SOCIAL CARE,REDACTED PERSONAL DATA,"1,583.68",PHY LTS 18-64,PAYMENTS TO CLIENTS (DIRECT PAYMENTS),REDACTED,REDACTED
08.04.2020,ADULT SOCIAL CARE,REDACTED PERSONAL DATA,258.08,PHY LTS 18-64,PAYMENTS TO CLIENTS (DIRECT PAYMENTS),REDACTED,REDACTED
08.04.2020,ADULT SOCIAL CARE,REDACTED PERSONAL DATA,904.96,PHY LTS 18-64,PAYMENTS TO CLIENTS (DIRECT PAYMENTS),REDACTED,REDACTED
08.04.2020,ADULT SOCIAL CARE,REDACTED PERSONAL DATA,"2,395.52",PHY LTS 18-64,PAYMENTS TO CLIENTS (DIRECT PAYMENTS),REDACTED,REDACTED
08.04.2020,ADULT SOCIAL CARE,REDACTED PERSONAL DATA,"1,074.64",PHY LTS 18-64,PAYMENTS TO CLIENTS (DIRECT PAYMENTS),REDACTED,REDACTED
08.04.2020,ADULT SOCIAL CARE,REDACTED PERSONAL DATA,602.48,PHY LTS 18-64,PAYMENTS TO CLIENTS (DIRECT PAYMENTS),REDACTED,REDACTED
08.04.2020,ADULT SOCIAL CARE,REDACTED PERSONAL DATA,806,PHY LTS 18-64,PAYMENTS TO CLIENTS (DIRECT PAYMENTS),REDACTED,REDACTED
08.04.2020,ADULT SOCIAL CARE,REDACTED PERSONAL DATA,254.52,PHY LTS 18-64,PAYMENTS TO CLIENTS (DIRECT PAYMENTS),REDACTED,REDACTED
08.04.2020,ADULT SOCIAL CARE,REDACTED PERSONAL DATA,395.92,PHY LTS 18-64,PAYMENTS TO CLIENTS (DIRECT PAYMENTS),REDACTED,REDACTED
08.04.2020,ADULT SOCIAL CARE,REDACTED PERSONAL DATA,"3,973.84",PHY LTS 18-64,PAYMENTS TO CLIENTS (DIRECT PAYMENTS),REDACTED,REDACTED
08.04.2020,ADULT SOCIAL CARE,REDACTED PERSONAL DATA,"1,131.20",PHY LTS 18-64,PAYMENTS TO CLIENTS (DIRECT PAYMENTS),REDACTED,REDACTED
08.04.2020,ADULT SOCIAL CARE,REDACTED PERSONAL DATA,"1,874.72",PHY LTS 18-64,PAYMENTS TO CLIENTS (DIRECT PAYMENTS),REDACTED,REDACTED
08.04.2020,ADULT SOCIAL CARE,REDACTED PERSONAL DATA,760.76,PHY LTS 18-64,PAYMENTS TO CLIENTS (DIRECT PAYMENTS),REDACTED,REDACTED
08.04.2020,ADULT SOCIAL CARE,REDACTED PERSONAL DATA,593.88,PHY LTS 18-64,PAYMENTS TO CLIENTS (DIRECT PAYMENTS),REDACTED,REDACTED
08.04.2020,ADULT SOCIAL CARE,REDACTED PERSONAL DATA,579.76,PHY LTS 18-64,PAYMENTS TO CLIENTS (DIRECT PAYMENTS),REDACTED,REDACTED
08.04.2020,ADULT SOCIAL CARE,REDACTED PERSONAL DATA,"1,371.60",PHY LTS 18-64,PAYMENTS TO CLIENTS (DIRECT PAYMENTS),REDACTED,REDACTED
08.04.2020,ADULT SOCIAL CARE,REDACTED PERSONAL DATA,"1,204.16",PHY LTS 18-64,PAYMENTS TO CLIENTS (DIRECT PAYMENTS),REDACTED,REDACTED
08.04.2020,ADULT SOCIAL CARE,REDACTED PERSONAL DATA,"1,258.48",PHY LTS 18-64,PAYMENTS TO CLIENTS (DIRECT PAYMENTS),REDACTED,REDACTED
08.04.2020,ADULT SOCIAL CARE,REDACTED PERSONAL DATA,"1,481.20",PHY LTS 18-64,PAYMENTS TO CLIENTS (DIRECT PAYMENTS),REDACTED,REDACTED
08.04.2020,ADULT SOCIAL CARE,REDACTED PERSONAL DATA,"3,535.00",PHY LTS 18-64,PAYMENTS TO CLIENTS (DIRECT PAYMENTS),REDACTED,REDACTED
08.04.2020,ADULT SOCIAL CARE,REDACTED PERSONAL DATA,"1,979.60",PHY LTS 18-64,PAYMENTS TO CLIENTS (DIRECT PAYMENTS),REDACTED,REDACTED
08.04.2020,ADULT SOCIAL CARE,REDACTED PERSONAL DATA,585.6,PHY LTS 18-64,PAYMENTS TO CLIENTS (DIRECT PAYMENTS),REDACTED,REDACTED
08.04.2020,ADULT SOCIAL CARE,REDACTED PERSONAL DATA,403.44,PHY LTS 18-64,PAYMENTS TO CLIENTS (DIRECT PAYMENTS),REDACTED,REDACTED
08.04.2020,ADULT SOCIAL CARE,REDACTED PERSONAL DATA,961.52,PHY LTS 18-64,PAYMENTS TO CLIENTS (DIRECT PAYMENTS),REDACTED,REDACTED
08.04.2020,ADULT SOCIAL CARE,REDACTED PERSONAL DATA,"1,024.88",PHY LTS 18-64,PAYMENTS TO CLIENTS (DIRECT PAYMENTS),REDACTED,REDACTED
08.04.2020,ADULT SOCIAL CARE,REDACTED PERSONAL DATA,"1,088.80",PHY LTS 18-64,PAYMENTS TO CLIENTS (DIRECT PAYMENTS),REDACTED,REDACTED
08.04.2020,ADULT SOCIAL CARE,REDACTED PERSONAL DATA,400,PHY LTS 18-64,PAYMENTS TO CLIENTS (DIRECT PAYMENTS),REDACTED,REDACTED
08.04.2020,ADULT SOCIAL CARE,REDACTED PERSONAL DATA,"2,739.80",PHY LTS 18-64,PAYMENTS TO CLIENTS (DIRECT PAYMENTS),REDACTED,REDACTED
08.04.2020,ADULT SOCIAL CARE,REDACTED PERSONAL DATA,296.96,PHY LTS 18-64,PAYMENTS TO CLIENTS (DIRECT PAYMENTS),REDACTED,REDACTED
08.04.2020,ADULT SOCIAL CARE,REDACTED PERSONAL DATA,848.4,PHY LTS 18-64,PAYMENTS TO CLIENTS (DIRECT PAYMENTS),REDACTED,REDACTED
08.04.2020,ADULT SOCIAL CARE,REDACTED PERSONAL DATA,777.72,PHY LTS 18-64,PAYMENTS TO CLIENTS (DIRECT PAYMENTS),REDACTED,REDACTED
08.04.2020,ADULT SOCIAL CARE,REDACTED PERSONAL DATA,707,PHY LTS 18-64,PAYMENTS TO CLIENTS (DIRECT PAYMENTS),REDACTED,REDACTED
08.04.2020,ADULT SOCIAL CARE,REDACTED PERSONAL DATA,933.24,PHY LTS 18-64,PAYMENTS TO CLIENTS (DIRECT PAYMENTS),REDACTED,REDACTED
08.04.2020,ADULT SOCIAL CARE,REDACTED PERSONAL DATA,"2,163.44",PHY LTS 18-64,PAYMENTS TO CLIENTS (DIRECT PAYMENTS),REDACTED,REDACTED
08.04.2020,ADULT SOCIAL CARE,REDACTED PERSONAL DATA,"1,583.68",PHY LTS 18-64,PAYMENTS TO CLIENTS (DIRECT PAYMENTS),REDACTED,REDACTED
08.04.2020,ADULT SOCIAL CARE,REDACTED PERSONAL DATA,751.96,PHY LTS 18-64,PAYMENTS TO CLIENTS (DIRECT PAYMENTS),REDACTED,REDACTED
08.04.2020,ADULT SOCIAL CARE,REDACTED PERSONAL DATA,"1,009.80",PHY LTS 18-64,PAYMENTS TO CLIENTS (DIRECT PAYMENTS),REDACTED,REDACTED
08.04.2020,ADULT SOCIAL CARE,REDACTED PERSONAL DATA,"1,583.68",PHY LTS 18-64,PAYMENTS TO CLIENTS (DIRECT PAYMENTS),REDACTED,REDACTED
08.04.2020,ADULT SOCIAL CARE,REDACTED PERSONAL DATA,"1,199.76",PHY LTS 18-64,PAYMENTS TO CLIENTS (DIRECT PAYMENTS),REDACTED,REDACTED
08.04.2020,ADULT SOCIAL CARE,REDACTED PERSONAL DATA,706.88,PHY LTS 18-64,PAYMENTS TO CLIENTS (DIRECT PAYMENTS),REDACTED,REDACTED
08.04.2020,ADULT SOCIAL CARE,REDACTED PERSONAL DATA,"2,088.48",PHY LTS 18-64,PAYMENTS TO CLIENTS (DIRECT PAYMENTS),REDACTED,REDACTED
08.04.2020,ADULT SOCIAL CARE,REDACTED PERSONAL DATA,565.6,PHY LTS 18-64,PAYMENTS TO CLIENTS (DIRECT PAYMENTS),REDACTED,REDACTED
08.04.2020,ADULT SOCIAL CARE,REDACTED PERSONAL DATA,769.44,PHY LTS 18-64,PAYMENTS TO CLIENTS (DIRECT PAYMENTS),REDACTED,REDACTED
08.04.2020,ADULT SOCIAL CARE,AMBULANCE SOLUTIONS LTD,368,PHY LTS 65+,CLIENT TRANSPORT,2103084917,1000080628
08.04.2020,ADULT SOCIAL CARE,AGE CONCERN LEWISHAM & SOUTHWARK,540,PHY LTS 65+,DAYCARE,2103085610,1000057586
08.04.2020,ADULT SOCIAL CARE,AGE UK  LEWISHAM & SOUTHWARK,360,PHY LTS 65+,DAYCARE,2103085286,1000066751
08.04.2020,ADULT SOCIAL CARE,AGE UK  LEWISHAM & SOUTHWARK,360,PHY LTS 65+,DAYCARE,2103085296,1000066751
08.04.2020,ADULT SOCIAL CARE,AGE UK  LEWISHAM & SOUTHWARK,360,PHY LTS 65+,DAYCARE,2103085365,1000066751
08.04.2020,ADULT SOCIAL CARE,AGE UK  LEWISHAM & SOUTHWARK,360,PHY LTS 65+,DAYCARE,2103085439,1000066751
08.04.2020,ADULT SOCIAL CARE,AGE UK  LEWISHAM & SOUTHWARK,360,PHY LTS 65+,DAYCARE,2103085473,1000066751
08.04.2020,ADULT SOCIAL CARE,AGE UK  LEWISHAM & SOUTHWARK,360,PHY LTS 65+,DAYCARE,2103085483,1000066751
08.04.2020,ADULT SOCIAL CARE,AGE UK  LEWISHAM & SOUTHWARK,360,PHY LTS 65+,DAYCARE,2103085514,1000066751
08.04.2020,ADULT SOCIAL CARE,AGE UK  LEWISHAM & SOUTHWARK,360,PHY LTS 65+,DAYCARE,2103085525,1000066751
08.04.2020,ADULT SOCIAL CARE,AGE UK  LEWISHAM & SOUTHWARK,360,PHY LTS 65+,DAYCARE,2103085594,1000066751
08.04.2020,ADULT SOCIAL CARE,AGE UK  LEWISHAM & SOUTHWARK,360,PHY LTS 65+,DAYCARE,2103085898,1000066751
08.04.2020,ADULT SOCIAL CARE,AGE UK  LEWISHAM & SOUTHWARK,540,PHY LTS 65+,DAYCARE,2103085221,1000066751
08.04.2020,ADULT SOCIAL CARE,AGE UK  LEWISHAM & SOUTHWARK,540,PHY LTS 65+,DAYCARE,2103085416,1000066751
08.04.2020,ADULT SOCIAL CARE,AGE UK  LEWISHAM & SOUTHWARK,540,PHY LTS 65+,DAYCARE,2103085485,1000066751
08.04.2020,ADULT SOCIAL CARE,AGE UK  LEWISHAM & SOUTHWARK,720,PHY LTS 65+,DAYCARE,2103085250,1000066751
08.04.2020,ADULT SOCIAL CARE,AGE UK  LEWISHAM & SOUTHWARK,720,PHY LTS 65+,DAYCARE,2103085317,1000066751
08.04.2020,ADULT SOCIAL CARE,AGE UK  LEWISHAM & SOUTHWARK,720,PHY LTS 65+,DAYCARE,2103085870,1000066751
08.04.2020,ADULT SOCIAL CARE,BLACK ELDER GROUP SWK,-295.71,PHY LTS 65+,DAYCARE,2103085728,1000067369
08.04.2020,ADULT SOCIAL CARE,BLACK ELDER GROUP SWK,540,PHY LTS 65+,DAYCARE,2103085786,1000067369
08.04.2020,ADULT SOCIAL CARE,SOUTHWARK CYPRIOT DAY CENTRE LTD,288,PHY LTS 65+,DAYCARE,2103085970,1000067736
08.04.2020,ADULT SOCIAL CARE,PEOPLEPLUS ILS,-290.4,PHY LTS 65+,DISCRETIONARY FLEXIBLE FEES & INCOME,2103085231,1000061886
08.04.2020,ADULT SOCIAL CARE,PEOPLEPLUS ILS,-259.44,PHY LTS 65+,DISCRETIONARY FLEXIBLE FEES & INCOME,2103085435,1000061886
08.04.2020,ADULT SOCIAL CARE,SWK DISABLEMENT ASSN,305.64,PHY LTS 65+,HOMECARE - SPOT,2103084819,1000011698
08.04.2020,ADULT SOCIAL CARE,SWK DISABLEMENT ASSN,339.6,PHY LTS 65+,HOMECARE - SPOT,2103084797,1000011698
08.04.2020,ADULT SOCIAL CARE,SWK DISABLEMENT ASSN,356.58,PHY LTS 65+,HOMECARE - SPOT,2103084909,1000011698
08.04.2020,ADULT SOCIAL CARE,SWK DISABLEMENT ASSN,509.4,PHY LTS 65+,HOMECARE - SPOT,2103084839,1000011698
08.04.2020,ADULT SOCIAL CARE,SWK DISABLEMENT ASSN,713.16,PHY LTS 65+,HOMECARE - SPOT,2103084861,1000011698
08.04.2020,ADULT SOCIAL CARE,SWK DISABLEMENT ASSN,"1,116.44",PHY LTS 65+,HOMECARE - SPOT,2103084899,1000011698
08.04.2020,ADULT SOCIAL CARE,SWK DISABLEMENT ASSN,"1,137.66",PHY LTS 65+,HOMECARE - SPOT,2103084873,1000011698
08.04.2020,ADULT SOCIAL CARE,SWK DISABLEMENT ASSN,"1,358.40",PHY LTS 65+,HOMECARE - SPOT,2103084801,1000011698
08.04.2020,ADULT SOCIAL CARE,SWK DISABLEMENT ASSN,"1,477.26",PHY LTS 65+,HOMECARE - SPOT,2103084845,1000011698
08.04.2020,ADULT SOCIAL CARE,SWK DISABLEMENT ASSN,"1,782.90",PHY LTS 65+,HOMECARE - SPOT,2103084859,1000011698
08.04.2020,ADULT SOCIAL CARE,SWK DISABLEMENT ASSN,"1,867.80",PHY LTS 65+,HOMECARE - SPOT,2103084900,1000011698
08.04.2020,ADULT SOCIAL CARE,SWK DISABLEMENT ASSN,"2,377.20",PHY LTS 65+,HOMECARE - SPOT,2103084799,1000011698
08.04.2020,ADULT SOCIAL CARE,SWK DISABLEMENT ASSN,"2,784.72",PHY LTS 65+,HOMECARE - SPOT,2103084893,1000011698
08.04.2020,ADULT SOCIAL CARE,SWK DISABLEMENT ASSN,"3,328.08",PHY LTS 65+,HOMECARE - SPOT,2103084871,1000011698
08.04.2020,ADULT SOCIAL CARE,SERVESOUL LTD,262.87,PHY LTS 65+,HOMECARE - SPOT,2103084938,1000081503
08.04.2020,ADULT SOCIAL CARE,SERVESOUL LTD,425.6,PHY LTS 65+,HOMECARE - SPOT,2103084950,1000081503
08.04.2020,ADULT SOCIAL CARE,SERVESOUL LTD,517.39,PHY LTS 65+,HOMECARE - SPOT,2103084947,1000081503
08.04.2020,ADULT SOCIAL CARE,SERVESOUL LTD,534.08,PHY LTS 65+,HOMECARE - SPOT,2103084953,1000081503
08.04.2020,ADULT SOCIAL CARE,SERVESOUL LTD,559.12,PHY LTS 65+,HOMECARE - SPOT,2103084948,1000081503
08.04.2020,ADULT SOCIAL CARE,SERVESOUL LTD,642.57,PHY LTS 65+,HOMECARE - SPOT,2103084957,1000081503
08.04.2020,ADULT SOCIAL CARE,AGE CONCERN LEWISHAM & SOUTHWARK,900,PHY LTS 65+,PAYMENTS TO CLIENTS (DIRECT PAYMENTS),2103085268,1000057586
08.04.2020,ADULT SOCIAL CARE,PEOPLEPLUS ILS,"-3,982.17",PHY LTS 65+,PAYMENTS TO CLIENTS (DIRECT PAYMENTS),2103085606,1000061886
08.04.2020,ADULT SOCIAL CARE,PEOPLEPLUS ILS,-463.6,PHY LTS 65+,PAYMENTS TO CLIENTS (DIRECT PAYMENTS),2103085656,1000061886
08.04.2020,ADULT SOCIAL CARE,PEOPLEPLUS ILS,310.96,PHY LTS 65+,PAYMENTS TO CLIENTS (DIRECT PAYMENTS),2103085261,1000061886
08.04.2020,ADULT SOCIAL CARE,PEOPLEPLUS ILS,311.08,PHY LTS 65+,PAYMENTS TO CLIENTS (DIRECT PAYMENTS),2103085259,1000061886
08.04.2020,ADULT SOCIAL CARE,PEOPLEPLUS ILS,316.8,PHY LTS 65+,PAYMENTS TO CLIENTS (DIRECT PAYMENTS),2103085427,1000061886
08.04.2020,ADULT SOCIAL CARE,PEOPLEPLUS ILS,365,PHY LTS 65+,PAYMENTS TO CLIENTS (DIRECT PAYMENTS),2103085701,1000061886
08.04.2020,ADULT SOCIAL CARE,PEOPLEPLUS ILS,365.76,PHY LTS 65+,PAYMENTS TO CLIENTS (DIRECT PAYMENTS),2103085553,1000061886
08.04.2020,ADULT SOCIAL CARE,PEOPLEPLUS ILS,421.56,PHY LTS 65+,PAYMENTS TO CLIENTS (DIRECT PAYMENTS),2103085599,1000061886
08.04.2020,ADULT SOCIAL CARE,PEOPLEPLUS ILS,423.52,PHY LTS 65+,PAYMENTS TO CLIENTS (DIRECT PAYMENTS),2103085822,1000061886
08.04.2020,ADULT SOCIAL CARE,PEOPLEPLUS ILS,444.08,PHY LTS 65+,PAYMENTS TO CLIENTS (DIRECT PAYMENTS),2103085703,1000061886
08.04.2020,ADULT SOCIAL CARE,PEOPLEPLUS ILS,456.32,PHY LTS 65+,PAYMENTS TO CLIENTS (DIRECT PAYMENTS),2103085441,1000061886
08.04.2020,ADULT SOCIAL CARE,PEOPLEPLUS ILS,509.04,PHY LTS 65+,PAYMENTS TO CLIENTS (DIRECT PAYMENTS),2103085505,1000061886
08.04.2020,ADULT SOCIAL CARE,PEOPLEPLUS ILS,552.2,PHY LTS 65+,PAYMENTS TO CLIENTS (DIRECT PAYMENTS),2103085852,1000061886
08.04.2020,ADULT SOCIAL CARE,PEOPLEPLUS ILS,564.4,PHY LTS 65+,PAYMENTS TO CLIENTS (DIRECT PAYMENTS),2103085522,1000061886
08.04.2020,ADULT SOCIAL CARE,PEOPLEPLUS ILS,573.2,PHY LTS 65+,PAYMENTS TO CLIENTS (DIRECT PAYMENTS),2103085666,1000061886
08.04.2020,ADULT SOCIAL CARE,PEOPLEPLUS ILS,587.32,PHY LTS 65+,PAYMENTS TO CLIENTS (DIRECT PAYMENTS),2103085792,1000061886
08.04.2020,ADULT SOCIAL CARE,PEOPLEPLUS ILS,599.6,PHY LTS 65+,PAYMENTS TO CLIENTS (DIRECT PAYMENTS),2103085653,1000061886
08.04.2020,ADULT SOCIAL CARE,PEOPLEPLUS ILS,622.16,PHY LTS 65+,PAYMENTS TO CLIENTS (DIRECT PAYMENTS),2103085511,1000061886
08.04.2020,ADULT SOCIAL CARE,PEOPLEPLUS ILS,692.6,PHY LTS 65+,PAYMENTS TO CLIENTS (DIRECT PAYMENTS),2103085989,1000061886
08.04.2020,ADULT SOCIAL CARE,PEOPLEPLUS ILS,707,PHY LTS 65+,PAYMENTS TO CLIENTS (DIRECT PAYMENTS),2103085432,1000061886
08.04.2020,ADULT SOCIAL CARE,PEOPLEPLUS ILS,726.88,PHY LTS 65+,PAYMENTS TO CLIENTS (DIRECT PAYMENTS),2103085255,1000061886
08.04.2020,ADULT SOCIAL CARE,PEOPLEPLUS ILS,726.88,PHY LTS 65+,PAYMENTS TO CLIENTS (DIRECT PAYMENTS),2103085815,1000061886
08.04.2020,ADULT SOCIAL CARE,PEOPLEPLUS ILS,739.4,PHY LTS 65+,PAYMENTS TO CLIENTS (DIRECT PAYMENTS),2103085431,1000061886
08.04.2020,ADULT SOCIAL CARE,PEOPLEPLUS ILS,741,PHY LTS 65+,PAYMENTS TO CLIENTS (DIRECT PAYMENTS),2103085994,1000061886
08.04.2020,ADULT SOCIAL CARE,PEOPLEPLUS ILS,769.28,PHY LTS 65+,PAYMENTS TO CLIENTS (DIRECT PAYMENTS),2103085983,1000061886
08.04.2020,ADULT SOCIAL CARE,PEOPLEPLUS ILS,774.52,PHY LTS 65+,PAYMENTS TO CLIENTS (DIRECT PAYMENTS),2103085608,1000061886
08.04.2020,ADULT SOCIAL CARE,PEOPLEPLUS ILS,777.72,PHY LTS 65+,PAYMENTS TO CLIENTS (DIRECT PAYMENTS),2103085684,1000061886
08.04.2020,ADULT SOCIAL CARE,PEOPLEPLUS ILS,782.92,PHY LTS 65+,PAYMENTS TO CLIENTS (DIRECT PAYMENTS),2103085239,1000061886
08.04.2020,ADULT SOCIAL CARE,PEOPLEPLUS ILS,783.44,PHY LTS 65+,PAYMENTS TO CLIENTS (DIRECT PAYMENTS),2103085222,1000061886
08.04.2020,ADULT SOCIAL CARE,PEOPLEPLUS ILS,791.84,PHY LTS 65+,PAYMENTS TO CLIENTS (DIRECT PAYMENTS),2103085979,1000061886
08.04.2020,ADULT SOCIAL CARE,PEOPLEPLUS ILS,797.56,PHY LTS 65+,PAYMENTS TO CLIENTS (DIRECT PAYMENTS),2103085359,1000061886
08.04.2020,ADULT SOCIAL CARE,PEOPLEPLUS ILS,811.72,PHY LTS 65+,PAYMENTS TO CLIENTS (DIRECT PAYMENTS),2103085267,1000061886
08.04.2020,ADULT SOCIAL CARE,PEOPLEPLUS ILS,811.72,PHY LTS 65+,PAYMENTS TO CLIENTS (DIRECT PAYMENTS),2103085855,1000061886
08.04.2020,ADULT SOCIAL CARE,PEOPLEPLUS ILS,825.84,PHY LTS 65+,PAYMENTS TO CLIENTS (DIRECT PAYMENTS),2103085486,1000061886
08.04.2020,ADULT SOCIAL CARE,PEOPLEPLUS ILS,868.28,PHY LTS 65+,PAYMENTS TO CLIENTS (DIRECT PAYMENTS),2103085693,1000061886
08.04.2020,ADULT SOCIAL CARE,PEOPLEPLUS ILS,914,PHY LTS 65+,PAYMENTS TO CLIENTS (DIRECT PAYMENTS),2103085499,1000061886
08.04.2020,ADULT SOCIAL CARE,PEOPLEPLUS ILS,933.24,PHY LTS 65+,PAYMENTS TO CLIENTS (DIRECT PAYMENTS),2103085929,1000061886
08.04.2020,ADULT SOCIAL CARE,PEOPLEPLUS ILS,938.96,PHY LTS 65+,PAYMENTS TO CLIENTS (DIRECT PAYMENTS),2103085881,1000061886
08.04.2020,ADULT SOCIAL CARE,PEOPLEPLUS ILS,"1,037.96",PHY LTS 65+,PAYMENTS TO CLIENTS (DIRECT PAYMENTS),2103085833,1000061886
08.04.2020,ADULT SOCIAL CARE,PEOPLEPLUS ILS,"1,074.52",PHY LTS 65+,PAYMENTS TO CLIENTS (DIRECT PAYMENTS),2103085574,1000061886
08.04.2020,ADULT SOCIAL CARE,PEOPLEPLUS ILS,"1,136.96",PHY LTS 65+,PAYMENTS TO CLIENTS (DIRECT PAYMENTS),2103085581,1000061886
08.04.2020,ADULT SOCIAL CARE,PEOPLEPLUS ILS,"1,159.36",PHY LTS 65+,PAYMENTS TO CLIENTS (DIRECT PAYMENTS),2103085288,1000061886
08.04.2020,ADULT SOCIAL CARE,PEOPLEPLUS ILS,"1,165.20",PHY LTS 65+,PAYMENTS TO CLIENTS (DIRECT PAYMENTS),2103085295,1000061886
08.04.2020,ADULT SOCIAL CARE,PEOPLEPLUS ILS,"1,193.48",PHY LTS 65+,PAYMENTS TO CLIENTS (DIRECT PAYMENTS),2103085417,1000061886
08.04.2020,ADULT SOCIAL CARE,PEOPLEPLUS ILS,"1,207.64",PHY LTS 65+,PAYMENTS TO CLIENTS (DIRECT PAYMENTS),2103085604,1000061886
08.04.2020,ADULT SOCIAL CARE,PEOPLEPLUS ILS,"1,258.48",PHY LTS 65+,PAYMENTS TO CLIENTS (DIRECT PAYMENTS),2103085611,1000061886
08.04.2020,ADULT SOCIAL CARE,PEOPLEPLUS ILS,"1,288.00",PHY LTS 65+,PAYMENTS TO CLIENTS (DIRECT PAYMENTS),2103085306,1000061886
08.04.2020,ADULT SOCIAL CARE,PEOPLEPLUS ILS,"1,343.32",PHY LTS 65+,PAYMENTS TO CLIENTS (DIRECT PAYMENTS),2103085681,1000061886
08.04.2020,ADULT SOCIAL CARE,PEOPLEPLUS ILS,"1,347.80",PHY LTS 65+,PAYMENTS TO CLIENTS (DIRECT PAYMENTS),2103085385,1000061886
08.04.2020,ADULT SOCIAL CARE,PEOPLEPLUS ILS,"1,524.72",PHY LTS 65+,PAYMENTS TO CLIENTS (DIRECT PAYMENTS),2103085836,1000061886
08.04.2020,ADULT SOCIAL CARE,PEOPLEPLUS ILS,"1,667.84",PHY LTS 65+,PAYMENTS TO CLIENTS (DIRECT PAYMENTS),2103085799,1000061886
08.04.2020,ADULT SOCIAL CARE,PEOPLEPLUS ILS,"1,668.52",PHY LTS 65+,PAYMENTS TO CLIENTS (DIRECT PAYMENTS),2103085982,1000061886
08.04.2020,ADULT SOCIAL CARE,PEOPLEPLUS ILS,"1,733.92",PHY LTS 65+,PAYMENTS TO CLIENTS (DIRECT PAYMENTS),2103085887,1000061886
08.04.2020,ADULT SOCIAL CARE,PEOPLEPLUS ILS,"1,886.00",PHY LTS 65+,PAYMENTS TO CLIENTS (DIRECT PAYMENTS),2103085362,1000061886
08.04.2020,ADULT SOCIAL CARE,PEOPLEPLUS ILS,"1,900.48",PHY LTS 65+,PAYMENTS TO CLIENTS (DIRECT PAYMENTS),2103085590,1000061886
08.04.2020,ADULT SOCIAL CARE,PEOPLEPLUS ILS,"2,014.48",PHY LTS 65+,PAYMENTS TO CLIENTS (DIRECT PAYMENTS),2103085305,1000061886
08.04.2020,ADULT SOCIAL CARE,PEOPLEPLUS ILS,"2,041.88",PHY LTS 65+,PAYMENTS TO CLIENTS (DIRECT PAYMENTS),2103085727,1000061886
08.04.2020,ADULT SOCIAL CARE,PEOPLEPLUS ILS,"2,201.00",PHY LTS 65+,PAYMENTS TO CLIENTS (DIRECT PAYMENTS),2103085886,1000061886
08.04.2020,ADULT SOCIAL CARE,PEOPLEPLUS ILS,"3,383.60",PHY LTS 65+,PAYMENTS TO CLIENTS (DIRECT PAYMENTS),2103085293,1000061886
08.04.2020,ADULT SOCIAL CARE,FRESH IDEAS & SOLUTIONS SERVICES CIC,890.84,PHY LTS 65+,PAYMENTS TO CLIENTS (DIRECT PAYMENTS),2103085917,1000070832
08.04.2020,ADULT SOCIAL CARE,REDACTED PERSONAL DATA,707,PHY LTS 65+,PAYMENTS TO CLIENTS (DIRECT PAYMENTS),REDACTED,REDACTED
08.04.2020,ADULT SOCIAL CARE,REDACTED PERSONAL DATA,494.92,PHY LTS 65+,PAYMENTS TO CLIENTS (DIRECT PAYMENTS),REDACTED,REDACTED
08.04.2020,ADULT SOCIAL CARE,REDACTED PERSONAL DATA,"1,555.40",PHY LTS 65+,PAYMENTS TO CLIENTS (DIRECT PAYMENTS),REDACTED,REDACTED
08.04.2020,ADULT SOCIAL CARE,REDACTED PERSONAL DATA,494.92,PHY LTS 65+,PAYMENTS TO CLIENTS (DIRECT PAYMENTS),REDACTED,REDACTED
08.04.2020,ADULT SOCIAL CARE,REDACTED PERSONAL DATA,791.84,PHY LTS 65+,PAYMENTS TO CLIENTS (DIRECT PAYMENTS),REDACTED,REDACTED
08.04.2020,ADULT SOCIAL CARE,REDACTED PERSONAL DATA,"1,201.92",PHY LTS 65+,PAYMENTS TO CLIENTS (DIRECT PAYMENTS),REDACTED,REDACTED
08.04.2020,ADULT SOCIAL CARE,REDACTED PERSONAL DATA,888.4,PHY LTS 65+,PAYMENTS TO CLIENTS (DIRECT PAYMENTS),REDACTED,REDACTED
08.04.2020,ADULT SOCIAL CARE,REDACTED PERSONAL DATA,"1,498.84",PHY LTS 65+,PAYMENTS TO CLIENTS (DIRECT PAYMENTS),REDACTED,REDACTED
08.04.2020,ADULT SOCIAL CARE,REDACTED PERSONAL DATA,608.04,PHY LTS 65+,PAYMENTS TO CLIENTS (DIRECT PAYMENTS),REDACTED,REDACTED
08.04.2020,ADULT SOCIAL CARE,REDACTED PERSONAL DATA,"2,132.72",PHY LTS 65+,PAYMENTS TO CLIENTS (DIRECT PAYMENTS),REDACTED,REDACTED
08.04.2020,ADULT SOCIAL CARE,REDACTED PERSONAL DATA,"1,357.44",PHY LTS 65+,PAYMENTS TO CLIENTS (DIRECT PAYMENTS),REDACTED,REDACTED
08.04.2020,ADULT SOCIAL CARE,REDACTED PERSONAL DATA,"1,717.00",PHY LTS 65+,PAYMENTS TO CLIENTS (DIRECT PAYMENTS),REDACTED,REDACTED
08.04.2020,ADULT SOCIAL CARE,REDACTED PERSONAL DATA,994,PHY LTS 65+,PAYMENTS TO CLIENTS (DIRECT PAYMENTS),REDACTED,REDACTED
08.04.2020,ADULT SOCIAL CARE,REDACTED PERSONAL DATA,868.4,PHY LTS 65+,PAYMENTS TO CLIENTS (DIRECT PAYMENTS),REDACTED,REDACTED
08.04.2020,ADULT SOCIAL CARE,REDACTED PERSONAL DATA,395.92,PHY LTS 65+,PAYMENTS TO CLIENTS (DIRECT PAYMENTS),REDACTED,REDACTED
08.04.2020,ADULT SOCIAL CARE,REDACTED PERSONAL DATA,642.16,PHY LTS 65+,PAYMENTS TO CLIENTS (DIRECT PAYMENTS),REDACTED,REDACTED
08.04.2020,ADULT SOCIAL CARE,REDACTED PERSONAL DATA,883.48,PHY LTS 65+,PAYMENTS TO CLIENTS (DIRECT PAYMENTS),REDACTED,REDACTED
08.04.2020,ADULT SOCIAL CARE,REDACTED PERSONAL DATA,"1,315.04",PHY LTS 65+,PAYMENTS TO CLIENTS (DIRECT PAYMENTS),REDACTED,REDACTED
08.04.2020,ADULT SOCIAL CARE,REDACTED PERSONAL DATA,"1,708.52",PHY LTS 65+,PAYMENTS TO CLIENTS (DIRECT PAYMENTS),REDACTED,REDACTED
08.04.2020,ADULT SOCIAL CARE,REDACTED PERSONAL DATA,551.48,PHY LTS 65+,PAYMENTS TO CLIENTS (DIRECT PAYMENTS),REDACTED,REDACTED
08.04.2020,ADULT SOCIAL CARE,REDACTED PERSONAL DATA,"1,179.48",PHY LTS 65+,PAYMENTS TO CLIENTS (DIRECT PAYMENTS),REDACTED,REDACTED
08.04.2020,ADULT SOCIAL CARE,REDACTED PERSONAL DATA,"1,781.64",PHY LTS 65+,PAYMENTS TO CLIENTS (DIRECT PAYMENTS),REDACTED,REDACTED
08.04.2020,ADULT SOCIAL CARE,REDACTED PERSONAL DATA,"2,282.40",PHY LTS 65+,PAYMENTS TO CLIENTS (DIRECT PAYMENTS),REDACTED,REDACTED
08.04.2020,ADULT SOCIAL CARE,SERVESOUL LTD,350.49,PHY STS 65+,HOMECARE - IC,2103084943,1000081503
08.04.2020,ADULT SOCIAL CARE,LEWISHAM INDO CHINESE COMMUNITY,280,SEN LTS 65+,DAYCARE,2103085901,1000076593
08.04.2020,ADULT SOCIAL CARE,AGE UK  LEWISHAM & SOUTHWARK,360,SOCIAL ISOLATION,DAYCARE,2103085660,1000066751
08.04.2020,ADULT SOCIAL CARE,AGE UK  LEWISHAM & SOUTHWARK,540,SOCIAL ISOLATION,DAYCARE,2103085479,1000066751
08.04.2020,ADULT SOCIAL CARE,AGE UK  LEWISHAM & SOUTHWARK,540,SOCIAL ISOLATION,DAYCARE,2103085854,1000066751
08.04.2020,ADULT SOCIAL CARE,AGE UK  LEWISHAM & SOUTHWARK,540,SOCIAL ISOLATION,DAYCARE,2103085873,1000066751
08.04.2020,ADULT SOCIAL CARE,SWK DISABLEMENT ASSN,305.64,SOCIAL ISOLATION,HOMECARE - SPOT,2103084865,1000011698
08.04.2020,ADULT SOCIAL CARE,SWK DISABLEMENT ASSN,"1,205.58",SOCIAL ISOLATION,HOMECARE - SPOT,2103084889,1000011698
08.04.2020,ADULT SOCIAL CARE,PEOPLEPLUS ILS,367.64,SOCIAL ISOLATION,PAYMENTS TO CLIENTS (DIRECT PAYMENTS),2103085504,1000061886
08.04.2020,ADULT SOCIAL CARE,PEOPLEPLUS ILS,475.12,SOCIAL ISOLATION,PAYMENTS TO CLIENTS (DIRECT PAYMENTS),2103085536,1000061886
08.04.2020,ADULT SOCIAL CARE,PEOPLEPLUS ILS,622.16,SOCIAL ISOLATION,PAYMENTS TO CLIENTS (DIRECT PAYMENTS),2103085850,1000061886
08.04.2020,ADULT SOCIAL CARE,PEOPLEPLUS ILS,741.04,SOCIAL ISOLATION,PAYMENTS TO CLIENTS (DIRECT PAYMENTS),2103085449,1000061886
08.04.2020,ADULT SOCIAL CARE,PEOPLEPLUS ILS,"1,787.36",SOCIAL ISOLATION,PAYMENTS TO CLIENTS (DIRECT PAYMENTS),2103085878,1000061886
08.04.2020,ADULT SOCIAL CARE,PEOPLEPLUS ILS,"2,027.12",SOCIAL ISOLATION,PAYMENTS TO CLIENTS (DIRECT PAYMENTS),2103085956,1000061886
08.04.2020,ADULT SOCIAL CARE,PEOPLEPLUS ILS,"2,131.20",SOCIAL ISOLATION,PAYMENTS TO CLIENTS (DIRECT PAYMENTS),2103085282,1000061886
08.04.2020,ADULT SOCIAL CARE,FRESH IDEAS & SOLUTIONS SERVICES CIC,260.24,SOCIAL ISOLATION,PAYMENTS TO CLIENTS (DIRECT PAYMENTS),2103085555,1000070832
08.04.2020,ADULT SOCIAL CARE,REDACTED PERSONAL DATA,614.4,SOCIAL ISOLATION,PAYMENTS TO CLIENTS (DIRECT PAYMENTS),REDACTED,REDACTED
08.04.2020,ADULT SOCIAL CARE,WATERLOGIC,295.6,SOUTHWARK RESOURCE CENTRE,OP LEASE/HIRE CHARGES:PLANT/EQUIP/FURNIT,5902412793,1000052108
08.04.2020,ADULT SOCIAL CARE,PEOPLEPLUS ILS,260.24,SPEC NEEDS CHILDREN,PAYMENTS TO CLIENTS (DIRECT PAYMENTS),2103085114,1000061886
08.04.2020,ADULT SOCIAL CARE,PEOPLEPLUS ILS,273.68,SPEC NEEDS CHILDREN,PAYMENTS TO CLIENTS (DIRECT PAYMENTS),2103085020,1000061886
08.04.2020,ADULT SOCIAL CARE,PEOPLEPLUS ILS,"1,849.00",SPEC NEEDS CHILDREN,PAYMENTS TO CLIENTS (DIRECT PAYMENTS),2103085163,1000061886
08.04.2020,ADULT SOCIAL CARE,REDACTED PERSONAL DATA,"4,722.92",SPEC NEEDS CHILDREN,PAYMENTS TO CLIENTS (DIRECT PAYMENTS),REDACTED,REDACTED
08.04.2020,ADULT SOCIAL CARE,REDACTED PERSONAL DATA,"3,662.20",SPEC NEEDS CHILDREN,PAYMENTS TO CLIENTS (DIRECT PAYMENTS),REDACTED,REDACTED
08.04.2020,ADULT SOCIAL CARE,REDACTED PERSONAL DATA,430.8,SPEC NEEDS CHILDREN,PERSONALISATION PAYMENTS,REDACTED,REDACTED
08.04.2020,ADULT SOCIAL CARE,PEOPLEPLUS ILS,253.68,SPECIALIST CARE,PAYMENTS TO CLIENTS (DIRECT PAYMENTS),2103085031,1000061886
08.04.2020,ADULT SOCIAL CARE,PEOPLEPLUS ILS,253.68,SPECIALIST CARE,PAYMENTS TO CLIENTS (DIRECT PAYMENTS),2103085105,1000061886
08.04.2020,ADULT SOCIAL CARE,PEOPLEPLUS ILS,260.24,SPECIALIST CARE,PAYMENTS TO CLIENTS (DIRECT PAYMENTS),2103085115,1000061886
08.04.2020,ADULT SOCIAL CARE,PEOPLEPLUS ILS,260.24,SPECIALIST CARE,PAYMENTS TO CLIENTS (DIRECT PAYMENTS),2103085190,1000061886
08.04.2020,ADULT SOCIAL CARE,PEOPLEPLUS ILS,273.68,SPECIALIST CARE,PAYMENTS TO CLIENTS (DIRECT PAYMENTS),2103084997,1000061886
08.04.2020,ADULT SOCIAL CARE,PEOPLEPLUS ILS,273.68,SPECIALIST CARE,PAYMENTS TO CLIENTS (DIRECT PAYMENTS),2103085013,1000061886
08.04.2020,ADULT SOCIAL CARE,PEOPLEPLUS ILS,273.68,SPECIALIST CARE,PAYMENTS TO CLIENTS (DIRECT PAYMENTS),2103085014,1000061886
08.04.2020,ADULT SOCIAL CARE,PEOPLEPLUS ILS,273.68,SPECIALIST CARE,PAYMENTS TO CLIENTS (DIRECT PAYMENTS),2103085046,1000061886
08.04.2020,ADULT SOCIAL CARE,PEOPLEPLUS ILS,273.68,SPECIALIST CARE,PAYMENTS TO CLIENTS (DIRECT PAYMENTS),2103085051,1000061886
08.04.2020,ADULT SOCIAL CARE,PEOPLEPLUS ILS,273.68,SPECIALIST CARE,PAYMENTS TO CLIENTS (DIRECT PAYMENTS),2103085096,1000061886
08.04.2020,ADULT SOCIAL CARE,PEOPLEPLUS ILS,273.68,SPECIALIST CARE,PAYMENTS TO CLIENTS (DIRECT PAYMENTS),2103085101,1000061886
08.04.2020,ADULT SOCIAL CARE,PEOPLEPLUS ILS,273.68,SPECIALIST CARE,PAYMENTS TO CLIENTS (DIRECT PAYMENTS),2103085108,1000061886
08.04.2020,ADULT SOCIAL CARE,PEOPLEPLUS ILS,273.68,SPECIALIST CARE,PAYMENTS TO CLIENTS (DIRECT PAYMENTS),2103085128,1000061886
08.04.2020,ADULT SOCIAL CARE,PEOPLEPLUS ILS,273.68,SPECIALIST CARE,PAYMENTS TO CLIENTS (DIRECT PAYMENTS),2103085133,1000061886
08.04.2020,ADULT SOCIAL CARE,PEOPLEPLUS ILS,273.68,SPECIALIST CARE,PAYMENTS TO CLIENTS (DIRECT PAYMENTS),2103085134,1000061886
08.04.2020,ADULT SOCIAL CARE,PEOPLEPLUS ILS,273.68,SPECIALIST CARE,PAYMENTS TO CLIENTS (DIRECT PAYMENTS),2103085136,1000061886
08.04.2020,ADULT SOCIAL CARE,PEOPLEPLUS ILS,273.68,SPECIALIST CARE,PAYMENTS TO CLIENTS (DIRECT PAYMENTS),2103085137,1000061886
08.04.2020,ADULT SOCIAL CARE,PEOPLEPLUS ILS,273.68,SPECIALIST CARE,PAYMENTS TO CLIENTS (DIRECT PAYMENTS),2103085153,1000061886
08.04.2020,ADULT SOCIAL CARE,PEOPLEPLUS ILS,273.68,SPECIALIST CARE,PAYMENTS TO CLIENTS (DIRECT PAYMENTS),2103085166,1000061886
08.04.2020,ADULT SOCIAL CARE,PEOPLEPLUS ILS,273.68,SPECIALIST CARE,PAYMENTS TO CLIENTS (DIRECT PAYMENTS),2103085171,1000061886
08.04.2020,ADULT SOCIAL CARE,PEOPLEPLUS ILS,273.68,SPECIALIST CARE,PAYMENTS TO CLIENTS (DIRECT PAYMENTS),2103085180,1000061886
08.04.2020,ADULT SOCIAL CARE,PEOPLEPLUS ILS,273.68,SPECIALIST CARE,PAYMENTS TO CLIENTS (DIRECT PAYMENTS),2103085187,1000061886
08.04.2020,ADULT SOCIAL CARE,PEOPLEPLUS ILS,273.68,SPECIALIST CARE,PAYMENTS TO CLIENTS (DIRECT PAYMENTS),2103085189,1000061886
08.04.2020,ADULT SOCIAL CARE,PEOPLEPLUS ILS,293.96,SPECIALIST CARE,PAYMENTS TO CLIENTS (DIRECT PAYMENTS),2103085155,1000061886
08.04.2020,ADULT SOCIAL CARE,PEOPLEPLUS ILS,299.6,SPECIALIST CARE,PAYMENTS TO CLIENTS (DIRECT PAYMENTS),2103085010,1000061886
08.04.2020,ADULT SOCIAL CARE,PEOPLEPLUS ILS,321.2,SPECIALIST CARE,PAYMENTS TO CLIENTS (DIRECT PAYMENTS),2103084998,1000061886
08.04.2020,ADULT SOCIAL CARE,PEOPLEPLUS ILS,333.6,SPECIALIST CARE,PAYMENTS TO CLIENTS (DIRECT PAYMENTS),2103085009,1000061886
08.04.2020,ADULT SOCIAL CARE,PEOPLEPLUS ILS,333.6,SPECIALIST CARE,PAYMENTS TO CLIENTS (DIRECT PAYMENTS),2103085016,1000061886
08.04.2020,ADULT SOCIAL CARE,PEOPLEPLUS ILS,333.6,SPECIALIST CARE,PAYMENTS TO CLIENTS (DIRECT PAYMENTS),2103085047,1000061886
08.04.2020,ADULT SOCIAL CARE,PEOPLEPLUS ILS,333.6,SPECIALIST CARE,PAYMENTS TO CLIENTS (DIRECT PAYMENTS),2103085172,1000061886
08.04.2020,ADULT SOCIAL CARE,PEOPLEPLUS ILS,348.6,SPECIALIST CARE,PAYMENTS TO CLIENTS (DIRECT PAYMENTS),2103085003,1000061886
08.04.2020,ADULT SOCIAL CARE,PEOPLEPLUS ILS,348.6,SPECIALIST CARE,PAYMENTS TO CLIENTS (DIRECT PAYMENTS),2103085195,1000061886
08.04.2020,ADULT SOCIAL CARE,PEOPLEPLUS ILS,359.52,SPECIALIST CARE,PAYMENTS TO CLIENTS (DIRECT PAYMENTS),2103085139,1000061886
08.04.2020,ADULT SOCIAL CARE,PEOPLEPLUS ILS,363.56,SPECIALIST CARE,PAYMENTS TO CLIENTS (DIRECT PAYMENTS),2103085160,1000061886
08.04.2020,ADULT SOCIAL CARE,PEOPLEPLUS ILS,363.56,SPECIALIST CARE,PAYMENTS TO CLIENTS (DIRECT PAYMENTS),2103085176,1000061886
08.04.2020,ADULT SOCIAL CARE,PEOPLEPLUS ILS,387.52,SPECIALIST CARE,PAYMENTS TO CLIENTS (DIRECT PAYMENTS),2103085122,1000061886
08.04.2020,ADULT SOCIAL CARE,PEOPLEPLUS ILS,393.52,SPECIALIST CARE,PAYMENTS TO CLIENTS (DIRECT PAYMENTS),2103085021,1000061886
08.04.2020,ADULT SOCIAL CARE,PEOPLEPLUS ILS,393.52,SPECIALIST CARE,PAYMENTS TO CLIENTS (DIRECT PAYMENTS),2103085026,1000061886
08.04.2020,ADULT SOCIAL CARE,PEOPLEPLUS ILS,393.52,SPECIALIST CARE,PAYMENTS TO CLIENTS (DIRECT PAYMENTS),2103085058,1000061886
08.04.2020,ADULT SOCIAL CARE,PEOPLEPLUS ILS,393.52,SPECIALIST CARE,PAYMENTS TO CLIENTS (DIRECT PAYMENTS),2103085076,1000061886
08.04.2020,ADULT SOCIAL CARE,PEOPLEPLUS ILS,393.52,SPECIALIST CARE,PAYMENTS TO CLIENTS (DIRECT PAYMENTS),2103085167,1000061886
08.04.2020,ADULT SOCIAL CARE,PEOPLEPLUS ILS,393.52,SPECIALIST CARE,PAYMENTS TO CLIENTS (DIRECT PAYMENTS),2103085183,1000061886
08.04.2020,ADULT SOCIAL CARE,PEOPLEPLUS ILS,423.48,SPECIALIST CARE,PAYMENTS TO CLIENTS (DIRECT PAYMENTS),2103085023,1000061886
08.04.2020,ADULT SOCIAL CARE,PEOPLEPLUS ILS,425.76,SPECIALIST CARE,PAYMENTS TO CLIENTS (DIRECT PAYMENTS),2103085028,1000061886
08.04.2020,ADULT SOCIAL CARE,PEOPLEPLUS ILS,427.2,SPECIALIST CARE,PAYMENTS TO CLIENTS (DIRECT PAYMENTS),2103085063,1000061886
08.04.2020,ADULT SOCIAL CARE,PEOPLEPLUS ILS,453.44,SPECIALIST CARE,PAYMENTS TO CLIENTS (DIRECT PAYMENTS),2103085042,1000061886
08.04.2020,ADULT SOCIAL CARE,PEOPLEPLUS ILS,453.44,SPECIALIST CARE,PAYMENTS TO CLIENTS (DIRECT PAYMENTS),2103085179,1000061886
08.04.2020,ADULT SOCIAL CARE,PEOPLEPLUS ILS,464.8,SPECIALIST CARE,PAYMENTS TO CLIENTS (DIRECT PAYMENTS),2103085053,1000061886
08.04.2020,ADULT SOCIAL CARE,PEOPLEPLUS ILS,483.4,SPECIALIST CARE,PAYMENTS TO CLIENTS (DIRECT PAYMENTS),2103085056,1000061886
08.04.2020,ADULT SOCIAL CARE,PEOPLEPLUS ILS,486.48,SPECIALIST CARE,PAYMENTS TO CLIENTS (DIRECT PAYMENTS),2103085002,1000061886
08.04.2020,ADULT SOCIAL CARE,PEOPLEPLUS ILS,486.48,SPECIALIST CARE,PAYMENTS TO CLIENTS (DIRECT PAYMENTS),2103085024,1000061886
08.04.2020,ADULT SOCIAL CARE,PEOPLEPLUS ILS,492.52,SPECIALIST CARE,PAYMENTS TO CLIENTS (DIRECT PAYMENTS),2103085182,1000061886
08.04.2020,ADULT SOCIAL CARE,PEOPLEPLUS ILS,493.36,SPECIALIST CARE,PAYMENTS TO CLIENTS (DIRECT PAYMENTS),2103085040,1000061886
08.04.2020,ADULT SOCIAL CARE,PEOPLEPLUS ILS,498.4,SPECIALIST CARE,PAYMENTS TO CLIENTS (DIRECT PAYMENTS),2103085067,1000061886
08.04.2020,ADULT SOCIAL CARE,PEOPLEPLUS ILS,513.32,SPECIALIST CARE,PAYMENTS TO CLIENTS (DIRECT PAYMENTS),2103085049,1000061886
08.04.2020,ADULT SOCIAL CARE,PEOPLEPLUS ILS,513.36,SPECIALIST CARE,PAYMENTS TO CLIENTS (DIRECT PAYMENTS),2103085019,1000061886
08.04.2020,ADULT SOCIAL CARE,PEOPLEPLUS ILS,513.36,SPECIALIST CARE,PAYMENTS TO CLIENTS (DIRECT PAYMENTS),2103085116,1000061886
08.04.2020,ADULT SOCIAL CARE,PEOPLEPLUS ILS,513.36,SPECIALIST CARE,PAYMENTS TO CLIENTS (DIRECT PAYMENTS),2103085123,1000061886
08.04.2020,ADULT SOCIAL CARE,PEOPLEPLUS ILS,513.36,SPECIALIST CARE,PAYMENTS TO CLIENTS (DIRECT PAYMENTS),2103085191,1000061886
08.04.2020,ADULT SOCIAL CARE,PEOPLEPLUS ILS,563.2,SPECIALIST CARE,PAYMENTS TO CLIENTS (DIRECT PAYMENTS),2103085165,1000061886
08.04.2020,ADULT SOCIAL CARE,PEOPLEPLUS ILS,573.28,SPECIALIST CARE,PAYMENTS TO CLIENTS (DIRECT PAYMENTS),2103085129,1000061886
08.04.2020,ADULT SOCIAL CARE,PEOPLEPLUS ILS,599.6,SPECIALIST CARE,PAYMENTS TO CLIENTS (DIRECT PAYMENTS),2103085087,1000061886
08.04.2020,ADULT SOCIAL CARE,PEOPLEPLUS ILS,603.24,SPECIALIST CARE,PAYMENTS TO CLIENTS (DIRECT PAYMENTS),2103085035,1000061886
08.04.2020,ADULT SOCIAL CARE,PEOPLEPLUS ILS,603.28,SPECIALIST CARE,PAYMENTS TO CLIENTS (DIRECT PAYMENTS),2103085120,1000061886
08.04.2020,ADULT SOCIAL CARE,PEOPLEPLUS ILS,618.24,SPECIALIST CARE,PAYMENTS TO CLIENTS (DIRECT PAYMENTS),2103085126,1000061886
08.04.2020,ADULT SOCIAL CARE,PEOPLEPLUS ILS,633.2,SPECIALIST CARE,PAYMENTS TO CLIENTS (DIRECT PAYMENTS),2103085088,1000061886
08.04.2020,ADULT SOCIAL CARE,PEOPLEPLUS ILS,633.2,SPECIALIST CARE,PAYMENTS TO CLIENTS (DIRECT PAYMENTS),2103085142,1000061886
08.04.2020,ADULT SOCIAL CARE,PEOPLEPLUS ILS,656.16,SPECIALIST CARE,PAYMENTS TO CLIENTS (DIRECT PAYMENTS),2103085193,1000061886
08.04.2020,ADULT SOCIAL CARE,PEOPLEPLUS ILS,680.2,SPECIALIST CARE,PAYMENTS TO CLIENTS (DIRECT PAYMENTS),2103085045,1000061886
08.04.2020,ADULT SOCIAL CARE,PEOPLEPLUS ILS,693.2,SPECIALIST CARE,PAYMENTS TO CLIENTS (DIRECT PAYMENTS),2103085138,1000061886
08.04.2020,ADULT SOCIAL CARE,PEOPLEPLUS ILS,715.96,SPECIALIST CARE,PAYMENTS TO CLIENTS (DIRECT PAYMENTS),2103085109,1000061886
08.04.2020,ADULT SOCIAL CARE,PEOPLEPLUS ILS,723.08,SPECIALIST CARE,PAYMENTS TO CLIENTS (DIRECT PAYMENTS),2103085033,1000061886
08.04.2020,ADULT SOCIAL CARE,PEOPLEPLUS ILS,723.08,SPECIALIST CARE,PAYMENTS TO CLIENTS (DIRECT PAYMENTS),2103085117,1000061886
08.04.2020,ADULT SOCIAL CARE,PEOPLEPLUS ILS,723.08,SPECIALIST CARE,PAYMENTS TO CLIENTS (DIRECT PAYMENTS),2103085130,1000061886
08.04.2020,ADULT SOCIAL CARE,PEOPLEPLUS ILS,753.04,SPECIALIST CARE,PAYMENTS TO CLIENTS (DIRECT PAYMENTS),2103085036,1000061886
08.04.2020,ADULT SOCIAL CARE,PEOPLEPLUS ILS,753.04,SPECIALIST CARE,PAYMENTS TO CLIENTS (DIRECT PAYMENTS),2103085065,1000061886
08.04.2020,ADULT SOCIAL CARE,PEOPLEPLUS ILS,842.92,SPECIALIST CARE,PAYMENTS TO CLIENTS (DIRECT PAYMENTS),2103085192,1000061886
08.04.2020,ADULT SOCIAL CARE,PEOPLEPLUS ILS,858.88,SPECIALIST CARE,PAYMENTS TO CLIENTS (DIRECT PAYMENTS),2103085104,1000061886
08.04.2020,ADULT SOCIAL CARE,PEOPLEPLUS ILS,931.52,SPECIALIST CARE,PAYMENTS TO CLIENTS (DIRECT PAYMENTS),2103085038,1000061886
08.04.2020,ADULT SOCIAL CARE,PEOPLEPLUS ILS,967.4,SPECIALIST CARE,PAYMENTS TO CLIENTS (DIRECT PAYMENTS),2103085057,1000061886
08.04.2020,ADULT SOCIAL CARE,PEOPLEPLUS ILS,992.72,SPECIALIST CARE,PAYMENTS TO CLIENTS (DIRECT PAYMENTS),2103085177,1000061886
08.04.2020,ADULT SOCIAL CARE,PEOPLEPLUS ILS,"1,111.00",SPECIALIST CARE,PAYMENTS TO CLIENTS (DIRECT PAYMENTS),2103085175,1000061886
08.04.2020,ADULT SOCIAL CARE,PEOPLEPLUS ILS,"1,112.56",SPECIALIST CARE,PAYMENTS TO CLIENTS (DIRECT PAYMENTS),2103085090,1000061886
08.04.2020,ADULT SOCIAL CARE,PEOPLEPLUS ILS,"1,326.40",SPECIALIST CARE,PAYMENTS TO CLIENTS (DIRECT PAYMENTS),2103085004,1000061886
08.04.2020,ADULT SOCIAL CARE,PEOPLEPLUS ILS,"1,326.40",SPECIALIST CARE,PAYMENTS TO CLIENTS (DIRECT PAYMENTS),2103085112,1000061886
08.04.2020,ADULT SOCIAL CARE,PEOPLEPLUS ILS,"1,334.00",SPECIALIST CARE,PAYMENTS TO CLIENTS (DIRECT PAYMENTS),2103085094,1000061886
08.04.2020,ADULT SOCIAL CARE,PEOPLEPLUS ILS,"1,392.90",SPECIALIST CARE,PAYMENTS TO CLIENTS (DIRECT PAYMENTS),2103085118,1000061886
08.04.2020,ADULT SOCIAL CARE,PEOPLEPLUS ILS,"1,472.08",SPECIALIST CARE,PAYMENTS TO CLIENTS (DIRECT PAYMENTS),2103085066,1000061886
08.04.2020,ADULT SOCIAL CARE,PEOPLEPLUS ILS,"1,536.96",SPECIALIST CARE,PAYMENTS TO CLIENTS (DIRECT PAYMENTS),2103085140,1000061886
08.04.2020,ADULT SOCIAL CARE,PEOPLEPLUS ILS,"1,541.80",SPECIALIST CARE,PAYMENTS TO CLIENTS (DIRECT PAYMENTS),2103085005,1000061886
08.04.2020,ADULT SOCIAL CARE,PEOPLEPLUS ILS,"1,649.52",SPECIALIST CARE,PAYMENTS TO CLIENTS (DIRECT PAYMENTS),2103085197,1000061886
08.04.2020,ADULT SOCIAL CARE,PEOPLEPLUS ILS,"1,759.12",SPECIALIST CARE,PAYMENTS TO CLIENTS (DIRECT PAYMENTS),2103085198,1000061886
08.04.2020,ADULT SOCIAL CARE,PEOPLEPLUS ILS,"1,900.80",SPECIALIST CARE,PAYMENTS TO CLIENTS (DIRECT PAYMENTS),2103085085,1000061886
08.04.2020,ADULT SOCIAL CARE,PEOPLEPLUS ILS,"3,244.52",SPECIALIST CARE,PAYMENTS TO CLIENTS (DIRECT PAYMENTS),2103085074,1000061886
08.04.2020,ADULT SOCIAL CARE,PEOPLEPLUS ILS,"5,151.80",SPECIALIST CARE,PAYMENTS TO CLIENTS (DIRECT PAYMENTS),2103085091,1000061886
08.04.2020,ADULT SOCIAL CARE,REDACTED PERSONAL DATA,380.28,SPECIALIST CARE,PAYMENTS TO CLIENTS (DIRECT PAYMENTS),REDACTED,REDACTED
08.04.2020,ADULT SOCIAL CARE,REDACTED PERSONAL DATA,716,SPECIALIST CARE,PAYMENTS TO CLIENTS (DIRECT PAYMENTS),REDACTED,REDACTED
08.04.2020,ADULT SOCIAL CARE,REDACTED PERSONAL DATA,"1,137.00",SPECIALIST CARE,PAYMENTS TO CLIENTS (DIRECT PAYMENTS),REDACTED,REDACTED
08.04.2020,ADULT SOCIAL CARE,REDACTED PERSONAL DATA,992.08,SPECIALIST CARE,PAYMENTS TO CLIENTS (DIRECT PAYMENTS),REDACTED,REDACTED
08.04.2020,ADULT SOCIAL CARE,REDACTED PERSONAL DATA,719.04,SPECIALIST CARE,PAYMENTS TO CLIENTS (DIRECT PAYMENTS),REDACTED,REDACTED
08.04.2020,ADULT SOCIAL CARE,REDACTED PERSONAL DATA,"1,814.00",SPECIALIST CARE,PAYMENTS TO CLIENTS (DIRECT PAYMENTS),REDACTED,REDACTED
08.04.2020,ADULT SOCIAL CARE,REDACTED PERSONAL DATA,"1,133.56",SPECIALIST CARE,PAYMENTS TO CLIENTS (DIRECT PAYMENTS),REDACTED,REDACTED
08.04.2020,ADULT SOCIAL CARE,REDACTED PERSONAL DATA,307.2,SPECIALIST CARE,PAYMENTS TO CLIENTS (DIRECT PAYMENTS),REDACTED,REDACTED
08.04.2020,ADULT SOCIAL CARE,REDACTED PERSONAL DATA,618.2,SPECIALIST CARE,PAYMENTS TO CLIENTS (DIRECT PAYMENTS),REDACTED,REDACTED
08.04.2020,ADULT SOCIAL CARE,REDACTED PERSONAL DATA,359.52,SPECIALIST CARE,PAYMENTS TO CLIENTS (DIRECT PAYMENTS),REDACTED,REDACTED
08.04.2020,ADULT SOCIAL CARE,REDACTED PERSONAL DATA,307.2,SPECIALIST CARE,PAYMENTS TO CLIENTS (DIRECT PAYMENTS),REDACTED,REDACTED
08.04.2020,ADULT SOCIAL CARE,REDACTED PERSONAL DATA,714.28,SPECIALIST CARE,PAYMENTS TO CLIENTS (DIRECT PAYMENTS),REDACTED,REDACTED
08.04.2020,ADULT SOCIAL CARE,REDACTED PERSONAL DATA,868.44,SPECIALIST CARE,PAYMENTS TO CLIENTS (DIRECT PAYMENTS),REDACTED,REDACTED
08.04.2020,ADULT SOCIAL CARE,REDACTED PERSONAL DATA,369.56,SPECIALIST CARE,PAYMENTS TO CLIENTS (DIRECT PAYMENTS),REDACTED,REDACTED
08.04.2020,ADULT SOCIAL CARE,REDACTED PERSONAL DATA,"1,696.80",SPECIALIST CARE,PAYMENTS TO CLIENTS (DIRECT PAYMENTS),REDACTED,REDACTED
08.04.2020,ADULT SOCIAL CARE,REDACTED PERSONAL DATA,888.84,SPECIALIST CARE,PAYMENTS TO CLIENTS (DIRECT PAYMENTS),REDACTED,REDACTED
08.04.2020,ADULT SOCIAL CARE,REDACTED PERSONAL DATA,259.68,SPECIALIST CARE,PAYMENTS TO CLIENTS (DIRECT PAYMENTS),REDACTED,REDACTED
08.04.2020,ADULT SOCIAL CARE,REDACTED PERSONAL DATA,349.56,SPECIALIST CARE,PAYMENTS TO CLIENTS (DIRECT PAYMENTS),REDACTED,REDACTED
08.04.2020,ADULT SOCIAL CARE,REDACTED PERSONAL DATA,"1,384.20",SPECIALIST CARE,PAYMENTS TO CLIENTS (DIRECT PAYMENTS),REDACTED,REDACTED
08.04.2020,ADULT SOCIAL CARE,REDACTED PERSONAL DATA,379.52,SPECIALIST CARE,PAYMENTS TO CLIENTS (DIRECT PAYMENTS),REDACTED,REDACTED
08.04.2020,ADULT SOCIAL CARE,REDACTED PERSONAL DATA,404.8,SPECIALIST CARE,PAYMENTS TO CLIENTS (DIRECT PAYMENTS),REDACTED,REDACTED
08.04.2020,ADULT SOCIAL CARE,REDACTED PERSONAL DATA,509.6,SPECIALIST CARE,PAYMENTS TO CLIENTS (DIRECT PAYMENTS),REDACTED,REDACTED
08.04.2020,ADULT SOCIAL CARE,REDACTED PERSONAL DATA,319.6,SPECIALIST CARE,PAYMENTS TO CLIENTS (DIRECT PAYMENTS),REDACTED,REDACTED
08.04.2020,ADULT SOCIAL CARE,REDACTED PERSONAL DATA,459.44,SPECIALIST CARE,PAYMENTS TO CLIENTS (DIRECT PAYMENTS),REDACTED,REDACTED
08.04.2020,ADULT SOCIAL CARE,REDACTED PERSONAL DATA,399.52,SPECIALIST CARE,PAYMENTS TO CLIENTS (DIRECT PAYMENTS),REDACTED,REDACTED
08.04.2020,ADULT SOCIAL CARE,REDACTED PERSONAL DATA,"1,218.40",SPECIALIST CARE,PAYMENTS TO CLIENTS (DIRECT PAYMENTS),REDACTED,REDACTED
08.04.2020,ADULT SOCIAL CARE,REDACTED PERSONAL DATA,881.64,SPECIALIST CARE,PAYMENTS TO CLIENTS (DIRECT PAYMENTS),REDACTED,REDACTED
08.04.2020,ADULT SOCIAL CARE,REDACTED PERSONAL DATA,"1,025.20",SPECIALIST CARE,PAYMENTS TO CLIENTS (DIRECT PAYMENTS),REDACTED,REDACTED
08.04.2020,ADULT SOCIAL CARE,REDACTED PERSONAL DATA,754.04,SPECIALIST CARE,PAYMENTS TO CLIENTS (DIRECT PAYMENTS),REDACTED,REDACTED
08.04.2020,ADULT SOCIAL CARE,REDACTED PERSONAL DATA,734.04,SPECIALIST CARE,PAYMENTS TO CLIENTS (DIRECT PAYMENTS),REDACTED,REDACTED
08.04.2020,ADULT SOCIAL CARE,REDACTED PERSONAL DATA,861.6,SPECIALIST CARE,PAYMENTS TO CLIENTS (DIRECT PAYMENTS),REDACTED,REDACTED
08.04.2020,ADULT SOCIAL CARE,REDACTED PERSONAL DATA,589.24,SPECIALIST CARE,PAYMENTS TO CLIENTS (DIRECT PAYMENTS),REDACTED,REDACTED
08.04.2020,ADULT SOCIAL CARE,REDACTED PERSONAL DATA,514.36,SPECIALIST CARE,PAYMENTS TO CLIENTS (DIRECT PAYMENTS),REDACTED,REDACTED
08.04.2020,ADULT SOCIAL CARE,REDACTED PERSONAL DATA,783.76,SPECIALIST CARE,PAYMENTS TO CLIENTS (DIRECT PAYMENTS),REDACTED,REDACTED
08.04.2020,ADULT SOCIAL CARE,REDACTED PERSONAL DATA,"10,928.00",SPECIALIST CARE,PAYMENTS TO CLIENTS (DIRECT PAYMENTS),REDACTED,REDACTED
08.04.2020,ADULT SOCIAL CARE,REDACTED PERSONAL DATA,522.64,SPECIALIST CARE,PAYMENTS TO CLIENTS (DIRECT PAYMENTS),REDACTED,REDACTED
08.04.2020,ADULT SOCIAL CARE,REDACTED PERSONAL DATA,828.92,SPECIALIST CARE,PAYMENTS TO CLIENTS (DIRECT PAYMENTS),REDACTED,REDACTED
08.04.2020,ADULT SOCIAL CARE,REDACTED PERSONAL DATA,858.88,SPECIALIST CARE,PAYMENTS TO CLIENTS (DIRECT PAYMENTS),REDACTED,REDACTED
08.04.2020,ADULT SOCIAL CARE,REDACTED PERSONAL DATA,"1,637.88",SPECIALIST CARE,PAYMENTS TO CLIENTS (DIRECT PAYMENTS),REDACTED,REDACTED
08.04.2020,ADULT SOCIAL CARE,REDACTED PERSONAL DATA,268.32,SPECIALIST CARE,PAYMENTS TO CLIENTS (DIRECT PAYMENTS),REDACTED,REDACTED
08.04.2020,ADULT SOCIAL CARE,REDACTED PERSONAL DATA,539.32,SPECIALIST CARE,PAYMENTS TO CLIENTS (DIRECT PAYMENTS),REDACTED,REDACTED
08.04.2020,ADULT SOCIAL CARE,REDACTED PERSONAL DATA,499.36,SPECIALIST CARE,PAYMENTS TO CLIENTS (DIRECT PAYMENTS),REDACTED,REDACTED
08.04.2020,ADULT SOCIAL CARE,REDACTED PERSONAL DATA,"6,029.82",SPECIALIST CARE,PAYMENTS TO CLIENTS (DIRECT PAYMENTS),REDACTED,REDACTED
08.04.2020,ADULT SOCIAL CARE,REDACTED PERSONAL DATA,"1,076.80",SPECIALIST CARE,PAYMENTS TO CLIENTS (DIRECT PAYMENTS),REDACTED,REDACTED
08.04.2020,ADULT SOCIAL CARE,REDACTED PERSONAL DATA,409.48,SPECIALIST CARE,PAYMENTS TO CLIENTS (DIRECT PAYMENTS),REDACTED,REDACTED
08.04.2020,ADULT SOCIAL CARE,REDACTED PERSONAL DATA,259.68,SPECIALIST CARE,PAYMENTS TO CLIENTS (DIRECT PAYMENTS),REDACTED,REDACTED
08.04.2020,ADULT SOCIAL CARE,REDACTED PERSONAL DATA,307.2,SPECIALIST CARE,PAYMENTS TO CLIENTS (DIRECT PAYMENTS),REDACTED,REDACTED
08.04.2020,ADULT SOCIAL CARE,REDACTED PERSONAL DATA,259.68,SPECIALIST CARE,PAYMENTS TO CLIENTS (DIRECT PAYMENTS),REDACTED,REDACTED
08.04.2020,ADULT SOCIAL CARE,REDACTED PERSONAL DATA,287.2,SPECIALIST CARE,PAYMENTS TO CLIENTS (DIRECT PAYMENTS),REDACTED,REDACTED
08.04.2020,ADULT SOCIAL CARE,REDACTED PERSONAL DATA,379.52,SPECIALIST CARE,PAYMENTS TO CLIENTS (DIRECT PAYMENTS),REDACTED,REDACTED
08.04.2020,ADULT SOCIAL CARE,REDACTED PERSONAL DATA,259.68,SPECIALIST CARE,PAYMENTS TO CLIENTS (DIRECT PAYMENTS),REDACTED,REDACTED
08.04.2020,ADULT SOCIAL CARE,REDACTED PERSONAL DATA,379.52,SPECIALIST CARE,PAYMENTS TO CLIENTS (DIRECT PAYMENTS),REDACTED,REDACTED
08.04.2020,ADULT SOCIAL CARE,REDACTED PERSONAL DATA,499.36,SPECIALIST CARE,PAYMENTS TO CLIENTS (DIRECT PAYMENTS),REDACTED,REDACTED
08.04.2020,ADULT SOCIAL CARE,REDACTED PERSONAL DATA,469.4,SPECIALIST CARE,PAYMENTS TO CLIENTS (DIRECT PAYMENTS),REDACTED,REDACTED
08.04.2020,ADULT SOCIAL CARE,REDACTED PERSONAL DATA,259.68,SPECIALIST CARE,PAYMENTS TO CLIENTS (DIRECT PAYMENTS),REDACTED,REDACTED
08.04.2020,ADULT SOCIAL CARE,REDACTED PERSONAL DATA,259.68,SPECIALIST CARE,PAYMENTS TO CLIENTS (DIRECT PAYMENTS),REDACTED,REDACTED
08.04.2020,ADULT SOCIAL CARE,REDACTED PERSONAL DATA,599.2,SPECIALIST CARE,PAYMENTS TO CLIENTS (DIRECT PAYMENTS),REDACTED,REDACTED
08.04.2020,ADULT SOCIAL CARE,MEDACS HOMECARE,447.33,SPECIALIST CARE,SECTION 17 PAYMENTS TO AGENCIES/CARERS,2103084079,11287415
08.04.2020,ADULT SOCIAL CARE,MEDACS HOMECARE,988.53,SPECIALIST CARE,SECTION 17 PAYMENTS TO AGENCIES/CARERS,2103084075,11287415
08.04.2020,ADULT SOCIAL CARE,SERVESOUL LTD,375.53,SUB LTS 18-64,HOMECARE - SPOT,2103084951,1000081503
08.04.2020,ADULT SOCIAL CARE,MOUNT CARMEL LTD,"3,255.00",SUB LTS 18-64,PLACEMENTS - REHAB,2103084933,11184946
08.04.2020,ADULT SOCIAL CARE,FREEDOM RECOVERY CENTRE,844,SUB LTS 18-64,PLACEMENTS - REHAB,2103084931,1000046185
08.04.2020,ADULT SOCIAL CARE,FREEDOM RECOVERY CENTRE,"3,563.80",SUB LTS 18-64,PLACEMENTS - REHAB,2103084934,1000046185
